Workbook

Sheet EXPLICACIÓN HMA
A2: DATOS (n) | C2: 1 | D2: 2 | E2: 3 | F2: 4 | G2: 5 | H2: 6 | I2: 7 | J2: 8 | K2: 9 | L2: 10
A3: 1) PROMEDIO SIMPLE (SMA1) (TODOS LOS DATOS -> n) | C3: =AVERAGE(C2:L2) -> 5.5
F4: 2) PROMEDIO SIMPLE (SMA2) (LOS n/2 DATOS FINALES) | H4: =AVERAGE(H2:L2) -> 8
H6: DIFERENCIAL DE PROMEDIO 2 Y 1 SMA2 - SMA1 | J6: =H4-C3 -> 2.5
H8: SUMA (SMA2 + DIFERENCIAL) | J8: =J6+H4 -> 10.5

Sheet OHLC
C4: O | D4: H | E4: L | F4: C
B5: N° Op. | C5: Open | D5: High | E5: Low | F5: Close
B6: 1 | C6: 173.443 | D6: 174.549 | E6: 173.279 | F6: 174.289
B7: 2 | C7: 174.288 | D7: 174.432 | E7: 173.997 | F7: 174.21
B8: 3 | C8: 174.207 | D8: 174.283 | E8: 172.984 | F8: 172.984
B9: 4 | C9: 172.991 | D9: 173.582 | E9: 172.675 | F9: 173.102
B10: 5 | C10: 173.086 | D10: 173.248 | E10: 172.798 | F10: 173.122
B11: 6 | C11: 173.128 | D11: 173.47 | E11: 172.974 | F11: 173.118
B12: 7 | C12: 173.123 | D12: 173.329 | E12: 172.602 | F12: 172.94
B13: 8 | C13: 172.934 | D13: 173.057 | E13: 172.631 | F13: 172.918
B14: 9 | C14: 172.923 | D14: 173.169 | E14: 172.646 | F14: 172.867
B15: 10 | C15: 172.801 | D15: 173.091 | E15: 172.754 | F15: 172.967
B16: 11 | C16: 172.971 | D16: 173.206 | E16: 172.722 | F16: 173.006
B17: 12 | C17: 173.006 | D17: 174.209 | E17: 172.917 | F17: 173.83
B18: 13 | C18: 173.852 | D18: 173.993 | E18: 173.402 | F18: 173.557
B19: 14 | C19: 173.557 | D19: 173.847 | E19: 172.383 | F19: 172.596
B20: 15 | C20: 172.547 | D20: 173.001 | E20: 172.442 | F20: 172.94
B21: 16 | C21: 172.937 | D21: 173.503 | E21: 172.775 | F21: 173.228
B22: 17 | C22: 173.223 | D22: 173.273 | E22: 171.565 | F22: 172.065
B23: 18 | C23: 172.065 | D23: 172.618 | E23: 171.704 | F23: 171.833
B24: 19 | C24: 171.829 | D24: 171.908 | E24: 170.7 | F24: 171.1
B25: 20 | C25: 171.408 | D25: 171.62 | E25: 171.229 | F25: 171.538
B26: 21 | C26: 171.538 | D26: 171.973 | E26: 171.383 | F26: 171.908
B27: 22 | C27: 171.911 | D27: 172.598 | E27: 170.856 | F27: 170.913
B28: 23 | C28: 170.913 | D28: 171.227 | E28: 170.657 | F28: 170.938
B29: 24 | C29: 170.943 | D29: 171.452 | E29: 170.429 | F29: 170.846
B30: 25 | C30: 171.176 | D30: 171.676 | E30: 171.001 | F30: 171.563
B31: 26 | C31: 171.563 | D31: 171.636 | E31: 170.701 | F31: 170.998
B32: 27 | C32: 171.008 | D32: 172.31 | E32: 170.963 | F32: 172.177
B33: 28 | C33: 172.175 | D33: 172.395 | E33: 171.884 | F33: 172.178
B34: 29 | C34: 172.173 | D34: 172.626 | E34: 171.617 | F34: 172.211
B35: 30 | C35: 172.542 | D35: 172.688 | E35: 172.303 | F35: 172.498
B36: 31 | C36: 172.503 | D36: 172.589 | E36: 172.098 | F36: 172.103
B37: 32 | C37: 172.108 | D37: 172.534 | E37: 172.064 | F37: 172.183
B38: 33 | C38: 172.178 | D38: 172.292 | E38: 171.674 | F38: 172.018
B39: 34 | C39: 171.997 | D39: 172.833 | E39: 171.93 | F39: 172.718
B40: 35 | C40: 172.831 | D40: 173.411 | E40: 172.733 | F40: 173.288
B41: 36 | C41: 173.288 | D41: 173.955 | E41: 173.009 | F41: 173.073
B42: 37 | C42: 173.078 | D42: 173.37 | E42: 172.378 | F42: 172.473
B43: 38 | C43: 172.468 | D43: 172.773 | E43: 171.758 | F43: 171.881
B44: 39 | C44: 171.881 | D44: 172.261 | E44: 170.908 | F44: 171.642
B45: 40 | C45: 169.757 | D45: 171.102 | E45: 169.342 | F45: 170.743
B46: 41 | C46: 170.738 | D46: 171.527 | E46: 170.518 | F46: 171.018
B47: 42 | C47: 171.023 | D47: 173.265 | E47: 170.973 | F47: 173.198
B48: 43 | C48: 173.196 | D48: 174.244 | E48: 172.775 | F48: 174.083
B49: 44 | C49: 174.078 | D49: 174.656 | E49: 173.699 | F49: 174.588
B50: 45 | C50: 174.498 | D50: 174.6 | E50: 173.841 | F50: 173.978
B51: 46 | C51: 173.983 | D51: 174.477 | E51: 172.983 | F51: 174.357
B52: 47 | C52: 174.35 | D52: 176.451 | E52: 174.14 | F52: 176.335
B53: 48 | C53: 176.339 | D53: 178.368 | E53: 176.155 | F53: 178.122
B54: 49 | C54: 178.158 | D54: 180.704 | E54: 177.463 | F54: 177.557
B55: 50 | C55: 177.738 | D55: 178.349 | E55: 177.525 | F55: 178.058
B56: 51 | C56: 178.06 | D56: 178.738 | E56: 176.644 | F56: 178.428
B57: 52 | C57: 178.438 | D57: 178.479 | E57: 177.639 | F57: 178.156
B58: 53 | C58: 178.154 | D58: 178.496 | E58: 177.135 | F58: 177.426
B59: 54 | C59: 177.434 | D59: 178.106 | E59: 177.146 | F59: 177.505
B60: 55 | C60: 177.435 | D60: 178.179 | E60: 177.193 | F60: 177.818
B61: 56 | C61: 177.783 | D61: 178.108 | E61: 177.375 | F61: 177.732
B62: 57 | C62: 177.697 | D62: 178.125 | E62: 176.183 | F62: 176.238
B63: 58 | C63: 176.233 | D63: 176.648 | E63: 174.318 | F63: 175.045
B64: 59 | C64: 174.876 | D64: 175.907 | E64: 174.876 | F64: 175.215
B65: 60 | C65: 175.126 | D65: 175.424 | E65: 174.465 | F65: 174.938
B66: 61 | C66: 174.948 | D66: 175.148 | E66: 173.686 | F66: 173.846
B67: 62 | C67: 173.85 | D67: 174.961 | E67: 173.437 | F67: 174.737
B68: 63 | C68: 174.728 | D68: 175.005 | E68: 173.575 | F68: 173.788
B69: 64 | C69: 173.796 | D69: 173.992 | E69: 172.735 | F69: 173.041
B70: 65 | C70: 172.87 | D70: 173.017 | E70: 171.727 | F70: 171.814
B71: 66 | C71: 171.835 | D71: 172.479 | E71: 169.922 | F71: 170.226
B72: 67 | C72: 170.225 | D72: 171.144 | E72: 168.014 | F72: 169.658
B73: 68 | C73: 169.655 | D73: 171.212 | E73: 168.459 | F73: 171.037
B74: 69 | C74: 171.038 | D74: 172.056 | E74: 170.198 | F74: 171.974
B75: 70 | C75: 172.702 | D75: 172.998 | E75: 172.223 | F75: 172.856
B76: 71 | C76: 172.856 | D76: 172.938 | E76: 171.796 | F76: 172.367
B77: 72 | C77: 172.366 | D77: 172.671 | E77: 171.065 | F77: 171.946
B78: 73 | C78: 171.946 | D78: 173.661 | E78: 171.703 | F78: 173.527
B79: 74 | C79: 173.524 | D79: 174.022 | E79: 172.966 | F79: 173.992
B80: 75 | C80: 174.185 | D80: 174.268 | E80: 173.387 | F80: 173.786
B81: 76 | C81: 173.787 | D81: 174.743 | E81: 173.692 | F81: 174.458
B82: 77 | C82: 174.453 | D82: 174.689 | E82: 173.895 | F82: 174.343
B83: 78 | C83: 174.343 | D83: 175.16 | E83: 173.985 | F83: 174.735
B84: 79 | C84: 174.732 | D84: 179.814 | E84: 174.662 | F84: 179.629
B85: 80 | C85: 179.895 | D85: 182.521 | E85: 179.655 | F85: 182.134
B86: 81 | C86: 182.133 | D86: 182.135 | E86: 181.12 | F86: 181.778
B87: 82 | C87: 181.779 | D87: 183.443 | E87: 181.498 | F87: 183.137
B88: 83 | C88: 183.136 | D88: 184.327 | E88: 181.866 | F88: 182.373
B89: 84 | C89: 182.371 | D89: 182.784 | E89: 181.218 | F89: 181.803
B90: 85 | C90: 181.769 | D90: 182.254 | E90: 181.074 | F90: 181.945
B91: 86 | C91: 181.942 | D91: 184.386 | E91: 181.764 | F91: 184.282
B92: 87 | C92: 184.282 | D92: 184.664 | E92: 181.962 | F92: 182.203
B93: 88 | C93: 182.21 | D93: 182.786 | E93: 181.54 | F93: 181.864
B94: 89 | C94: 181.864 | D94: 182.661 | E94: 181.597 | F94: 182.12
B95: 90 | C95: 182.648 | D95: 183.382 | E95: 181.093 | F95: 182.429
B96: 91 | C96: 182.425 | D96: 183.334 | E96: 182.243 | F96: 182.656
B97: 92 | C97: 182.659 | D97: 185.076 | E97: 182.525 | F97: 184.987
B98: 93 | C98: 184.986 | D98: 186.129 | E98: 184.87 | F98: 185.451
B99: 94 | C99: 185.445 | D99: 185.692 | E99: 183.972 | F99: 184.494
B100: 95 | C100: 184.387 | D100: 185.951 | E100: 184.054 | F100: 185.73
B101: 96 | C101: 185.73 | D101: 186.074 | E101: 184.521 | F101: 185.281
B102: 97 | C102: 185.287 | D102: 186.106 | E102: 184.774 | F102: 185.89
B103: 98 | C103: 185.892 | D103: 185.919 | E103: 185.012 | F103: 185.178
B104: 99 | C104: 185.181 | D104: 185.921 | E104: 185.18 | F104: 185.444
B105: 100 | C105: 185.712 | D105: 186.337 | E105: 185.039 | F105: 186.216
B106: 101 | C106: 186.217 | D106: 186.93 | E106: 186.028 | F106: 186.396
B107: 102 | C107: 186.394 | D107: 188.192 | E107: 186.27 | F107: 187.89
B108: 103 | C108: 187.888 | D108: 188.234 | E108: 187.598 | F108: 187.731
B109: 104 | C109: 187.717 | D109: 189.712 | E109: 187.292 | F109: 189.408
B110: 105 | C110: 189.312 | D110: 189.683 | E110: 188.429 | F110: 188.865
B111: 106 | C111: 188.875 | D111: 189.209 | E111: 185.189 | F111: 187.5
B112: 107 | C112: 187.499 | D112: 187.827 | E112: 184.964 | F112: 185.141
B113: 108 | C113: 185.145 | D113: 187.75 | E113: 184.967 | F113: 186.618
B114: 109 | C114: 186.622 | D114: 187.359 | E114: 185.599 | F114: 186.653
B115: 110 | C115: 186.595 | D115: 187.053 | E115: 183.841 | F115: 184.22
B116: 111 | C116: 184.22 | D116: 185.093 | E116: 181.602 | F116: 183.302
B117: 112 | C117: 183.298 | D117: 185.022 | E117: 183.104 | F117: 184.744
B118: 113 | C118: 184.744 | D118: 186.729 | E118: 184.42 | F118: 186.176
B119: 114 | C119: 186.171 | D119: 187.245 | E119: 186.034 | F119: 186.744
B120: 115 | C120: 186.757 | D120: 187.546 | E120: 186.499 | F120: 187.131
B121: 116 | C121: 187.136 | D121: 187.483 | E121: 186.481 | F121: 187.275
B122: 117 | C122: 187.286 | D122: 187.452 | E122: 186.625 | F122: 187.347
B123: 118 | C123: 186.717 | D123: 187.45 | E123: 186.717 | F123: 187.226
B124: 119 | C124: 187.313 | D124: 187.801 | E124: 187.044 | F124: 187.199
B125: 120 | C125: 187.202 | D125: 187.272 | E125: 184.953 | F125: 185.859
B126: 121 | C126: 185.852 | D126: 186.99 | E126: 185.701 | F126: 186.657
B127: 122 | C127: 186.541 | D127: 187.31 | E127: 184.294 | F127: 184.621
B128: 123 | C128: 184.056 | D128: 184.427 | E128: 181.707 | F128: 182.416
B129: 124 | C129: 182.416 | D129: 182.432 | E129: 179.24 | F129: 179.322
B130: 125 | C130: 179.357 | D130: 180.743 | E130: 179.159 | F130: 180.18
B131: 126 | C131: 180.168 | D131: 180.936 | E131: 179.984 | F131: 180.535
B132: 127 | C132: 180.53 | D132: 180.922 | E132: 179.47 | F132: 179.644
B133: 128 | C133: 179.565 | D133: 180.549 | E133: 179.022 | F133: 179.527
B134: 129 | C134: 179.527 | D134: 180.091 | E134: 178.102 | F134: 178.748
B135: 130 | C135: 178.75 | D135: 178.869 | E135: 176.86 | F135: 178.683
B136: 131 | C136: 178.693 | D136: 179.579 | E136: 176.296 | F136: 176.336
B137: 132 | C137: 176.317 | D137: 178.333 | E137: 175.794 | F137: 178.065
B138: 133 | C138: 177.73 | D138: 178.361 | E138: 176.985 | F138: 177.638
B139: 134 | C139: 177.621 | D139: 180.27 | E139: 177.534 | F139: 179.891
B140: 135 | C140: 179.893 | D140: 179.948 | E140: 177.058 | F140: 178.596
B141: 136 | C141: 178.596 | D141: 179.223 | E141: 177.213 | F141: 177.82
B142: 137 | C142: 177.82 | D142: 178.516 | E142: 176.147 | F142: 176.546
B143: 138 | C143: 176.245 | D143: 178.931 | E143: 175.748 | F143: 178.594
B144: 139 | C144: 178.597 | D144: 179.418 | E144: 177.846 | F144: 179.109
B145: 140 | C145: 179.099 | D145: 179.371 | E145: 177.642 | F145: 177.878
B146: 141 | C146: 177.898 | D146: 178.939 | E146: 177.699 | F146: 178.173
B147: 142 | C147: 178.173 | D147: 178.565 | E147: 176.128 | F147: 177.067
B148: 143 | C148: 176.56 | D148: 177.723 | E148: 176.115 | F148: 176.819
B149: 144 | C149: 176.773 | D149: 178.392 | E149: 175.497 | F149: 178.283
B150: 145 | C150: 178.284 | D150: 179.289 | E150: 177.586 | F150: 177.988
B151: 146 | C151: 177.979 | D151: 180.403 | E151: 177.733 | F151: 180.118
B152: 147 | C152: 180.102 | D152: 181.801 | E152: 179.581 | F152: 181.51
B153: 148 | C153: 181.258 | D153: 181.622 | E153: 180.156 | F153: 180.493
B154: 149 | C154: 180.495 | D154: 182.255 | E154: 180.258 | F154: 182.155
B155: 150 | C155: 182.142 | D155: 183.963 | E155: 182.001 | F155: 183.506
B156: 151 | C156: 183.504 | D156: 184.174 | E156: 181.08 | F156: 183.229
B157: 152 | C157: 183.219 | D157: 183.35 | E157: 182.489 | F157: 182.918
B158: 153 | C158: 182.846 | D158: 183.211 | E158: 181.515 | F158: 181.967
B159: 154 | C159: 181.965 | D159: 183.395 | E159: 181.579 | F159: 183.034
B160: 155 | C160: 183.034 | D160: 184.202 | E160: 182.592 | F160: 183.341
B161: 156 | C161: 183.349 | D161: 184.032 | E161: 183.027 | F161: 183.315
B162: 157 | C162: 183.322 | D162: 183.664 | E162: 181.664 | F162: 183.142
B163: 158 | C163: 183.328 | D163: 184.014 | E163: 182.607 | F163: 183.629
B164: 159 | C164: 183.626 | D164: 184.869 | E164: 183.539 | F164: 183.813
B165: 160 | C165: 183.822 | D165: 184.67 | E165: 183.532 | F165: 184.55
B166: 161 | C166: 184.55 | D166: 185.026 | E166: 183.595 | F166: 183.948
B167: 162 | C167: 183.944 | D167: 185.01 | E167: 183.547 | F167: 184.616
B168: 163 | C168: 184.592 | D168: 184.92 | E168: 184.164 | F168: 184.554
B169: 164 | C169: 184.558 | D169: 184.717 | E169: 183.654 | F169: 183.87
B170: 165 | C170: 183.87 | D170: 183.993 | E170: 182.523 | F170: 182.663
B171: 166 | C171: 182.662 | D171: 183.727 | E171: 182.394 | F171: 183.052
B172: 167 | C172: 183.052 | D172: 183.256 | E172: 181.474 | F172: 181.665
B173: 168 | C173: 181.738 | D173: 183.593 | E173: 181.502 | F173: 183.268
B174: 169 | C174: 183.268 | D174: 183.921 | E174: 182.35 | F174: 182.486
B175: 170 | C175: 182.485 | D175: 183.149 | E175: 180.787 | F175: 181.285
B176: 171 | C176: 181.287 | D176: 181.788 | E176: 180.199 | F176: 180.491
B177: 172 | C177: 180.486 | D177: 180.752 | E177: 178.233 | F177: 178.922
B178: 173 | C178: 178.983 | D178: 180.201 | E178: 178.795 | F178: 179.881
B179: 174 | C179: 179.885 | D179: 180.137 | E179: 178.543 | F179: 178.991
B180: 175 | C180: 178.991 | D180: 181.019 | E180: 177.152 | F180: 179.858
B181: 176 | C181: 179.859 | D181: 180.106 | E181: 177.722 | F181: 178.132
B182: 177 | C182: 178.115 | D182: 180.091 | E182: 177.939 | F182: 179.405
B183: 178 | C183: 179.433 | D183: 179.679 | E183: 178.151 | F183: 178.996
B184: 179 | C184: 178.995 | D184: 179.215 | E184: 177.504 | F184: 177.812
B185: 180 | C185: 177.812 | D185: 178.374 | E185: 177.539 | F185: 177.785
B186: 181 | C186: 177.792 | D186: 177.92 | E186: 176.479 | F186: 176.942
B187: 182 | C187: 176.946 | D187: 177.929 | E187: 176.699 | F187: 177.13
B188: 183 | C188: 177.456 | D188: 178.208 | E188: 176.679 | F188: 177.819
B189: 184 | C189: 177.817 | D189: 178.319 | E189: 177.108 | F189: 177.952
B190: 185 | C190: 177.948 | D190: 178.432 | E190: 176.787 | F190: 177.483
B191: 186 | C191: 177.486 | D191: 177.951 | E191: 176.774 | F191: 177.505
B192: 187 | C192: 177.504 | D192: 177.959 | E192: 177.012 | F192: 177.483
B193: 188 | C193: 177.337 | D193: 178.288 | E193: 177.19 | F193: 177.845
B194: 189 | C194: 177.818 | D194: 179.185 | E194: 177.716 | F194: 178.056
B195: 190 | C195: 178.054 | D195: 179.292 | E195: 177.632 | F195: 178.6
B196: 191 | C196: 178.6 | D196: 179.083 | E196: 177.107 | F196: 177.37
B197: 192 | C197: 177.368 | D197: 177.535 | E197: 175.676 | F197: 175.862
B198: 193 | C198: 175.916 | D198: 176.535 | E198: 175.31 | F198: 176.255
B199: 194 | C199: 176.255 | D199: 176.617 | E199: 174.879 | F199: 176.435
B200: 195 | C200: 176.428 | D200: 176.957 | E200: 175.699 | F200: 176.787
B201: 196 | C201: 176.788 | D201: 178.033 | E201: 176.559 | F201: 177.692
B202: 197 | C202: 177.688 | D202: 178.752 | E202: 177.444 | F202: 177.854
B203: 198 | C203: 178.004 | D203: 178.206 | E203: 177.19 | F203: 177.613
... 22 more rows

Sheet PRECIO - SMA - EMA - WMA - HMA
D3: =COUNT(D10:D229)-70 -> 150 | G3: n | H3: 16 | I3: =1-2/(H3+1) -> 0.8823529412 | J3: √ n | K3: =IF(H3="","",INT(SQRT(H3))) -> 4 | L3: =1-2/(K3+1) -> 0.6
B4: 144 | E4: 0 | H4: =INT(H3/2) -> 8 | I4: =H3*(H3+1)/2 -> 136 | L4: =K3*(K3+1)/2 -> 10
B5: 127 | E5: 0 | I5: =H4*(H4+1)/2 -> 36 | L5: =L6/100 -> 0.08 | N5: =MAX(D60:L202) -> 189.408 | O5: =MIN(D60:L202) -> 169.658
H6: =H7/100 -> 0.4 | I6: =1-2/(H4+1) -> 0.7777777778 | L6: 8 | Q6: 0.01 | S6: 0.02
H7: 40 | I7: =INT((H3-1)/2) -> 7 | O7: =0.1+0.2*RAND() -> 0.1373763115
F8: WMA(n) | G8: WMA(n/2) | J8: Hull MA | O8: 0.1728879928 | Q8: 0.05
A9: N° | B9: Wgts | C9: Time | D9: PRECIO | E9: ="SMA("&TEXT($H$3,0)&")" -> SMA(16) | F9: ="WMA("&TEXT($H$3,0)&")" -> WMA(16) | G9: ="WMA("&TEXT($H$4,0)&")" -> WMA(8) | H9: ="EMA("&TEXT($H$3,0)&")" -> EMA(16) | I9: ="MMA("&TEXT($H$3,0)&")" -> MMA(16) | J9: ="HMA("&TEXT($H$3,0)&")" -> HMA(16)
A10: 1 | B10: =IF(H3="","",1) -> 1 | C10: -50 | D10: 174.289 | E10: =IF(OR(D10="",H3=""),"",$D$10) -> 174.289 | F10: =IF(OR(D10="",H3=""),"",$D$10) -> 174.289 | G10: =IF(OR(D10="",H3=""),"",$D$10) -> 174.289 | H10: =IF(OR(D10="",H3=""),"",$D$10) -> 174.289 | I10: =IF(OR(D10="",H3=""),"",$D$10) -> 174.289 | J10: =IF(OR(D10="",H3=""),"",$D$10) -> 174.289
A11: =1+A10 -> 2 | B11: =IF(A11<=$H$3,1+B10,"") -> 2 | C11: =1+C10 -> -49 | D11: 174.21 | E11: =IF(E10="","",IF($D11<>"",AVERAGE(D11:OFFSET(D11,-MIN($H$3,COUNT(D$10:$D11)),0)),"")) -> 174.2495 | F11: =IF(F10="","",IF($D11<>"",SUMPRODUCT(B$10:OFFSET($B$10,MIN($H$3,$A11)-1,0),OFFSET(D11,1-MIN($H$3,$A11),0):D11)/$I$4,"")) -> 3.843448529 | G11: =IF(G10="","",IF($D11<>"",SUMPRODUCT(B$10:OFFSET($B$10,MIN($H$4,$A11)-1,0),OFFSET(D11,1-MIN($H$4,$A11),0):D11)/$I$5,"")) -> 14.51969444 | H11: =IF(H10="","",IF($D11<>"",$I$3*H10+(1-$I$3)*$D11,"")) -> 174.2797059 | I11: =IF(I10="","",IF($D11<>"",2*G11-F11,"")) -> 25.19594036 | J11: =IF(J10="","",IF($D11<>"",SUMPRODUCT(B$10:OFFSET($B$10,MIN($K$3,$A11)-1,0),OFFSET(I11,1-MIN($K$3,$A11),0):I11)/$L$4,"")) -> 22.46808807
A12: =1+A11 -> 3 | B12: 3 | C12: =1+C11 -> -48 | D12: 172.984 | E12: =IF(E11="","",IF($D12<>"",AVERAGE(D12:OFFSET(D12,-MIN($H$3,COUNT(D$10:$D12)),0)),"")) -> 173.8276667 | F12: =IF(F11="","",IF($D12<>"",SUMPRODUCT(B$10:OFFSET($B$10,MIN($H$3,$A12)-1,0),OFFSET(D12,1-MIN($H$3,$A12),0):D12)/$I$4,"")) -> 7.659272059 | G12: =IF(G11="","",IF($D12<>"",SUMPRODUCT(B$10:OFFSET($B$10,MIN($H$4,$A12)-1,0),OFFSET(D12,1-MIN($H$4,$A12),0):D12)/$I$5,"")) -> 28.93502778 | H12: =IF(H11="","",IF($D12<>"",$I$3*H11+(1-$I$3)*$D12,"")) -> 174.1272699 | I12: =IF(I11="","",IF($D12<>"",2*G12-F12,"")) -> 50.2107835 | J12: =IF(J11="","",IF($D12<>"",SUMPRODUCT(B$10:OFFSET($B$10,MIN($K$3,$A12)-1,0),OFFSET(I12,1-MIN($K$3,$A12),0):I12)/$L$4,"")) -> 37.53132312
A13: 4 | B13: 4 | C13: -47 | D13: 173.102 | E13: =IF(E12="","",IF($D13<>"",AVERAGE(D13:OFFSET(D13,-MIN($H$3,COUNT(D$10:$D13)),0)),"")) -> 173.64625 | F13: =IF(F12="","",IF($D13<>"",SUMPRODUCT(B$10:OFFSET($B$10,MIN($H$3,$A13)-1,0),OFFSET(D13,1-MIN($H$3,$A13),0):D13)/$I$4,"")) -> 12.75050735 | G13: =IF(G12="","",IF($D13<>"",SUMPRODUCT(B$10:OFFSET($B$10,MIN($H$4,$A13)-1,0),OFFSET(D13,1-MIN($H$4,$A13),0):D13)/$I$5,"")) -> 48.16858333 | H13: 174.0066499 | I13: 83.58665931 | J13: =IF(J12="","",IF($D13<>"",SUMPRODUCT(B$10:OFFSET($B$10,MIN($K$3,$A13)-1,0),OFFSET(I13,1-MIN($K$3,$A13),0):I13)/$L$4,"")) -> 70.96598685
A14: 5 | B14: 5 | C14: -46 | D14: 173.122 | E14: =IF(E13="","",IF($D14<>"",AVERAGE(D14:OFFSET(D14,-MIN($H$3,COUNT(D$10:$D14)),0)),"")) -> 173.5414 | F14: =IF(F13="","",IF($D14<>"",SUMPRODUCT(B$10:OFFSET($B$10,MIN($H$3,$A14)-1,0),OFFSET(D14,1-MIN($H$3,$A14),0):D14)/$I$4,"")) -> 19.11528676 | G14: =IF(G13="","",IF($D14<>"",SUMPRODUCT(B$10:OFFSET($B$10,MIN($H$4,$A14)-1,0),OFFSET(D14,1-MIN($H$4,$A14),0):D14)/$I$5,"")) -> 72.21330556 | H14: 173.9025734 | I14: 125.3113243 | J14: =IF(J13="","",IF($D14<>"",SUMPRODUCT(B$10:OFFSET($B$10,MIN($K$3,$A14)-1,0),OFFSET(I14,1-MIN($K$3,$A14),0):I14)/$L$4,"")) -> 87.76227827
A15: 6 | B15: 6 | C15: -45 | D15: 173.118 | E15: =IF(E14="","",IF($D15<>"",AVERAGE(D15:OFFSET(D15,-MIN($H$3,COUNT(D$10:$D15)),0)),"")) -> 173.4708333 | F15: =IF(F14="","",IF($D15<>"",SUMPRODUCT(B$10:OFFSET($B$10,MIN($H$3,$A15)-1,0),OFFSET(D15,1-MIN($H$3,$A15),0):D15)/$I$4,"")) -> 26.75284559 | G15: =IF(G14="","",IF($D15<>"",SUMPRODUCT(B$10:OFFSET($B$10,MIN($H$4,$A15)-1,0),OFFSET(D15,1-MIN($H$4,$A15),0):D15)/$I$5,"")) -> 101.0663056 | H15: 173.8102707 | I15: 175.3797655 | J15: =IF(J14="","",IF($D15<>"",SUMPRODUCT(B$10:OFFSET($B$10,MIN($K$3,$A15)-1,0),OFFSET(I15,1-MIN($K$3,$A15),0):I15)/$L$4,"")) -> 129.4837137
A16: 7 | B16: 7 | C16: -44 | D16: 172.94 | E16: =IF(E15="","",IF($D16<>"",AVERAGE(D16:OFFSET(D16,-MIN($H$3,COUNT(D$10:$D16)),0)),"")) -> 173.395 | F16: =IF(F15="","",IF($D16<>"",SUMPRODUCT(B$10:OFFSET($B$10,MIN($H$3,$A16)-1,0),OFFSET(D16,1-MIN($H$3,$A16),0):D16)/$I$4,"")) -> 35.65416912 | G16: =IF(G15="","",IF($D16<>"",SUMPRODUCT(B$10:OFFSET($B$10,MIN($H$4,$A16)-1,0),OFFSET(D16,1-MIN($H$4,$A16),0):D16)/$I$5,"")) -> 134.6935278 | H16: 173.7078859 | I16: 233.7328864 | J16: =IF(J15="","",IF($D16<>"",SUMPRODUCT(B$10:OFFSET($B$10,MIN($K$3,$A16)-1,0),OFFSET(I16,1-MIN($K$3,$A16),0):I16)/$L$4,"")) -> 179.528015
A17: 8 | B17: =IF(A17<=$H$3,1+B16,"") -> 8 | C17: -43 | D17: 172.918 | E17: =IF(E16="","",IF($D17<>"",AVERAGE(D17:OFFSET(D17,-MIN($H$3,COUNT(D$10:$D17)),0)),"")) -> 173.335375 | F17: =IF(F16="","",IF($D17<>"",SUMPRODUCT(B$10:OFFSET($B$10,MIN($H$3,$A17)-1,0),OFFSET(D17,1-MIN($H$3,$A17),0):D17)/$I$4,"")) -> 45.82581618 | G17: =IF(G16="","",IF($D17<>"",SUMPRODUCT(B$10:OFFSET($B$10,MIN($H$4,$A17)-1,0),OFFSET(D17,1-MIN($H$4,$A17),0):D17)/$I$5,"")) -> 173.11975 | H17: 173.6149581 | I17: 300.4136838 | J17: =IF(J16="","",IF($D17<>"",SUMPRODUCT(B$10:OFFSET($B$10,MIN($K$3,$A17)-1,0),OFFSET(I17,1-MIN($K$3,$A17),0):I17)/$L$4,"")) -> 237.892425
A18: 9 | B18: 9 | C18: -42 | D18: 172.867 | E18: =IF(E17="","",IF($D18<>"",AVERAGE(D18:OFFSET(D18,-MIN($H$3,COUNT(D$10:$D18)),0)),"")) -> 173.2833333 | F18: =IF(F17="","",IF($D18<>"",SUMPRODUCT(B$10:OFFSET($B$10,MIN($H$3,$A18)-1,0),OFFSET(D18,1-MIN($H$3,$A18),0):D18)/$I$4,"")) -> 57.26554412 | G18: =IF(G17="","",IF($D18<>"",SUMPRODUCT(B$10:OFFSET($B$10,MIN($H$4,$A18)-1,0),OFFSET(D18,1-MIN($H$4,$A18),0):D18)/$I$5,"")) -> 173.0156667 | H18: 173.5269631 | I18: 288.7657892 | J18: =IF(J17="","",IF($D18<>"",SUMPRODUCT(B$10:OFFSET($B$10,MIN($K$3,$A18)-1,0),OFFSET(I18,1-MIN($K$3,$A18),0):I18)/$L$4,"")) -> 269.9149747
A19: 10 | B19: 10 | C19: -41 | D19: 172.967 | E19: =IF(E18="","",IF($D19<>"",AVERAGE(D19:OFFSET(D19,-MIN($H$3,COUNT(D$10:$D19)),0)),"")) -> 173.2517 | F19: =IF(F18="","",IF($D19<>"",SUMPRODUCT(B$10:OFFSET($B$10,MIN($H$3,$A19)-1,0),OFFSET(D19,1-MIN($H$3,$A19),0):D19)/$I$4,"")) -> 69.98370588 | G19: =IF(G18="","",IF($D19<>"",SUMPRODUCT(B$10:OFFSET($B$10,MIN($H$4,$A19)-1,0),OFFSET(D19,1-MIN($H$4,$A19),0):D19)/$I$5,"")) -> 172.9733056 | H19: 173.4610851 | I19: 275.9629052 | J19: =IF(J18="","",IF($D19<>"",SUMPRODUCT(B$10:OFFSET($B$10,MIN($K$3,$A19)-1,0),OFFSET(I19,1-MIN($K$3,$A19),0):I19)/$L$4,"")) -> 280.4709243
A20: 11 | B20: 11 | C20: -40 | D20: 173.006 | E20: =IF(E19="","",IF($D20<>"",AVERAGE(D20:OFFSET(D20,-MIN($H$3,COUNT(D$10:$D20)),0)),"")) -> 173.2293636 | F20: =IF(F19="","",IF($D20<>"",SUMPRODUCT(B$10:OFFSET($B$10,MIN($H$3,$A20)-1,0),OFFSET(D20,1-MIN($H$3,$A20),0):D20)/$I$4,"")) -> 83.97683824 | G20: =IF(G19="","",IF($D20<>"",SUMPRODUCT(B$10:OFFSET($B$10,MIN($H$4,$A20)-1,0),OFFSET(D20,1-MIN($H$4,$A20),0):D20)/$I$5,"")) -> 172.9741389 | H20: 173.4075456 | I20: 261.9714395 | J20: =IF(J19="","",IF($D20<>"",SUMPRODUCT(B$10:OFFSET($B$10,MIN($K$3,$A20)-1,0),OFFSET(I20,1-MIN($K$3,$A20),0):I20)/$L$4,"")) -> 275.3719736
A21: 12 | B21: 12 | C21: -39 | D21: 173.83 | E21: =IF(E20="","",IF($D21<>"",AVERAGE(D21:OFFSET(D21,-MIN($H$3,COUNT(D$10:$D21)),0)),"")) -> 173.2794167 | F21: =IF(F20="","",IF($D21<>"",SUMPRODUCT(B$10:OFFSET($B$10,MIN($H$3,$A21)-1,0),OFFSET(D21,1-MIN($H$3,$A21),0):D21)/$I$4,"")) -> 99.31477941 | G21: =IF(G20="","",IF($D21<>"",SUMPRODUCT(B$10:OFFSET($B$10,MIN($H$4,$A21)-1,0),OFFSET(D21,1-MIN($H$4,$A21),0):D21)/$I$5,"")) -> 173.1574722 | H21: 173.4572462 | I21: 247.000165 | J21: =IF(J20="","",IF($D21<>"",SUMPRODUCT(B$10:OFFSET($B$10,MIN($K$3,$A21)-1,0),OFFSET(I21,1-MIN($K$3,$A21),0):I21)/$L$4,"")) -> 261.4606578
A22: 13 | B22: 13 | C22: -38 | D22: 173.557 | E22: =IF(E21="","",IF($D22<>"",AVERAGE(D22:OFFSET(D22,-MIN($H$3,COUNT(D$10:$D22)),0)),"")) -> 173.3007692 | F22: =IF(F21="","",IF($D22<>"",SUMPRODUCT(B$10:OFFSET($B$10,MIN($H$3,$A22)-1,0),OFFSET(D22,1-MIN($H$3,$A22),0):D22)/$I$4,"")) -> 115.9047868 | G22: =IF(G21="","",IF($D22<>"",SUMPRODUCT(B$10:OFFSET($B$10,MIN($H$4,$A22)-1,0),OFFSET(D22,1-MIN($H$4,$A22),0):D22)/$I$5,"")) -> 173.2599167 | H22: 173.4689819 | I22: 230.6150466 | J22: =IF(J21="","",IF($D22<>"",SUMPRODUCT(B$10:OFFSET($B$10,MIN($K$3,$A22)-1,0),OFFSET(I22,1-MIN($K$3,$A22),0):I22)/$L$4,"")) -> 246.3366466
A23: 14 | B23: =IF(A23<=$H$3,1+B22,"") -> 14 | C23: -37 | D23: 172.596 | E23: =IF(E22="","",IF($D23<>"",AVERAGE(D23:OFFSET(D23,-MIN($H$3,COUNT(D$10:$D23)),0)),"")) -> 173.2504286 | F23: =IF(F22="","",IF($D23<>"",SUMPRODUCT(B$10:OFFSET($B$10,MIN($H$3,$A23)-1,0),OFFSET(D23,1-MIN($H$3,$A23),0):D23)/$I$4,"")) -> 133.6720221 | G23: =IF(G22="","",IF($D23<>"",SUMPRODUCT(B$10:OFFSET($B$10,MIN($H$4,$A23)-1,0),OFFSET(D23,1-MIN($H$4,$A23),0):D23)/$I$5,"")) -> 173.1367222 | H23: 173.3662782 | I23: 212.6014224 | J23: =IF(J22="","",IF($D23<>"",SUMPRODUCT(B$10:OFFSET($B$10,MIN($K$3,$A23)-1,0),OFFSET(I23,1-MIN($K$3,$A23),0):I23)/$L$4,"")) -> 229.8222599
A24: 15 | B24: 15 | C24: -36 | D24: 172.94 | E24: =IF(E23="","",IF($D24<>"",AVERAGE(D24:OFFSET(D24,-MIN($H$3,COUNT(D$10:$D24)),0)),"")) -> 173.2297333 | F24: =IF(F23="","",IF($D24<>"",SUMPRODUCT(B$10:OFFSET($B$10,MIN($H$3,$A24)-1,0),OFFSET(D24,1-MIN($H$3,$A24),0):D24)/$I$4,"")) -> 152.7462868 | G24: =IF(G23="","",IF($D24<>"",SUMPRODUCT(B$10:OFFSET($B$10,MIN($H$4,$A24)-1,0),OFFSET(D24,1-MIN($H$4,$A24),0):D24)/$I$5,"")) -> 173.1044722 | H24: 173.3161278 | I24: 193.4626577 | J24: =IF(J23="","",IF($D24<>"",SUMPRODUCT(B$10:OFFSET($B$10,MIN($K$3,$A24)-1,0),OFFSET(I24,1-MIN($K$3,$A24),0):I24)/$L$4,"")) -> 211.9885156
A25: 16 | B25: =IF(A25<=$H$3,1+B24,"") -> 16 | C25: -35 | D25: 173.228 | E25: =IF(E24="","",IF($D25<>"",AVERAGE(D25:OFFSET(D25,-MIN($H$3,COUNT(D$10:$D25)),0)),"")) -> 173.229625 | F25: =IF(F24="","",IF($D25<>"",SUMPRODUCT(B$10:OFFSET($B$10,MIN($H$3,$A25)-1,0),OFFSET(D25,1-MIN($H$3,$A25),0):D25)/$I$4,"")) -> 173.1260515 | G25: =IF(G24="","",IF($D25<>"",SUMPRODUCT(B$10:OFFSET($B$10,MIN($H$4,$A25)-1,0),OFFSET(D25,1-MIN($H$4,$A25),0):D25)/$I$5,"")) -> 173.1362222 | H25: 173.3057598 | I25: 173.146393 | J25: =IF(J24="","",IF($D25<>"",SUMPRODUCT(B$10:OFFSET($B$10,MIN($K$3,$A25)-1,0),OFFSET(I25,1-MIN($K$3,$A25),0):I25)/$L$4,"")) -> 192.8791436
A26: 17 | C26: -34 | D26: 172.065 | E26: =IF(E25="","",IF($D26<>"",AVERAGE(D26:OFFSET(D26,-MIN($H$3,COUNT(D$10:$D26)),0)),"")) -> 173.1611176 | F26: =IF(F25="","",IF($D26<>"",SUMPRODUCT(B$10:OFFSET($B$10,MIN($H$3,$A26)-1,0),OFFSET(D26,1-MIN($H$3,$A26),0):D26)/$I$4,"")) -> 172.9890368 | G26: =IF(G25="","",IF($D26<>"",SUMPRODUCT(B$10:OFFSET($B$10,MIN($H$4,$A26)-1,0),OFFSET(D26,1-MIN($H$4,$A26),0):D26)/$I$5,"")) -> 172.9009167 | H26: 173.1597881 | I26: 172.8127966 | J26: =IF(J25="","",IF($D26<>"",SUMPRODUCT(B$10:OFFSET($B$10,MIN($K$3,$A26)-1,0),OFFSET(I26,1-MIN($K$3,$A26),0):I26)/$L$4,"")) -> 181.0217103 | M26: TRUE | N26: FALSE | O26: FALSE | P26: FALSE | Q26: TRUE
A27: 18 | C27: -33 | D27: 171.833 | E27: =IF(E26="","",IF($D27<>"",AVERAGE(D27:OFFSET(D27,-MIN($H$3,COUNT(D$10:$D27)),0)),"")) -> 173.0166471 | F27: =IF(F26="","",IF($D27<>"",SUMPRODUCT(B$10:OFFSET($B$10,MIN($H$3,$A27)-1,0),OFFSET(D27,1-MIN($H$3,$A27),0):D27)/$I$4,"")) -> 172.8410809 | G27: =IF(G26="","",IF($D27<>"",SUMPRODUCT(B$10:OFFSET($B$10,MIN($H$4,$A27)-1,0),OFFSET(D27,1-MIN($H$4,$A27),0):D27)/$I$5,"")) -> 172.6363333 | H27: 173.0036954 | I27: 172.4315858 | J27: =IF(J26="","",IF($D27<>"",SUMPRODUCT(B$10:OFFSET($B$10,MIN($K$3,$A27)-1,0),OFFSET(I27,1-MIN($K$3,$A27),0):I27)/$L$4,"")) -> 174.7920176 | M27: PRECIO | N27: SMA | O27: WMA | P27: EMA | Q27: HMA
A28: 19 | C28: -32 | D28: 171.1 | E28: =IF(E27="","",IF($D28<>"",AVERAGE(D28:OFFSET(D28,-MIN($H$3,COUNT(D$10:$D28)),0)),"")) -> 172.8337059 | F28: =IF(F27="","",IF($D28<>"",SUMPRODUCT(B$10:OFFSET($B$10,MIN($H$3,$A28)-1,0),OFFSET(D28,1-MIN($H$3,$A28),0):D28)/$I$4,"")) -> 172.6243676 | G28: =IF(G27="","",IF($D28<>"",SUMPRODUCT(B$10:OFFSET($B$10,MIN($H$4,$A28)-1,0),OFFSET(D28,1-MIN($H$4,$A28),0):D28)/$I$5,"")) -> 172.2403611 | H28: 172.7797312 | I28: 171.8563546 | J28: =IF(J27="","",IF($D28<>"",SUMPRODUCT(B$10:OFFSET($B$10,MIN($K$3,$A28)-1,0),OFFSET(I28,1-MIN($K$3,$A28),0):I28)/$L$4,"")) -> 172.3492162 | M28: =IF($M$26=TRUE,D28,"") -> 171.1 | N28: =IF($N$26=TRUE,E28,"") ->  | O28: =IF($O$26=TRUE,F28,"") ->  | P28: =IF($P$26=TRUE,H28,"") ->  | Q28: =IF($Q$26=TRUE,J28,"") -> 172.3492162
A29: 20 | C29: -31 | D29: 171.538 | E29: =IF(E28="","",IF($D29<>"",AVERAGE(D29:OFFSET(D29,-MIN($H$3,COUNT(D$10:$D29)),0)),"")) -> 172.7486471 | F29: =IF(F28="","",IF($D29<>"",SUMPRODUCT(B$10:OFFSET($B$10,MIN($H$3,$A29)-1,0),OFFSET(D29,1-MIN($H$3,$A29),0):D29)/$I$4,"")) -> 172.4730368 | G29: =IF(G28="","",IF($D29<>"",SUMPRODUCT(B$10:OFFSET($B$10,MIN($H$4,$A29)-1,0),OFFSET(D29,1-MIN($H$4,$A29),0):D29)/$I$5,"")) -> 171.9946667 | H29: 172.6336452 | I29: 171.5162966 | J29: =IF(J28="","",IF($D29<>"",SUMPRODUCT(B$10:OFFSET($B$10,MIN($K$3,$A29)-1,0),OFFSET(I29,1-MIN($K$3,$A29),0):I29)/$L$4,"")) -> 171.9310218 | M29: 171.538 | Q29: 171.9310218
A30: 21 | C30: -30 | D30: 171.908 | E30: =IF(E29="","",IF($D30<>"",AVERAGE(D30:OFFSET(D30,-MIN($H$3,COUNT(D$10:$D30)),0)),"")) -> 172.6784118 | F30: =IF(F29="","",IF($D30<>"",SUMPRODUCT(B$10:OFFSET($B$10,MIN($H$3,$A30)-1,0),OFFSET(D30,1-MIN($H$3,$A30),0):D30)/$I$4,"")) -> 172.3767353 | G30: =IF(G29="","",IF($D30<>"",SUMPRODUCT(B$10:OFFSET($B$10,MIN($H$4,$A30)-1,0),OFFSET(D30,1-MIN($H$4,$A30),0):D30)/$I$5,"")) -> 171.8948611 | H30: 172.5482751 | I30: 171.4129869 | J30: =IF(J29="","",IF($D30<>"",SUMPRODUCT(B$10:OFFSET($B$10,MIN($K$3,$A30)-1,0),OFFSET(I30,1-MIN($K$3,$A30),0):I30)/$L$4,"")) -> 171.6345132 | M30: 171.908 | Q30: 171.6345132
A31: 22 | C31: -29 | D31: 170.913 | E31: =IF(E30="","",IF($D31<>"",AVERAGE(D31:OFFSET(D31,-MIN($H$3,COUNT(D$10:$D31)),0)),"")) -> 172.5484706 | F31: =IF(F30="","",IF($D31<>"",SUMPRODUCT(B$10:OFFSET($B$10,MIN($H$3,$A31)-1,0),OFFSET(D31,1-MIN($H$3,$A31),0):D31)/$I$4,"")) -> 172.1723015 | G31: =IF(G30="","",IF($D31<>"",SUMPRODUCT(B$10:OFFSET($B$10,MIN($H$4,$A31)-1,0),OFFSET(D31,1-MIN($H$4,$A31),0):D31)/$I$5,"")) -> 171.61975 | H31: 172.3558898 | I31: 171.0671985 | J31: =IF(J30="","",IF($D31<>"",SUMPRODUCT(B$10:OFFSET($B$10,MIN($K$3,$A31)-1,0),OFFSET(I31,1-MIN($K$3,$A31),0):I31)/$L$4,"")) -> 171.3396703 | M31: 170.913 | Q31: 171.3396703
A32: 23 | C32: -28 | D32: 170.938 | E32: =IF(E31="","",IF($D32<>"",AVERAGE(D32:OFFSET(D32,-MIN($H$3,COUNT(D$10:$D32)),0)),"")) -> 172.4202353 | F32: =IF(F31="","",IF($D32<>"",SUMPRODUCT(B$10:OFFSET($B$10,MIN($H$3,$A32)-1,0),OFFSET(D32,1-MIN($H$3,$A32),0):D32)/$I$4,"")) -> 171.9870221 | G32: =IF(G31="","",IF($D32<>"",SUMPRODUCT(B$10:OFFSET($B$10,MIN($H$4,$A32)-1,0),OFFSET(D32,1-MIN($H$4,$A32),0):D32)/$I$5,"")) -> 171.3969444 | H32: 172.1890793 | I32: 170.8068668 | J32: =IF(J31="","",IF($D32<>"",SUMPRODUCT(B$10:OFFSET($B$10,MIN($K$3,$A32)-1,0),OFFSET(I32,1-MIN($K$3,$A32),0):I32)/$L$4,"")) -> 171.0771333 | M32: 170.938 | Q32: 171.0771333
A33: 24 | C33: -27 | D33: 170.846 | E33: =IF(E32="","",IF($D33<>"",AVERAGE(D33:OFFSET(D33,-MIN($H$3,COUNT(D$10:$D33)),0)),"")) -> 172.2970588 | F33: =IF(F32="","",IF($D33<>"",SUMPRODUCT(B$10:OFFSET($B$10,MIN($H$3,$A33)-1,0),OFFSET(D33,1-MIN($H$3,$A33),0):D33)/$I$4,"")) -> 171.8056397 | G33: =IF(G32="","",IF($D33<>"",SUMPRODUCT(B$10:OFFSET($B$10,MIN($H$4,$A33)-1,0),OFFSET(D33,1-MIN($H$4,$A33),0):D33)/$I$5,"")) -> 171.2093056 | H33: 172.0310699 | I33: 170.6129714 | J33: =IF(J32="","",IF($D33<>"",SUMPRODUCT(B$10:OFFSET($B$10,MIN($K$3,$A33)-1,0),OFFSET(I33,1-MIN($K$3,$A33),0):I33)/$L$4,"")) -> 170.841987 | M33: 170.846 | Q33: 170.841987
A34: 25 | C34: -26 | D34: 171.563 | E34: =IF(E33="","",IF($D34<>"",AVERAGE(D34:OFFSET(D34,-MIN($H$3,COUNT(D$10:$D34)),0)),"")) -> 172.2173529 | F34: =IF(F33="","",IF($D34<>"",SUMPRODUCT(B$10:OFFSET($B$10,MIN($H$3,$A34)-1,0),OFFSET(D34,1-MIN($H$3,$A34),0):D34)/$I$4,"")) -> 171.7238456 | G34: =IF(G33="","",IF($D34<>"",SUMPRODUCT(B$10:OFFSET($B$10,MIN($H$4,$A34)-1,0),OFFSET(D34,1-MIN($H$4,$A34),0):D34)/$I$5,"")) -> 171.2471667 | H34: 171.9760029 | I34: 170.7704877 | J34: =IF(J33="","",IF($D34<>"",SUMPRODUCT(B$10:OFFSET($B$10,MIN($K$3,$A34)-1,0),OFFSET(I34,1-MIN($K$3,$A34),0):I34)/$L$4,"")) -> 170.7601797 | M34: 171.563 | Q34: 170.7601797
A35: 26 | C35: -25 | D35: 170.998 | E35: =IF(E34="","",IF($D35<>"",AVERAGE(D35:OFFSET(D35,-MIN($H$3,COUNT(D$10:$D35)),0)),"")) -> 172.1074118 | F35: =IF(F34="","",IF($D35<>"",SUMPRODUCT(B$10:OFFSET($B$10,MIN($H$3,$A35)-1,0),OFFSET(D35,1-MIN($H$3,$A35),0):D35)/$I$4,"")) -> 171.5851691 | G35: =IF(G34="","",IF($D35<>"",SUMPRODUCT(B$10:OFFSET($B$10,MIN($H$4,$A35)-1,0),OFFSET(D35,1-MIN($H$4,$A35),0):D35)/$I$5,"")) -> 171.1734167 | H35: 171.8609437 | I35: 170.7616642 | J35: =IF(J34="","",IF($D35<>"",SUMPRODUCT(B$10:OFFSET($B$10,MIN($K$3,$A35)-1,0),OFFSET(I35,1-MIN($K$3,$A35),0):I35)/$L$4,"")) -> 170.739093 | M35: 170.998 | Q35: 170.739093
A36: 27 | C36: -24 | D36: 172.177 | E36: =IF(E35="","",IF($D36<>"",AVERAGE(D36:OFFSET(D36,-MIN($H$3,COUNT(D$10:$D36)),0)),"")) -> 172.0609412 | F36: =IF(F35="","",IF($D36<>"",SUMPRODUCT(B$10:OFFSET($B$10,MIN($H$3,$A36)-1,0),OFFSET(D36,1-MIN($H$3,$A36),0):D36)/$I$4,"")) -> 171.5996765 | G36: =IF(G35="","",IF($D36<>"",SUMPRODUCT(B$10:OFFSET($B$10,MIN($H$4,$A36)-1,0),OFFSET(D36,1-MIN($H$4,$A36),0):D36)/$I$5,"")) -> 171.3848611 | H36: 171.8981268 | I36: 171.1700458 | J36: =IF(J35="","",IF($D36<>"",SUMPRODUCT(B$10:OFFSET($B$10,MIN($K$3,$A36)-1,0),OFFSET(I36,1-MIN($K$3,$A36),0):I36)/$L$4,"")) -> 170.9119123 | M36: 172.177 | Q36: 170.9119123
A37: 28 | C37: -23 | D37: 172.178 | E37: =IF(E36="","",IF($D37<>"",AVERAGE(D37:OFFSET(D37,-MIN($H$3,COUNT(D$10:$D37)),0)),"")) -> 172.0122353 | F37: =IF(F36="","",IF($D37<>"",SUMPRODUCT(B$10:OFFSET($B$10,MIN($H$3,$A37)-1,0),OFFSET(D37,1-MIN($H$3,$A37),0):D37)/$I$4,"")) -> 171.6203971 | G37: =IF(G36="","",IF($D37<>"",SUMPRODUCT(B$10:OFFSET($B$10,MIN($H$4,$A37)-1,0),OFFSET(D37,1-MIN($H$4,$A37),0):D37)/$I$5,"")) -> 171.5666111 | H37: 171.9310531 | I37: 171.5128252 | J37: =IF(J36="","",IF($D37<>"",SUMPRODUCT(B$10:OFFSET($B$10,MIN($K$3,$A37)-1,0),OFFSET(I37,1-MIN($K$3,$A37),0):I37)/$L$4,"")) -> 171.1855254 | M37: 172.178 | Q37: 171.1855254
A38: 29 | C38: -22 | D38: 172.211 | E38: =IF(E37="","",IF($D38<>"",AVERAGE(D38:OFFSET(D38,-MIN($H$3,COUNT(D$10:$D38)),0)),"")) -> 171.917 | F38: =IF(F37="","",IF($D38<>"",SUMPRODUCT(B$10:OFFSET($B$10,MIN($H$3,$A38)-1,0),OFFSET(D38,1-MIN($H$3,$A38),0):D38)/$I$4,"")) -> 171.6571471 | G38: =IF(G37="","",IF($D38<>"",SUMPRODUCT(B$10:OFFSET($B$10,MIN($H$4,$A38)-1,0),OFFSET(D38,1-MIN($H$4,$A38),0):D38)/$I$5,"")) -> 171.7379167 | H38: 171.963988 | I38: 171.8186863 | J38: =IF(J37="","",IF($D38<>"",SUMPRODUCT(B$10:OFFSET($B$10,MIN($K$3,$A38)-1,0),OFFSET(I38,1-MIN($K$3,$A38),0):I38)/$L$4,"")) -> 171.4914976 | M38: 172.211 | Q38: 171.4914976
A39: 30 | C39: -21 | D39: 172.498 | E39: =IF(E38="","",IF($D39<>"",AVERAGE(D39:OFFSET(D39,-MIN($H$3,COUNT(D$10:$D39)),0)),"")) -> 171.8547059 | F39: =IF(F38="","",IF($D39<>"",SUMPRODUCT(B$10:OFFSET($B$10,MIN($H$3,$A39)-1,0),OFFSET(D39,1-MIN($H$3,$A39),0):D39)/$I$4,"")) -> 171.7375588 | G39: =IF(G38="","",IF($D39<>"",SUMPRODUCT(B$10:OFFSET($B$10,MIN($H$4,$A39)-1,0),OFFSET(D39,1-MIN($H$4,$A39),0):D39)/$I$5,"")) -> 171.9645833 | H39: 172.0268129 | I39: 172.1916078 | J39: =IF(J38="","",IF($D39<>"",SUMPRODUCT(B$10:OFFSET($B$10,MIN($K$3,$A39)-1,0),OFFSET(I39,1-MIN($K$3,$A39),0):I39)/$L$4,"")) -> 171.8418186 | M39: 172.498 | Q39: 171.8418186
A40: 31 | C40: -20 | D40: 172.103 | E40: =IF(E39="","",IF($D40<>"",AVERAGE(D40:OFFSET(D40,-MIN($H$3,COUNT(D$10:$D40)),0)),"")) -> 171.8257059 | F40: =IF(F39="","",IF($D40<>"",SUMPRODUCT(B$10:OFFSET($B$10,MIN($H$3,$A40)-1,0),OFFSET(D40,1-MIN($H$3,$A40),0):D40)/$I$4,"")) -> 171.7722206 | G40: =IF(G39="","",IF($D40<>"",SUMPRODUCT(B$10:OFFSET($B$10,MIN($H$4,$A40)-1,0),OFFSET(D40,1-MIN($H$4,$A40),0):D40)/$I$5,"")) -> 172.0594444 | H40: 172.0357761 | I40: 172.3466683 | J40: =IF(J39="","",IF($D40<>"",SUMPRODUCT(B$10:OFFSET($B$10,MIN($K$3,$A40)-1,0),OFFSET(I40,1-MIN($K$3,$A40),0):I40)/$L$4,"")) -> 172.1111694 | M40: 172.103 | Q40: 172.1111694
A41: 32 | C41: -19 | D41: 172.183 | E41: =IF(E40="","",IF($D41<>"",AVERAGE(D41:OFFSET(D41,-MIN($H$3,COUNT(D$10:$D41)),0)),"")) -> 171.7811765 | F41: =IF(F40="","",IF($D41<>"",SUMPRODUCT(B$10:OFFSET($B$10,MIN($H$3,$A41)-1,0),OFFSET(D41,1-MIN($H$3,$A41),0):D41)/$I$4,"")) -> 171.8224485 | G41: =IF(G40="","",IF($D41<>"",SUMPRODUCT(B$10:OFFSET($B$10,MIN($H$4,$A41)-1,0),OFFSET(D41,1-MIN($H$4,$A41),0):D41)/$I$5,"")) -> 172.1397222 | H41: 172.0530966 | I41: 172.4569959 | J41: =IF(J40="","",IF($D41<>"",SUMPRODUCT(B$10:OFFSET($B$10,MIN($K$3,$A41)-1,0),OFFSET(I41,1-MIN($K$3,$A41),0):I41)/$L$4,"")) -> 172.3069891 | M41: 172.183 | Q41: 172.3069891
A42: 33 | C42: -18 | D42: 172.018 | E42: =IF(E41="","",IF($D42<>"",AVERAGE(D42:OFFSET(D42,-MIN($H$3,COUNT(D$10:$D42)),0)),"")) -> 171.71 | F42: =IF(F41="","",IF($D42<>"",SUMPRODUCT(B$10:OFFSET($B$10,MIN($H$3,$A42)-1,0),OFFSET(D42,1-MIN($H$3,$A42),0):D42)/$I$4,"")) -> 171.8609485 | G42: =IF(G41="","",IF($D42<>"",SUMPRODUCT(B$10:OFFSET($B$10,MIN($H$4,$A42)-1,0),OFFSET(D42,1-MIN($H$4,$A42),0):D42)/$I$5,"")) -> 172.1461944 | H42: 172.0489676 | I42: 172.4314404 | J42: =IF(J41="","",IF($D42<>"",SUMPRODUCT(B$10:OFFSET($B$10,MIN($K$3,$A42)-1,0),OFFSET(I42,1-MIN($K$3,$A42),0):I42)/$L$4,"")) -> 172.3981694 | M42: 172.018 | Q42: 172.3981694
A43: 34 | C43: -17 | D43: 172.718 | E43: =IF(E42="","",IF($D43<>"",AVERAGE(D43:OFFSET(D43,-MIN($H$3,COUNT(D$10:$D43)),0)),"")) -> 171.7484118 | F43: =IF(F42="","",IF($D43<>"",SUMPRODUCT(B$10:OFFSET($B$10,MIN($H$3,$A43)-1,0),OFFSET(D43,1-MIN($H$3,$A43),0):D43)/$I$4,"")) -> 171.9821471 | G43: =IF(G42="","",IF($D43<>"",SUMPRODUCT(B$10:OFFSET($B$10,MIN($H$4,$A43)-1,0),OFFSET(D43,1-MIN($H$4,$A43),0):D43)/$I$5,"")) -> 172.2955833 | H43: 172.1276773 | I43: 172.6090196 | J43: =IF(J42="","",IF($D43<>"",SUMPRODUCT(B$10:OFFSET($B$10,MIN($K$3,$A43)-1,0),OFFSET(I43,1-MIN($K$3,$A43),0):I43)/$L$4,"")) -> 172.499106 | M43: 172.718 | Q43: 172.499106
A44: 35 | C44: -16 | D44: 173.288 | E44: =IF(E43="","",IF($D44<>"",AVERAGE(D44:OFFSET(D44,-MIN($H$3,COUNT(D$10:$D44)),0)),"")) -> 171.834 | F44: =IF(F43="","",IF($D44<>"",SUMPRODUCT(B$10:OFFSET($B$10,MIN($H$3,$A44)-1,0),OFFSET(D44,1-MIN($H$3,$A44),0):D44)/$I$4,"")) -> 172.1638971 | G44: =IF(G43="","",IF($D44<>"",SUMPRODUCT(B$10:OFFSET($B$10,MIN($H$4,$A44)-1,0),OFFSET(D44,1-MIN($H$4,$A44),0):D44)/$I$5,"")) -> 172.5238611 | H44: 172.2641858 | I44: 172.8838252 | J44: =IF(J43="","",IF($D44<>"",SUMPRODUCT(B$10:OFFSET($B$10,MIN($K$3,$A44)-1,0),OFFSET(I44,1-MIN($K$3,$A44),0):I44)/$L$4,"")) -> 172.6682236 | M44: 173.288 | Q44: 172.6682236
A45: 36 | C45: -15 | D45: 173.073 | E45: =IF(E44="","",IF($D45<>"",AVERAGE(D45:OFFSET(D45,-MIN($H$3,COUNT(D$10:$D45)),0)),"")) -> 171.9500588 | F45: =IF(F44="","",IF($D45<>"",SUMPRODUCT(B$10:OFFSET($B$10,MIN($H$3,$A45)-1,0),OFFSET(D45,1-MIN($H$3,$A45),0):D45)/$I$4,"")) -> 172.3042647 | G45: =IF(G44="","",IF($D45<>"",SUMPRODUCT(B$10:OFFSET($B$10,MIN($H$4,$A45)-1,0),OFFSET(D45,1-MIN($H$4,$A45),0):D45)/$I$5,"")) -> 172.6735 | H45: 172.3593404 | I45: 173.0427353 | J45: =IF(J44="","",IF($D45<>"",SUMPRODUCT(B$10:OFFSET($B$10,MIN($K$3,$A45)-1,0),OFFSET(I45,1-MIN($K$3,$A45),0):I45)/$L$4,"")) -> 172.8471896 | M45: 173.073 | Q45: 172.8471896
A46: 37 | C46: -14 | D46: 172.473 | E46: =IF(E45="","",IF($D46<>"",AVERAGE(D46:OFFSET(D46,-MIN($H$3,COUNT(D$10:$D46)),0)),"")) -> 172.0050588 | F46: =IF(F45="","",IF($D46<>"",SUMPRODUCT(B$10:OFFSET($B$10,MIN($H$3,$A46)-1,0),OFFSET(D46,1-MIN($H$3,$A46),0):D46)/$I$4,"")) -> 172.3627574 | G46: =IF(G45="","",IF($D46<>"",SUMPRODUCT(B$10:OFFSET($B$10,MIN($H$4,$A46)-1,0),OFFSET(D46,1-MIN($H$4,$A46),0):D46)/$I$5,"")) -> 172.6649444 | H46: 172.3727122 | I46: 172.9671315 | J46: =IF(J45="","",IF($D46<>"",SUMPRODUCT(B$10:OFFSET($B$10,MIN($K$3,$A46)-1,0),OFFSET(I46,1-MIN($K$3,$A46),0):I46)/$L$4,"")) -> 172.9373402 | M46: 172.473 | Q46: 172.9373402
A47: 38 | C47: -13 | D47: 171.881 | E47: =IF(E46="","",IF($D47<>"",AVERAGE(D47:OFFSET(D47,-MIN($H$3,COUNT(D$10:$D47)),0)),"")) -> 172.0034706 | F47: =IF(F46="","",IF($D47<>"",SUMPRODUCT(B$10:OFFSET($B$10,MIN($H$3,$A47)-1,0),OFFSET(D47,1-MIN($H$3,$A47),0):D47)/$I$4,"")) -> 172.3474485 | G47: =IF(G46="","",IF($D47<>"",SUMPRODUCT(B$10:OFFSET($B$10,MIN($H$4,$A47)-1,0),OFFSET(D47,1-MIN($H$4,$A47),0):D47)/$I$5,"")) -> 172.5175556 | H47: 172.3148637 | I47: 172.6876626 | J47: =IF(J46="","",IF($D47<>"",SUMPRODUCT(B$10:OFFSET($B$10,MIN($K$3,$A47)-1,0),OFFSET(I47,1-MIN($K$3,$A47),0):I47)/$L$4,"")) -> 172.8621341 | M47: 171.881 | Q47: 172.8621341
A48: 39 | C48: -12 | D48: 171.642 | E48: =IF(E47="","",IF($D48<>"",AVERAGE(D48:OFFSET(D48,-MIN($H$3,COUNT(D$10:$D48)),0)),"")) -> 172.0463529 | F48: =IF(F47="","",IF($D48<>"",SUMPRODUCT(B$10:OFFSET($B$10,MIN($H$3,$A48)-1,0),OFFSET(D48,1-MIN($H$3,$A48),0):D48)/$I$4,"")) -> 172.2969044 | G48: =IF(G47="","",IF($D48<>"",SUMPRODUCT(B$10:OFFSET($B$10,MIN($H$4,$A48)-1,0),OFFSET(D48,1-MIN($H$4,$A48),0):D48)/$I$5,"")) -> 172.3341944 | H48: 172.2357032 | I48: 172.3714845 | J48: =IF(J47="","",IF($D48<>"",SUMPRODUCT(B$10:OFFSET($B$10,MIN($K$3,$A48)-1,0),OFFSET(I48,1-MIN($K$3,$A48),0):I48)/$L$4,"")) -> 172.6525924 | M48: 171.642 | Q48: 172.6525924
A49: 40 | C49: -11 | D49: 170.743 | E49: =IF(E48="","",IF($D49<>"",AVERAGE(D49:OFFSET(D49,-MIN($H$3,COUNT(D$10:$D49)),0)),"")) -> 172.0348824 | F49: =IF(F48="","",IF($D49<>"",SUMPRODUCT(B$10:OFFSET($B$10,MIN($H$3,$A49)-1,0),OFFSET(D49,1-MIN($H$3,$A49),0):D49)/$I$4,"")) -> 172.1354191 | G49: =IF(G48="","",IF($D49<>"",SUMPRODUCT(B$10:OFFSET($B$10,MIN($H$4,$A49)-1,0),OFFSET(D49,1-MIN($H$4,$A49),0):D49)/$I$5,"")) -> 171.9638611 | H49: 172.0600911 | I49: 171.7923031 | J49: =IF(J48="","",IF($D49<>"",SUMPRODUCT(B$10:OFFSET($B$10,MIN($K$3,$A49)-1,0),OFFSET(I49,1-MIN($K$3,$A49),0):I49)/$L$4,"")) -> 172.2626123 | M49: 170.743 | Q49: 172.2626123
A50: 41 | C50: -10 | D50: 171.018 | E50: =IF(E49="","",IF($D50<>"",AVERAGE(D50:OFFSET(D50,-MIN($H$3,COUNT(D$10:$D50)),0)),"")) -> 172.045 | F50: =IF(F49="","",IF($D50<>"",SUMPRODUCT(B$10:OFFSET($B$10,MIN($H$3,$A50)-1,0),OFFSET(D50,1-MIN($H$3,$A50),0):D50)/$I$4,"")) -> 172.0070441 | G50: =IF(G49="","",IF($D50<>"",SUMPRODUCT(B$10:OFFSET($B$10,MIN($H$4,$A50)-1,0),OFFSET(D50,1-MIN($H$4,$A50),0):D50)/$I$5,"")) -> 171.6946389 | H50: 171.9374921 | I50: 171.3822337 | J50: =IF(J49="","",IF($D50<>"",SUMPRODUCT(B$10:OFFSET($B$10,MIN($K$3,$A50)-1,0),OFFSET(I50,1-MIN($K$3,$A50),0):I50)/$L$4,"")) -> 171.8336475 | M50: 171.018 | Q50: 171.8336475
A51: 42 | C51: -9 | D51: 173.198 | E51: =IF(E50="","",IF($D51<>"",AVERAGE(D51:OFFSET(D51,-MIN($H$3,COUNT(D$10:$D51)),0)),"")) -> 172.1411765 | F51: =IF(F50="","",IF($D51<>"",SUMPRODUCT(B$10:OFFSET($B$10,MIN($H$3,$A51)-1,0),OFFSET(D51,1-MIN($H$3,$A51),0):D51)/$I$4,"")) -> 172.1391471 | G51: =IF(G50="","",IF($D51<>"",SUMPRODUCT(B$10:OFFSET($B$10,MIN($H$4,$A51)-1,0),OFFSET(D51,1-MIN($H$4,$A51),0):D51)/$I$5,"")) -> 171.9376389 | H51: 172.0857872 | I51: 171.7361307 | J51: =IF(J50="","",IF($D51<>"",SUMPRODUCT(B$10:OFFSET($B$10,MIN($K$3,$A51)-1,0),OFFSET(I51,1-MIN($K$3,$A51),0):I51)/$L$4,"")) -> 171.7047315 | M51: 173.198 | Q51: 171.7047315
A52: 43 | C52: -8 | D52: 174.083 | E52: =IF(E51="","",IF($D52<>"",AVERAGE(D52:OFFSET(D52,-MIN($H$3,COUNT(D$10:$D52)),0)),"")) -> 172.3226471 | F52: =IF(F51="","",IF($D52<>"",SUMPRODUCT(B$10:OFFSET($B$10,MIN($H$3,$A52)-1,0),OFFSET(D52,1-MIN($H$3,$A52),0):D52)/$I$4,"")) -> 172.3591912 | G52: =IF(G51="","",IF($D52<>"",SUMPRODUCT(B$10:OFFSET($B$10,MIN($H$4,$A52)-1,0),OFFSET(D52,1-MIN($H$4,$A52),0):D52)/$I$5,"")) -> 172.3639722 | H52: 172.3207534 | I52: 172.3687533 | J52: =IF(J51="","",IF($D52<>"",SUMPRODUCT(B$10:OFFSET($B$10,MIN($K$3,$A52)-1,0),OFFSET(I52,1-MIN($K$3,$A52),0):I52)/$L$4,"")) -> 171.9240176 | M52: 174.083 | Q52: 171.9240176
A53: 44 | C53: -7 | D53: 174.588 | E53: =IF(E52="","",IF($D53<>"",AVERAGE(D53:OFFSET(D53,-MIN($H$3,COUNT(D$10:$D53)),0)),"")) -> 172.4644706 | F53: =IF(F52="","",IF($D53<>"",SUMPRODUCT(B$10:OFFSET($B$10,MIN($H$3,$A53)-1,0),OFFSET(D53,1-MIN($H$3,$A53),0):D53)/$I$4,"")) -> 172.6246324 | G53: =IF(G52="","",IF($D53<>"",SUMPRODUCT(B$10:OFFSET($B$10,MIN($H$4,$A53)-1,0),OFFSET(D53,1-MIN($H$4,$A53),0):D53)/$I$5,"")) -> 172.8804444 | H53: 172.5874883 | I53: 173.1362565 | J53: =IF(J52="","",IF($D53<>"",SUMPRODUCT(B$10:OFFSET($B$10,MIN($K$3,$A53)-1,0),OFFSET(I53,1-MIN($K$3,$A53),0):I53)/$L$4,"")) -> 172.4505781 | M53: 174.588 | Q53: 172.4505781
A54: 45 | C54: -6 | D54: 173.978 | E54: =IF(E53="","",IF($D54<>"",AVERAGE(D54:OFFSET(D54,-MIN($H$3,COUNT(D$10:$D54)),0)),"")) -> 172.5703529 | F54: =IF(F53="","",IF($D54<>"",SUMPRODUCT(B$10:OFFSET($B$10,MIN($H$3,$A54)-1,0),OFFSET(D54,1-MIN($H$3,$A54),0):D54)/$I$4,"")) -> 172.8005882 | G54: =IF(G53="","",IF($D54<>"",SUMPRODUCT(B$10:OFFSET($B$10,MIN($H$4,$A54)-1,0),OFFSET(D54,1-MIN($H$4,$A54),0):D54)/$I$5,"")) -> 173.2192778 | H54: 172.7510779 | I54: 173.6379673 | J54: =IF(J53="","",IF($D54<>"",SUMPRODUCT(B$10:OFFSET($B$10,MIN($K$3,$A54)-1,0),OFFSET(I54,1-MIN($K$3,$A54),0):I54)/$L$4,"")) -> 173.0434276 | M54: 173.978 | Q54: 173.0434276
A55: 46 | C55: -5 | D55: 174.357 | E55: =IF(E54="","",IF($D55<>"",AVERAGE(D55:OFFSET(D55,-MIN($H$3,COUNT(D$10:$D55)),0)),"")) -> 172.6965882 | F55: =IF(F54="","",IF($D55<>"",SUMPRODUCT(B$10:OFFSET($B$10,MIN($H$3,$A55)-1,0),OFFSET(D55,1-MIN($H$3,$A55),0):D55)/$I$4,"")) -> 173.0081397 | G55: =IF(G54="","",IF($D55<>"",SUMPRODUCT(B$10:OFFSET($B$10,MIN($H$4,$A55)-1,0),OFFSET(D55,1-MIN($H$4,$A55),0):D55)/$I$5,"")) -> 173.6005278 | H55: 172.9400099 | I55: 174.1929158 | J55: =IF(J54="","",IF($D55<>"",SUMPRODUCT(B$10:OFFSET($B$10,MIN($K$3,$A55)-1,0),OFFSET(I55,1-MIN($K$3,$A55),0):I55)/$L$4,"")) -> 173.6326832 | M55: 174.357 | Q55: 173.6326832
A56: 47 | C56: -4 | D56: 176.335 | E56: =IF(E55="","",IF($D56<>"",AVERAGE(D56:OFFSET(D56,-MIN($H$3,COUNT(D$10:$D56)),0)),"")) -> 172.9222941 | F56: =IF(F55="","",IF($D56<>"",SUMPRODUCT(B$10:OFFSET($B$10,MIN($H$3,$A56)-1,0),OFFSET(D56,1-MIN($H$3,$A56),0):D56)/$I$4,"")) -> 173.4347279 | G56: =IF(G55="","",IF($D56<>"",SUMPRODUCT(B$10:OFFSET($B$10,MIN($H$4,$A56)-1,0),OFFSET(D56,1-MIN($H$4,$A56),0):D56)/$I$5,"")) -> 174.3525556 | H56: 173.3394205 | I56: 175.2703832 | J56: =IF(J55="","",IF($D56<>"",SUMPRODUCT(B$10:OFFSET($B$10,MIN($K$3,$A56)-1,0),OFFSET(I56,1-MIN($K$3,$A56),0):I56)/$L$4,"")) -> 174.4072471 | M56: 176.335 | Q56: 174.4072471
A57: 48 | C57: -3 | D57: 178.122 | E57: =IF(E56="","",IF($D57<>"",AVERAGE(D57:OFFSET(D57,-MIN($H$3,COUNT(D$10:$D57)),0)),"")) -> 173.2763529 | F57: =IF(F56="","",IF($D57<>"",SUMPRODUCT(B$10:OFFSET($B$10,MIN($H$3,$A57)-1,0),OFFSET(D57,1-MIN($H$3,$A57),0):D57)/$I$4,"")) -> 174.0404338 | G57: =IF(G56="","",IF($D57<>"",SUMPRODUCT(B$10:OFFSET($B$10,MIN($H$4,$A57)-1,0),OFFSET(D57,1-MIN($H$4,$A57),0):D57)/$I$5,"")) -> 175.3713333 | H57: 173.9020769 | I57: 176.7022328 | J57: =IF(J56="","",IF($D57<>"",SUMPRODUCT(B$10:OFFSET($B$10,MIN($K$3,$A57)-1,0),OFFSET(I57,1-MIN($K$3,$A57),0):I57)/$L$4,"")) -> 175.464388 | M57: 178.122 | Q57: 175.464388
A58: 49 | C58: -2 | D58: 177.557 | E58: =IF(E57="","",IF($D58<>"",AVERAGE(D58:OFFSET(D58,-MIN($H$3,COUNT(D$10:$D58)),0)),"")) -> 173.5924706 | F58: =IF(F57="","",IF($D58<>"",SUMPRODUCT(B$10:OFFSET($B$10,MIN($H$3,$A58)-1,0),OFFSET(D58,1-MIN($H$3,$A58),0):D58)/$I$4,"")) -> 174.536 | G58: =IF(G57="","",IF($D58<>"",SUMPRODUCT(B$10:OFFSET($B$10,MIN($H$4,$A58)-1,0),OFFSET(D58,1-MIN($H$4,$A58),0):D58)/$I$5,"")) -> 176.0595833 | H58: 174.3320679 | I58: 177.5831667 | J58: =IF(J57="","",IF($D58<>"",SUMPRODUCT(B$10:OFFSET($B$10,MIN($K$3,$A58)-1,0),OFFSET(I58,1-MIN($K$3,$A58),0):I58)/$L$4,"")) -> 176.5173047 | M58: 177.557 | Q58: 176.5173047
A59: 50 | C59: -1 | D59: 178.058 | E59: =IF(E58="","",IF($D59<>"",AVERAGE(D59:OFFSET(D59,-MIN($H$3,COUNT(D$10:$D59)),0)),"")) -> 173.9477647 | F59: =IF(F58="","",IF($D59<>"",SUMPRODUCT(B$10:OFFSET($B$10,MIN($H$3,$A59)-1,0),OFFSET(D59,1-MIN($H$3,$A59),0):D59)/$I$4,"")) -> 175.0497794 | G59: =IF(G58="","",IF($D59<>"",SUMPRODUCT(B$10:OFFSET($B$10,MIN($H$4,$A59)-1,0),OFFSET(D59,1-MIN($H$4,$A59),0):D59)/$I$5,"")) -> 176.6775278 | H59: 174.7704128 | I59: 178.3052761 | J59: =IF(J58="","",IF($D59<>"",SUMPRODUCT(B$10:OFFSET($B$10,MIN($K$3,$A59)-1,0),OFFSET(I59,1-MIN($K$3,$A59),0):I59)/$L$4,"")) -> 177.4645453 | M59: 178.058 | Q59: 177.4645453
A60: 51 | C60: 0 | D60: 178.428 | E60: =IF(E59="","",IF($D60<>"",AVERAGE(D60:OFFSET(D60,-MIN($H$3,COUNT(D$10:$D60)),0)),"")) -> 174.2836471 | F60: =IF(F59="","",IF($D60<>"",SUMPRODUCT(B$10:OFFSET($B$10,MIN($H$3,$A60)-1,0),OFFSET(D60,1-MIN($H$3,$A60),0):D60)/$I$4,"")) -> 175.5678235 | G60: =IF(G59="","",IF($D60<>"",SUMPRODUCT(B$10:OFFSET($B$10,MIN($H$4,$A60)-1,0),OFFSET(D60,1-MIN($H$4,$A60),0):D60)/$I$5,"")) -> 177.2426944 | H60: 175.2007172 | I60: 178.9175654 | J60: =IF(J59="","",IF($D60<>"",SUMPRODUCT(B$10:OFFSET($B$10,MIN($K$3,$A60)-1,0),OFFSET(I60,1-MIN($K$3,$A60),0):I60)/$L$4,"")) -> 178.2454656 | M60: 178.428 | Q60: 178.2454656
A61: 52 | C61: 1 | D61: 178.156 | E61: =IF(E60="","",IF($D61<>"",AVERAGE(D61:OFFSET(D61,-MIN($H$3,COUNT(D$10:$D61)),0)),"")) -> 174.57 | F61: =IF(F60="","",IF($D61<>"",SUMPRODUCT(B$10:OFFSET($B$10,MIN($H$3,$A61)-1,0),OFFSET(D61,1-MIN($H$3,$A61),0):D61)/$I$4,"")) -> 176.0160735 | G61: =IF(G60="","",IF($D61<>"",SUMPRODUCT(B$10:OFFSET($B$10,MIN($H$4,$A61)-1,0),OFFSET(D61,1-MIN($H$4,$A61),0):D61)/$I$5,"")) -> 177.6267222 | H61: 175.5483975 | I61: 179.2373709 | J61: =IF(J60="","",IF($D61<>"",SUMPRODUCT(B$10:OFFSET($B$10,MIN($K$3,$A61)-1,0),OFFSET(I61,1-MIN($K$3,$A61),0):I61)/$L$4,"")) -> 178.7895899 | M61: 178.156 | Q61: 178.7895899
A62: 53 | C62: 2 | D62: 177.426 | E62: =IF(E61="","",IF($D62<>"",AVERAGE(D62:OFFSET(D62,-MIN($H$3,COUNT(D$10:$D62)),0)),"")) -> 174.8260588 | F62: =IF(F61="","",IF($D62<>"",SUMPRODUCT(B$10:OFFSET($B$10,MIN($H$3,$A62)-1,0),OFFSET(D62,1-MIN($H$3,$A62),0):D62)/$I$4,"")) -> 176.3410662 | G62: =IF(G61="","",IF($D62<>"",SUMPRODUCT(B$10:OFFSET($B$10,MIN($H$4,$A62)-1,0),OFFSET(D62,1-MIN($H$4,$A62),0):D62)/$I$5,"")) -> 177.7494167 | H62: 175.7692919 | I62: 179.1577672 | J62: =IF(J61="","",IF($D62<>"",SUMPRODUCT(B$10:OFFSET($B$10,MIN($K$3,$A62)-1,0),OFFSET(I62,1-MIN($K$3,$A62),0):I62)/$L$4,"")) -> 179.0483588 | M62: 177.426 | Q62: 179.0483588
A63: 54 | C63: 3 | D63: 177.505 | E63: =IF(E62="","",IF($D63<>"",AVERAGE(D63:OFFSET(D63,-MIN($H$3,COUNT(D$10:$D63)),0)),"")) -> 175.1220588 | F63: =IF(F62="","",IF($D63<>"",SUMPRODUCT(B$10:OFFSET($B$10,MIN($H$3,$A63)-1,0),OFFSET(D63,1-MIN($H$3,$A63),0):D63)/$I$4,"")) -> 176.6389338 | G63: =IF(G62="","",IF($D63<>"",SUMPRODUCT(B$10:OFFSET($B$10,MIN($H$4,$A63)-1,0),OFFSET(D63,1-MIN($H$4,$A63),0):D63)/$I$5,"")) -> 177.7938889 | H63: 175.9734929 | I63: 178.948844 | J63: =IF(J62="","",IF($D63<>"",SUMPRODUCT(B$10:OFFSET($B$10,MIN($K$3,$A63)-1,0),OFFSET(I63,1-MIN($K$3,$A63),0):I63)/$L$4,"")) -> 179.0660984 | M63: 177.505 | Q63: 179.0660984
A64: 55 | C64: 4 | D64: 177.818 | E64: =IF(E63="","",IF($D64<>"",AVERAGE(D64:OFFSET(D64,-MIN($H$3,COUNT(D$10:$D64)),0)),"")) -> 175.4712941 | F64: =IF(F63="","",IF($D64<>"",SUMPRODUCT(B$10:OFFSET($B$10,MIN($H$3,$A64)-1,0),OFFSET(D64,1-MIN($H$3,$A64),0):D64)/$I$4,"")) -> 176.9322721 | G64: =IF(G63="","",IF($D64<>"",SUMPRODUCT(B$10:OFFSET($B$10,MIN($H$4,$A64)-1,0),OFFSET(D64,1-MIN($H$4,$A64),0):D64)/$I$5,"")) -> 177.8204722 | H64: 176.1904937 | I64: 178.7086724 | J64: =IF(J63="","",IF($D64<>"",SUMPRODUCT(B$10:OFFSET($B$10,MIN($K$3,$A64)-1,0),OFFSET(I64,1-MIN($K$3,$A64),0):I64)/$L$4,"")) -> 178.9234127 | M64: 177.818 | Q64: 178.9234127
A65: 56 | C65: 5 | D65: 177.732 | E65: =IF(E64="","",IF($D65<>"",AVERAGE(D65:OFFSET(D65,-MIN($H$3,COUNT(D$10:$D65)),0)),"")) -> 175.8295294 | F65: =IF(F64="","",IF($D65<>"",SUMPRODUCT(B$10:OFFSET($B$10,MIN($H$3,$A65)-1,0),OFFSET(D65,1-MIN($H$3,$A65),0):D65)/$I$4,"")) -> 177.1700809 | G65: =IF(G64="","",IF($D65<>"",SUMPRODUCT(B$10:OFFSET($B$10,MIN($H$4,$A65)-1,0),OFFSET(D65,1-MIN($H$4,$A65),0):D65)/$I$5,"")) -> 177.78675 | H65: 176.3718474 | I65: 178.4034191 | J65: =IF(J64="","",IF($D65<>"",SUMPRODUCT(B$10:OFFSET($B$10,MIN($K$3,$A65)-1,0),OFFSET(I65,1-MIN($K$3,$A65),0):I65)/$L$4,"")) -> 178.6795149 | M65: 177.732 | Q65: 178.6795149
A66: 57 | C66: 6 | D66: 176.238 | E66: =IF(E65="","",IF($D66<>"",AVERAGE(D66:OFFSET(D66,-MIN($H$3,COUNT(D$10:$D66)),0)),"")) -> 176.1527647 | F66: =IF(F65="","",IF($D66<>"",SUMPRODUCT(B$10:OFFSET($B$10,MIN($H$3,$A66)-1,0),OFFSET(D66,1-MIN($H$3,$A66),0):D66)/$I$4,"")) -> 177.1807353 | G66: =IF(G65="","",IF($D66<>"",SUMPRODUCT(B$10:OFFSET($B$10,MIN($H$4,$A66)-1,0),OFFSET(D66,1-MIN($H$4,$A66),0):D66)/$I$5,"")) -> 177.4318611 | H66: 176.3561007 | I66: 177.6829869 | J66: =IF(J65="","",IF($D66<>"",SUMPRODUCT(B$10:OFFSET($B$10,MIN($K$3,$A66)-1,0),OFFSET(I66,1-MIN($K$3,$A66),0):I66)/$L$4,"")) -> 178.2308394 | M66: 176.238 | Q66: 178.2308394
A67: 58 | C67: 7 | D67: 175.045 | E67: =IF(E66="","",IF($D67<>"",AVERAGE(D67:OFFSET(D67,-MIN($H$3,COUNT(D$10:$D67)),0)),"")) -> 176.3896471 | F67: =IF(F66="","",IF($D67<>"",SUMPRODUCT(B$10:OFFSET($B$10,MIN($H$3,$A67)-1,0),OFFSET(D67,1-MIN($H$3,$A67),0):D67)/$I$4,"")) -> 177.0126544 | G67: =IF(G66="","",IF($D67<>"",SUMPRODUCT(B$10:OFFSET($B$10,MIN($H$4,$A67)-1,0),OFFSET(D67,1-MIN($H$4,$A67),0):D67)/$I$5,"")) -> 176.8485 | H67: 176.2018535 | I67: 176.6843456 | J67: =IF(J66="","",IF($D67<>"",SUMPRODUCT(B$10:OFFSET($B$10,MIN($K$3,$A67)-1,0),OFFSET(I67,1-MIN($K$3,$A67),0):I67)/$L$4,"")) -> 177.5301854 | M67: 175.045 | Q67: 177.5301854
A68: 59 | C68: 8 | D68: 175.215 | E68: =IF(E67="","",IF($D68<>"",AVERAGE(D68:OFFSET(D68,-MIN($H$3,COUNT(D$10:$D68)),0)),"")) -> 176.5082941 | F68: =IF(F67="","",IF($D68<>"",SUMPRODUCT(B$10:OFFSET($B$10,MIN($H$3,$A68)-1,0),OFFSET(D68,1-MIN($H$3,$A68),0):D68)/$I$4,"")) -> 176.8509926 | G68: =IF(G67="","",IF($D68<>"",SUMPRODUCT(B$10:OFFSET($B$10,MIN($H$4,$A68)-1,0),OFFSET(D68,1-MIN($H$4,$A68),0):D68)/$I$5,"")) -> 176.3866111 | H68: 176.0857531 | I68: 175.9222296 | J68: =IF(J67="","",IF($D68<>"",SUMPRODUCT(B$10:OFFSET($B$10,MIN($K$3,$A68)-1,0),OFFSET(I68,1-MIN($K$3,$A68),0):I68)/$L$4,"")) -> 176.7511348 | M68: 175.215 | Q68: 176.7511348
A69: 60 | C69: 9 | D69: 174.938 | E69: =IF(E68="","",IF($D69<>"",AVERAGE(D69:OFFSET(D69,-MIN($H$3,COUNT(D$10:$D69)),0)),"")) -> 176.5585882 | F69: =IF(F68="","",IF($D69<>"",SUMPRODUCT(B$10:OFFSET($B$10,MIN($H$3,$A69)-1,0),OFFSET(D69,1-MIN($H$3,$A69),0):D69)/$I$4,"")) -> 176.6484191 | G69: =IF(G68="","",IF($D69<>"",SUMPRODUCT(B$10:OFFSET($B$10,MIN($H$4,$A69)-1,0),OFFSET(D69,1-MIN($H$4,$A69),0):D69)/$I$5,"")) -> 175.9524167 | H69: 175.9507233 | I69: 175.2564142 | J69: =IF(J68="","",IF($D69<>"",SUMPRODUCT(B$10:OFFSET($B$10,MIN($K$3,$A69)-1,0),OFFSET(I69,1-MIN($K$3,$A69),0):I69)/$L$4,"")) -> 175.9844024 | M69: 174.938 | Q69: 175.9844024
A70: 61 | C70: 10 | D70: 173.846 | E70: =IF(E69="","",IF($D70<>"",AVERAGE(D70:OFFSET(D70,-MIN($H$3,COUNT(D$10:$D70)),0)),"")) -> 176.5149412 | F70: =IF(F69="","",IF($D70<>"",SUMPRODUCT(B$10:OFFSET($B$10,MIN($H$3,$A70)-1,0),OFFSET(D70,1-MIN($H$3,$A70),0):D70)/$I$4,"")) -> 176.3148015 | G70: =IF(G69="","",IF($D70<>"",SUMPRODUCT(B$10:OFFSET($B$10,MIN($H$4,$A70)-1,0),OFFSET(D70,1-MIN($H$4,$A70),0):D70)/$I$5,"")) -> 175.3649444 | H70: 175.7031088 | I70: 174.4150874 | J70: =IF(J69="","",IF($D70<>"",SUMPRODUCT(B$10:OFFSET($B$10,MIN($K$3,$A70)-1,0),OFFSET(I70,1-MIN($K$3,$A70),0):I70)/$L$4,"")) -> 175.1958397 | M70: 173.846 | Q70: 175.1958397
A71: 62 | C71: 11 | D71: 174.737 | E71: =IF(E70="","",IF($D71<>"",AVERAGE(D71:OFFSET(D71,-MIN($H$3,COUNT(D$10:$D71)),0)),"")) -> 176.5595882 | F71: =IF(F70="","",IF($D71<>"",SUMPRODUCT(B$10:OFFSET($B$10,MIN($H$3,$A71)-1,0),OFFSET(D71,1-MIN($H$3,$A71),0):D71)/$I$4,"")) -> 176.0869779 | G71: =IF(G70="","",IF($D71<>"",SUMPRODUCT(B$10:OFFSET($B$10,MIN($H$4,$A71)-1,0),OFFSET(D71,1-MIN($H$4,$A71),0):D71)/$I$5,"")) -> 175.0749167 | H71: 175.589449 | I71: 174.0628554 | J71: =IF(J70="","",IF($D71<>"",SUMPRODUCT(B$10:OFFSET($B$10,MIN($K$3,$A71)-1,0),OFFSET(I71,1-MIN($K$3,$A71),0):I71)/$L$4,"")) -> 174.5931742 | M71: 174.737 | Q71: 174.5931742
A72: 63 | C72: 12 | D72: 173.788 | E72: =IF(E71="","",IF($D72<>"",AVERAGE(D72:OFFSET(D72,-MIN($H$3,COUNT(D$10:$D72)),0)),"")) -> 176.5261176 | F72: =IF(F71="","",IF($D72<>"",SUMPRODUCT(B$10:OFFSET($B$10,MIN($H$3,$A72)-1,0),OFFSET(D72,1-MIN($H$3,$A72),0):D72)/$I$4,"")) -> 175.7447132 | G72: =IF(G71="","",IF($D72<>"",SUMPRODUCT(B$10:OFFSET($B$10,MIN($H$4,$A72)-1,0),OFFSET(D72,1-MIN($H$4,$A72),0):D72)/$I$5,"")) -> 174.6508889 | H72: 175.3775138 | I72: 173.5570645 | J72: =IF(J71="","",IF($D72<>"",SUMPRODUCT(B$10:OFFSET($B$10,MIN($K$3,$A72)-1,0),OFFSET(I72,1-MIN($K$3,$A72),0):I72)/$L$4,"")) -> 174.0503413 | M72: 173.788 | Q72: 174.0503413
A73: 64 | C73: 13 | D73: 173.041 | E73: =IF(E72="","",IF($D73<>"",AVERAGE(D73:OFFSET(D73,-MIN($H$3,COUNT(D$10:$D73)),0)),"")) -> 176.3323529 | F73: =IF(F72="","",IF($D73<>"",SUMPRODUCT(B$10:OFFSET($B$10,MIN($H$3,$A73)-1,0),OFFSET(D73,1-MIN($H$3,$A73),0):D73)/$I$4,"")) -> 175.3332941 | G73: =IF(G72="","",IF($D73<>"",SUMPRODUCT(B$10:OFFSET($B$10,MIN($H$4,$A73)-1,0),OFFSET(D73,1-MIN($H$4,$A73),0):D73)/$I$5,"")) -> 174.1728056 | H73: 175.1026298 | I73: 173.012317 | J73: =IF(J72="","",IF($D73<>"",SUMPRODUCT(B$10:OFFSET($B$10,MIN($K$3,$A73)-1,0),OFFSET(I73,1-MIN($K$3,$A73),0):I73)/$L$4,"")) -> 173.526126 | M73: 173.041 | Q73: 173.526126
A74: 65 | C74: 14 | D74: 171.814 | E74: =IF(E73="","",IF($D74<>"",AVERAGE(D74:OFFSET(D74,-MIN($H$3,COUNT(D$10:$D74)),0)),"")) -> 175.9612941 | F74: =IF(F73="","",IF($D74<>"",SUMPRODUCT(B$10:OFFSET($B$10,MIN($H$3,$A74)-1,0),OFFSET(D74,1-MIN($H$3,$A74),0):D74)/$I$4,"")) -> 174.8148824 | G74: =IF(G73="","",IF($D74<>"",SUMPRODUCT(B$10:OFFSET($B$10,MIN($H$4,$A74)-1,0),OFFSET(D74,1-MIN($H$4,$A74),0):D74)/$I$5,"")) -> 173.5523611 | H74: 174.7157322 | I74: 172.2898399 | J74: =IF(J73="","",IF($D74<>"",SUMPRODUCT(B$10:OFFSET($B$10,MIN($K$3,$A74)-1,0),OFFSET(I74,1-MIN($K$3,$A74),0):I74)/$L$4,"")) -> 172.9373295 | M74: 171.814 | Q74: 172.9373295
A75: 66 | C75: 15 | D75: 170.226 | E75: =IF(E74="","",IF($D75<>"",AVERAGE(D75:OFFSET(D75,-MIN($H$3,COUNT(D$10:$D75)),0)),"")) -> 175.5300588 | F75: =IF(F74="","",IF($D75<>"",SUMPRODUCT(B$10:OFFSET($B$10,MIN($H$3,$A75)-1,0),OFFSET(D75,1-MIN($H$3,$A75),0):D75)/$I$4,"")) -> 174.151875 | G75: =IF(G74="","",IF($D75<>"",SUMPRODUCT(B$10:OFFSET($B$10,MIN($H$4,$A75)-1,0),OFFSET(D75,1-MIN($H$4,$A75),0):D75)/$I$5,"")) -> 172.7019167 | H75: 174.1875284 | I75: 171.2519583 | J75: =IF(J74="","",IF($D75<>"",SUMPRODUCT(B$10:OFFSET($B$10,MIN($K$3,$A75)-1,0),OFFSET(I75,1-MIN($K$3,$A75),0):I75)/$L$4,"")) -> 172.1459051 | M75: 170.226 | Q75: 172.1459051
A76: =1+A75 -> 67 | B76: =IF(A76<=$H$3,1+B75,"") ->  | C76: =1+C75 -> 16 | D76: 169.658 | E76: =IF(E75="","",IF($D76<>"",AVERAGE(D76:OFFSET(D76,-MIN($H$3,COUNT(D$10:$D76)),0)),"")) -> 175.0359412 | F76: =IF(F75="","",IF($D76<>"",SUMPRODUCT(B$10:OFFSET($B$10,MIN($H$3,$A76)-1,0),OFFSET(D76,1-MIN($H$3,$A76),0):D76)/$I$4,"")) -> 173.4796324 | G76: =IF(G75="","",IF($D76<>"",SUMPRODUCT(B$10:OFFSET($B$10,MIN($H$4,$A76)-1,0),OFFSET(D76,1-MIN($H$4,$A76),0):D76)/$I$5,"")) -> 171.8591111 | H76: =IF(H75="","",IF($D76<>"",$I$3*H75+(1-$I$3)*$D76,"")) -> 173.6546427 | I76: =IF(I75="","",IF($D76<>"",2*G76-F76,"")) -> 170.2385899 | J76: =IF(J75="","",IF($D76<>"",SUMPRODUCT(B$10:OFFSET($B$10,MIN($K$3,$A76)-1,0),OFFSET(I76,1-MIN($K$3,$A76),0):I76)/$L$4,"")) -> 171.2302231 | M76: 169.658 | Q76: 171.2302231
A77: 68 | C77: 17 | D77: 171.037 | E77: =IF(E76="","",IF($D77<>"",AVERAGE(D77:OFFSET(D77,-MIN($H$3,COUNT(D$10:$D77)),0)),"")) -> 174.6011765 | F77: =IF(F76="","",IF($D77<>"",SUMPRODUCT(B$10:OFFSET($B$10,MIN($H$3,$A77)-1,0),OFFSET(D77,1-MIN($H$3,$A77),0):D77)/$I$4,"")) -> 173.0341103 | G77: =IF(G76="","",IF($D77<>"",SUMPRODUCT(B$10:OFFSET($B$10,MIN($H$4,$A77)-1,0),OFFSET(D77,1-MIN($H$4,$A77),0):D77)/$I$5,"")) -> 171.4771111 | H77: 173.3466847 | I77: 169.9201119 | J77: =IF(J76="","",IF($D77<>"",SUMPRODUCT(B$10:OFFSET($B$10,MIN($K$3,$A77)-1,0),OFFSET(I77,1-MIN($K$3,$A77),0):I77)/$L$4,"")) -> 170.5189974 | M77: 171.037 | Q77: 170.5189974
A78: 69 | C78: 18 | D78: 171.974 | E78: =IF(E77="","",IF($D78<>"",AVERAGE(D78:OFFSET(D78,-MIN($H$3,COUNT(D$10:$D78)),0)),"")) -> 174.2375294 | F78: =IF(F77="","",IF($D78<>"",SUMPRODUCT(B$10:OFFSET($B$10,MIN($H$3,$A78)-1,0),OFFSET(D78,1-MIN($H$3,$A78),0):D78)/$I$4,"")) -> 172.7511691 | G78: =IF(G77="","",IF($D78<>"",SUMPRODUCT(B$10:OFFSET($B$10,MIN($H$4,$A78)-1,0),OFFSET(D78,1-MIN($H$4,$A78),0):D78)/$I$5,"")) -> 171.4116944 | H78: 173.1851924 | I78: 170.0722198 | J78: =IF(J77="","",IF($D78<>"",SUMPRODUCT(B$10:OFFSET($B$10,MIN($K$3,$A78)-1,0),OFFSET(I78,1-MIN($K$3,$A78),0):I78)/$L$4,"")) -> 170.1778353 | M78: 171.974 | Q78: 170.1778353
A79: 70 | C79: 19 | D79: 172.856 | E79: =IF(E78="","",IF($D79<>"",AVERAGE(D79:OFFSET(D79,-MIN($H$3,COUNT(D$10:$D79)),0)),"")) -> 173.9687059 | F79: =IF(F78="","",IF($D79<>"",SUMPRODUCT(B$10:OFFSET($B$10,MIN($H$3,$A79)-1,0),OFFSET(D79,1-MIN($H$3,$A79),0):D79)/$I$4,"")) -> 172.6120809 | G79: =IF(G78="","",IF($D79<>"",SUMPRODUCT(B$10:OFFSET($B$10,MIN($H$4,$A79)-1,0),OFFSET(D79,1-MIN($H$4,$A79),0):D79)/$I$5,"")) -> 171.5942778 | H79: 173.1464639 | I79: 170.5764747 | J79: =IF(J78="","",IF($D79<>"",SUMPRODUCT(B$10:OFFSET($B$10,MIN($K$3,$A79)-1,0),OFFSET(I79,1-MIN($K$3,$A79),0):I79)/$L$4,"")) -> 170.2601372 | M79: 172.856 | Q79: 170.2601372
A80: 71 | C80: 20 | D80: 172.367 | E80: =IF(E79="","",IF($D80<>"",AVERAGE(D80:OFFSET(D80,-MIN($H$3,COUNT(D$10:$D80)),0)),"")) -> 173.6664706 | F80: =IF(F79="","",IF($D80<>"",SUMPRODUCT(B$10:OFFSET($B$10,MIN($H$3,$A80)-1,0),OFFSET(D80,1-MIN($H$3,$A80),0):D80)/$I$4,"")) -> 172.4496471 | G80: =IF(G79="","",IF($D80<>"",SUMPRODUCT(B$10:OFFSET($B$10,MIN($H$4,$A80)-1,0),OFFSET(D80,1-MIN($H$4,$A80),0):D80)/$I$5,"")) -> 171.7204444 | H80: 173.0547623 | I80: 170.9912418 | J80: =IF(J79="","",IF($D80<>"",SUMPRODUCT(B$10:OFFSET($B$10,MIN($K$3,$A80)-1,0),OFFSET(I80,1-MIN($K$3,$A80),0):I80)/$L$4,"")) -> 170.5758943 | M80: 172.367 | Q80: 170.5758943
A81: 72 | C81: 21 | D81: 171.946 | E81: =IF(E80="","",IF($D81<>"",AVERAGE(D81:OFFSET(D81,-MIN($H$3,COUNT(D$10:$D81)),0)),"")) -> 173.3210588 | F81: =IF(F80="","",IF($D81<>"",SUMPRODUCT(B$10:OFFSET($B$10,MIN($H$3,$A81)-1,0),OFFSET(D81,1-MIN($H$3,$A81),0):D81)/$I$4,"")) -> 172.2777647 | G81: =IF(G80="","",IF($D81<>"",SUMPRODUCT(B$10:OFFSET($B$10,MIN($H$4,$A81)-1,0),OFFSET(D81,1-MIN($H$4,$A81),0):D81)/$I$5,"")) -> 171.7925278 | H81: 172.9243196 | I81: 171.3072908 | J81: =IF(J80="","",IF($D81<>"",SUMPRODUCT(B$10:OFFSET($B$10,MIN($K$3,$A81)-1,0),OFFSET(I81,1-MIN($K$3,$A81),0):I81)/$L$4,"")) -> 170.9428058 | M81: 171.946 | Q81: 170.9428058
A82: 73 | C82: 22 | D82: 173.527 | E82: =IF(E81="","",IF($D82<>"",AVERAGE(D82:OFFSET(D82,-MIN($H$3,COUNT(D$10:$D82)),0)),"")) -> 173.0737059 | F82: =IF(F81="","",IF($D82<>"",SUMPRODUCT(B$10:OFFSET($B$10,MIN($H$3,$A82)-1,0),OFFSET(D82,1-MIN($H$3,$A82),0):D82)/$I$4,"")) -> 172.3344265 | G82: =IF(G81="","",IF($D82<>"",SUMPRODUCT(B$10:OFFSET($B$10,MIN($H$4,$A82)-1,0),OFFSET(D82,1-MIN($H$4,$A82),0):D82)/$I$5,"")) -> 172.2463611 | H82: 172.9952232 | I82: 172.1582958 | J82: =IF(J81="","",IF($D82<>"",SUMPRODUCT(B$10:OFFSET($B$10,MIN($K$3,$A82)-1,0),OFFSET(I82,1-MIN($K$3,$A82),0):I82)/$L$4,"")) -> 171.5114014 | M82: 173.527 | Q82: 171.5114014
A83: 74 | C83: 23 | D83: 173.992 | E83: =IF(E82="","",IF($D83<>"",AVERAGE(D83:OFFSET(D83,-MIN($H$3,COUNT(D$10:$D83)),0)),"")) -> 172.9415882 | F83: =IF(F82="","",IF($D83<>"",SUMPRODUCT(B$10:OFFSET($B$10,MIN($H$3,$A83)-1,0),OFFSET(D83,1-MIN($H$3,$A83),0):D83)/$I$4,"")) -> 172.4657279 | G83: =IF(G82="","",IF($D83<>"",SUMPRODUCT(B$10:OFFSET($B$10,MIN($H$4,$A83)-1,0),OFFSET(D83,1-MIN($H$4,$A83),0):D83)/$I$5,"")) -> 172.7559444 | H83: 173.1124911 | I83: 173.0461609 | J83: =IF(J82="","",IF($D83<>"",SUMPRODUCT(B$10:OFFSET($B$10,MIN($K$3,$A83)-1,0),OFFSET(I83,1-MIN($K$3,$A83),0):I83)/$L$4,"")) -> 172.2265355 | M83: 173.992 | Q83: 172.2265355
A84: 75 | C84: 24 | D84: 173.786 | E84: =IF(E83="","",IF($D84<>"",AVERAGE(D84:OFFSET(D84,-MIN($H$3,COUNT(D$10:$D84)),0)),"")) -> 172.8675294 | F84: =IF(F83="","",IF($D84<>"",SUMPRODUCT(B$10:OFFSET($B$10,MIN($H$3,$A84)-1,0),OFFSET(D84,1-MIN($H$3,$A84),0):D84)/$I$4,"")) -> 172.5805368 | G84: =IF(G83="","",IF($D84<>"",SUMPRODUCT(B$10:OFFSET($B$10,MIN($H$4,$A84)-1,0),OFFSET(D84,1-MIN($H$4,$A84),0):D84)/$I$5,"")) -> 173.1151389 | H84: 173.1917274 | I84: 173.649741 | J84: =IF(J83="","",IF($D84<>"",SUMPRODUCT(B$10:OFFSET($B$10,MIN($K$3,$A84)-1,0),OFFSET(I84,1-MIN($K$3,$A84),0):I84)/$L$4,"")) -> 172.9361329 | M84: 173.786 | Q84: 172.9361329
A85: 76 | C85: 25 | D85: 174.458 | E85: =IF(E84="","",IF($D85<>"",AVERAGE(D85:OFFSET(D85,-MIN($H$3,COUNT(D$10:$D85)),0)),"")) -> 172.823 | F85: =IF(F84="","",IF($D85<>"",SUMPRODUCT(B$10:OFFSET($B$10,MIN($H$3,$A85)-1,0),OFFSET(D85,1-MIN($H$3,$A85),0):D85)/$I$4,"")) -> 172.7849118 | G85: =IF(G84="","",IF($D85<>"",SUMPRODUCT(B$10:OFFSET($B$10,MIN($H$4,$A85)-1,0),OFFSET(D85,1-MIN($H$4,$A85),0):D85)/$I$5,"")) -> 173.509 | H85: 173.3407007 | I85: 174.2330882 | J85: =IF(J84="","",IF($D85<>"",SUMPRODUCT(B$10:OFFSET($B$10,MIN($K$3,$A85)-1,0),OFFSET(I85,1-MIN($K$3,$A85),0):I85)/$L$4,"")) -> 173.6132194 | M85: 174.458 | Q85: 173.6132194
A86: 77 | C86: 26 | D86: 174.343 | E86: =IF(E85="","",IF($D86<>"",AVERAGE(D86:OFFSET(D86,-MIN($H$3,COUNT(D$10:$D86)),0)),"")) -> 172.788 | F86: =IF(F85="","",IF($D86<>"",SUMPRODUCT(B$10:OFFSET($B$10,MIN($H$3,$A86)-1,0),OFFSET(D86,1-MIN($H$3,$A86),0):D86)/$I$4,"")) -> 172.9792868 | G86: =IF(G85="","",IF($D86<>"",SUMPRODUCT(B$10:OFFSET($B$10,MIN($H$4,$A86)-1,0),OFFSET(D86,1-MIN($H$4,$A86),0):D86)/$I$5,"")) -> 173.7822778 | H86: 173.4586182 | I86: 174.5852688 | J86: =IF(J85="","",IF($D86<>"",SUMPRODUCT(B$10:OFFSET($B$10,MIN($K$3,$A86)-1,0),OFFSET(I86,1-MIN($K$3,$A86),0):I86)/$L$4,"")) -> 174.1385983 | M86: 174.343 | Q86: 174.1385983
A87: 78 | C87: 27 | D87: 174.735 | E87: =IF(E86="","",IF($D87<>"",AVERAGE(D87:OFFSET(D87,-MIN($H$3,COUNT(D$10:$D87)),0)),"")) -> 172.8402941 | F87: =IF(F86="","",IF($D87<>"",SUMPRODUCT(B$10:OFFSET($B$10,MIN($H$3,$A87)-1,0),OFFSET(D87,1-MIN($H$3,$A87),0):D87)/$I$4,"")) -> 173.216125 | G87: =IF(G86="","",IF($D87<>"",SUMPRODUCT(B$10:OFFSET($B$10,MIN($H$4,$A87)-1,0),OFFSET(D87,1-MIN($H$4,$A87),0):D87)/$I$5,"")) -> 174.0768611 | H87: 173.6087808 | I87: 174.9375972 | J87: =IF(J86="","",IF($D87<>"",SUMPRODUCT(B$10:OFFSET($B$10,MIN($K$3,$A87)-1,0),OFFSET(I87,1-MIN($K$3,$A87),0):I87)/$L$4,"")) -> 174.5622113 | M87: 174.735 | Q87: 174.5622113
A88: 79 | C88: 28 | D88: 179.629 | E88: =IF(E87="","",IF($D88<>"",AVERAGE(D88:OFFSET(D88,-MIN($H$3,COUNT(D$10:$D88)),0)),"")) -> 173.1280588 | F88: =IF(F87="","",IF($D88<>"",SUMPRODUCT(B$10:OFFSET($B$10,MIN($H$3,$A88)-1,0),OFFSET(D88,1-MIN($H$3,$A88),0):D88)/$I$4,"")) -> 174.0287426 | G88: =IF(G87="","",IF($D88<>"",SUMPRODUCT(B$10:OFFSET($B$10,MIN($H$4,$A88)-1,0),OFFSET(D88,1-MIN($H$4,$A88),0):D88)/$I$5,"")) -> 175.4068056 | H88: 174.3170419 | I88: 176.7848685 | J88: =IF(J87="","",IF($D88<>"",SUMPRODUCT(B$10:OFFSET($B$10,MIN($K$3,$A88)-1,0),OFFSET(I88,1-MIN($K$3,$A88),0):I88)/$L$4,"")) -> 175.5355891 | M88: 179.629 | Q88: 175.5355891
A89: 80 | C89: 29 | D89: 182.134 | E89: =IF(E88="","",IF($D89<>"",AVERAGE(D89:OFFSET(D89,-MIN($H$3,COUNT(D$10:$D89)),0)),"")) -> 173.619 | F89: =IF(F88="","",IF($D89<>"",SUMPRODUCT(B$10:OFFSET($B$10,MIN($H$3,$A89)-1,0),OFFSET(D89,1-MIN($H$3,$A89),0):D89)/$I$4,"")) -> 175.0931176 | G89: =IF(G88="","",IF($D89<>"",SUMPRODUCT(B$10:OFFSET($B$10,MIN($H$4,$A89)-1,0),OFFSET(D89,1-MIN($H$4,$A89),0):D89)/$I$5,"")) -> 177.0916944 | H89: 175.236684 | I89: 179.0902712 | J89: =IF(J88="","",IF($D89<>"",SUMPRODUCT(B$10:OFFSET($B$10,MIN($K$3,$A89)-1,0),OFFSET(I89,1-MIN($K$3,$A89),0):I89)/$L$4,"")) -> 177.1176154 | M89: 182.134 | Q89: 177.1176154
A90: 81 | C90: 30 | D90: 181.778 | E90: =IF(E89="","",IF($D90<>"",AVERAGE(D90:OFFSET(D90,-MIN($H$3,COUNT(D$10:$D90)),0)),"")) -> 174.1329412 | F90: =IF(F89="","",IF($D90<>"",SUMPRODUCT(B$10:OFFSET($B$10,MIN($H$3,$A90)-1,0),OFFSET(D90,1-MIN($H$3,$A90),0):D90)/$I$4,"")) -> 176.04875 | G90: =IF(G89="","",IF($D90<>"",SUMPRODUCT(B$10:OFFSET($B$10,MIN($H$4,$A90)-1,0),OFFSET(D90,1-MIN($H$4,$A90),0):D90)/$I$5,"")) -> 178.4144722 | H90: 176.0062506 | I90: 180.7801944 | J90: =IF(J89="","",IF($D90<>"",SUMPRODUCT(B$10:OFFSET($B$10,MIN($K$3,$A90)-1,0),OFFSET(I90,1-MIN($K$3,$A90),0):I90)/$L$4,"")) -> 178.8898926 | M90: 181.778 | Q90: 178.8898926
A91: 82 | C91: 31 | D91: 183.137 | E91: =IF(E90="","",IF($D91<>"",AVERAGE(D91:OFFSET(D91,-MIN($H$3,COUNT(D$10:$D91)),0)),"")) -> 174.799 | F91: =IF(F90="","",IF($D91<>"",SUMPRODUCT(B$10:OFFSET($B$10,MIN($H$3,$A91)-1,0),OFFSET(D91,1-MIN($H$3,$A91),0):D91)/$I$4,"")) -> 177.091 | G91: =IF(G90="","",IF($D91<>"",SUMPRODUCT(B$10:OFFSET($B$10,MIN($H$4,$A91)-1,0),OFFSET(D91,1-MIN($H$4,$A91),0):D91)/$I$5,"")) -> 179.8100556 | H91: 176.8451623 | I91: 182.5291111 | J91: =IF(J90="","",IF($D91<>"",SUMPRODUCT(B$10:OFFSET($B$10,MIN($K$3,$A91)-1,0),OFFSET(I91,1-MIN($K$3,$A91),0):I91)/$L$4,"")) -> 180.7422439 | M91: 183.137 | Q91: 180.7422439
A92: 83 | C92: 32 | D92: 182.373 | E92: =IF(E91="","",IF($D92<>"",AVERAGE(D92:OFFSET(D92,-MIN($H$3,COUNT(D$10:$D92)),0)),"")) -> 175.5135294 | F92: =IF(F91="","",IF($D92<>"",SUMPRODUCT(B$10:OFFSET($B$10,MIN($H$3,$A92)-1,0),OFFSET(D92,1-MIN($H$3,$A92),0):D92)/$I$4,"")) -> 177.9484338 | G92: =IF(G91="","",IF($D92<>"",SUMPRODUCT(B$10:OFFSET($B$10,MIN($H$4,$A92)-1,0),OFFSET(D92,1-MIN($H$4,$A92),0):D92)/$I$5,"")) -> 180.7818333 | H92: 177.4954961 | I92: 183.6152328 | J92: =IF(J91="","",IF($D92<>"",SUMPRODUCT(B$10:OFFSET($B$10,MIN($K$3,$A92)-1,0),OFFSET(I92,1-MIN($K$3,$A92),0):I92)/$L$4,"")) -> 182.2698925 | M92: =IF($M$26=TRUE,D92,"") -> 182.373 | N92: =IF($N$26=TRUE,E92,"") ->  | O92: =IF($O$26=TRUE,F92,"") ->  | P92: =IF($P$26=TRUE,H92,"") ->  | Q92: =IF($Q$26=TRUE,J92,"") -> 182.2698925
A93: 84 | C93: 33 | D93: 181.803 | E93: =IF(E92="","",IF($D93<>"",AVERAGE(D93:OFFSET(D93,-MIN($H$3,COUNT(D$10:$D93)),0)),"")) -> 176.2279412 | F93: =IF(F92="","",IF($D93<>"",SUMPRODUCT(B$10:OFFSET($B$10,MIN($H$3,$A93)-1,0),OFFSET(D93,1-MIN($H$3,$A93),0):D93)/$I$4,"")) -> 178.6453162 | G93: =IF(G92="","",IF($D93<>"",SUMPRODUCT(B$10:OFFSET($B$10,MIN($H$4,$A93)-1,0),OFFSET(D93,1-MIN($H$4,$A93),0):D93)/$I$5,"")) -> 181.3884167 | H93: 178.0022613 | I93: 184.1315172 | J93: =IF(J92="","",IF($D93<>"",SUMPRODUCT(B$10:OFFSET($B$10,MIN($K$3,$A93)-1,0),OFFSET(I93,1-MIN($K$3,$A93),0):I93)/$L$4,"")) -> 183.3210184 | M93: 181.803 | Q93: 183.3210184
A94: 85 | C94: 34 | D94: 181.945 | E94: =IF(E93="","",IF($D94<>"",AVERAGE(D94:OFFSET(D94,-MIN($H$3,COUNT(D$10:$D94)),0)),"")) -> 176.8695882 | F94: =IF(F93="","",IF($D94<>"",SUMPRODUCT(B$10:OFFSET($B$10,MIN($H$3,$A94)-1,0),OFFSET(D94,1-MIN($H$3,$A94),0):D94)/$I$4,"")) -> 179.2797426 | G94: =IF(G93="","",IF($D94<>"",SUMPRODUCT(B$10:OFFSET($B$10,MIN($H$4,$A94)-1,0),OFFSET(D94,1-MIN($H$4,$A94),0):D94)/$I$5,"")) -> 181.8225278 | H94: 178.4661129 | I94: 184.3653129 | J94: =IF(J93="","",IF($D94<>"",SUMPRODUCT(B$10:OFFSET($B$10,MIN($K$3,$A94)-1,0),OFFSET(I94,1-MIN($K$3,$A94),0):I94)/$L$4,"")) -> 183.961538 | M94: 181.945 | Q94: 183.961538
A95: 86 | C95: 35 | D95: 184.282 | E95: =IF(E94="","",IF($D95<>"",AVERAGE(D95:OFFSET(D95,-MIN($H$3,COUNT(D$10:$D95)),0)),"")) -> 177.5935882 | F95: =IF(F94="","",IF($D95<>"",SUMPRODUCT(B$10:OFFSET($B$10,MIN($H$3,$A95)-1,0),OFFSET(D95,1-MIN($H$3,$A95),0):D95)/$I$4,"")) -> 180.1157941 | G95: =IF(G94="","",IF($D95<>"",SUMPRODUCT(B$10:OFFSET($B$10,MIN($H$4,$A95)-1,0),OFFSET(D95,1-MIN($H$4,$A95),0):D95)/$I$5,"")) -> 182.5648056 | H95: 179.1503349 | I95: 185.013817 | J95: =IF(J94="","",IF($D95<>"",SUMPRODUCT(B$10:OFFSET($B$10,MIN($K$3,$A95)-1,0),OFFSET(I95,1-MIN($K$3,$A95),0):I95)/$L$4,"")) -> 184.5029474 | M95: 184.282 | Q95: 184.5029474
A96: 87 | C96: 36 | D96: 182.203 | E96: =IF(E95="","",IF($D96<>"",AVERAGE(D96:OFFSET(D96,-MIN($H$3,COUNT(D$10:$D96)),0)),"")) -> 178.1434118 | F96: =IF(F95="","",IF($D96<>"",SUMPRODUCT(B$10:OFFSET($B$10,MIN($H$3,$A96)-1,0),OFFSET(D96,1-MIN($H$3,$A96),0):D96)/$I$4,"")) -> 180.6232426 | G96: =IF(G95="","",IF($D96<>"",SUMPRODUCT(B$10:OFFSET($B$10,MIN($H$4,$A96)-1,0),OFFSET(D96,1-MIN($H$4,$A96),0):D96)/$I$5,"")) -> 182.5798889 | H96: 179.509472 | I96: 184.5365351 | J96: =IF(J95="","",IF($D96<>"",SUMPRODUCT(B$10:OFFSET($B$10,MIN($K$3,$A96)-1,0),OFFSET(I96,1-MIN($K$3,$A96),0):I96)/$L$4,"")) -> 184.6049734 | M96: 182.203 | Q96: 184.6049734
A97: 88 | C97: 37 | D97: 181.864 | E97: =IF(E96="","",IF($D97<>"",AVERAGE(D97:OFFSET(D97,-MIN($H$3,COUNT(D$10:$D97)),0)),"")) -> 178.7020588 | F97: =IF(F96="","",IF($D97<>"",SUMPRODUCT(B$10:OFFSET($B$10,MIN($H$3,$A97)-1,0),OFFSET(D97,1-MIN($H$3,$A97),0):D97)/$I$4,"")) -> 181.0184853 | G97: =IF(G96="","",IF($D97<>"",SUMPRODUCT(B$10:OFFSET($B$10,MIN($H$4,$A97)-1,0),OFFSET(D97,1-MIN($H$4,$A97),0):D97)/$I$5,"")) -> 182.4481389 | H97: 179.7864753 | I97: 183.8777925 | J97: =IF(J96="","",IF($D97<>"",SUMPRODUCT(B$10:OFFSET($B$10,MIN($K$3,$A97)-1,0),OFFSET(I97,1-MIN($K$3,$A97),0):I97)/$L$4,"")) -> 184.3513722 | M97: 181.864 | Q97: 184.3513722
A98: 89 | C98: 38 | D98: 182.12 | E98: =IF(E97="","",IF($D98<>"",AVERAGE(D98:OFFSET(D98,-MIN($H$3,COUNT(D$10:$D98)),0)),"")) -> 179.3005294 | F98: =IF(F97="","",IF($D98<>"",SUMPRODUCT(B$10:OFFSET($B$10,MIN($H$3,$A98)-1,0),OFFSET(D98,1-MIN($H$3,$A98),0):D98)/$I$4,"")) -> 181.3709191 | G98: =IF(G97="","",IF($D98<>"",SUMPRODUCT(B$10:OFFSET($B$10,MIN($H$4,$A98)-1,0),OFFSET(D98,1-MIN($H$4,$A98),0):D98)/$I$5,"")) -> 182.3807778 | H98: 180.0610076 | I98: 183.3906364 | J98: =IF(J97="","",IF($D98<>"",SUMPRODUCT(B$10:OFFSET($B$10,MIN($K$3,$A98)-1,0),OFFSET(I98,1-MIN($K$3,$A98),0):I98)/$L$4,"")) -> 183.928281 | M98: 182.12 | Q98: 183.928281
A99: 90 | C99: 39 | D99: 182.429 | E99: =IF(E98="","",IF($D99<>"",AVERAGE(D99:OFFSET(D99,-MIN($H$3,COUNT(D$10:$D99)),0)),"")) -> 179.8241765 | F99: =IF(F98="","",IF($D99<>"",SUMPRODUCT(B$10:OFFSET($B$10,MIN($H$3,$A99)-1,0),OFFSET(D99,1-MIN($H$3,$A99),0):D99)/$I$4,"")) -> 181.6965221 | G99: =IF(G98="","",IF($D99<>"",SUMPRODUCT(B$10:OFFSET($B$10,MIN($H$4,$A99)-1,0),OFFSET(D99,1-MIN($H$4,$A99),0):D99)/$I$5,"")) -> 182.3725833 | H99: 180.3395949 | I99: 183.0486446 | J99: =IF(J98="","",IF($D99<>"",SUMPRODUCT(B$10:OFFSET($B$10,MIN($K$3,$A99)-1,0),OFFSET(I99,1-MIN($K$3,$A99),0):I99)/$L$4,"")) -> 183.4658608 | M99: 182.429 | Q99: 183.4658608
A100: 91 | C100: 40 | D100: 182.656 | E100: =IF(E99="","",IF($D100<>"",AVERAGE(D100:OFFSET(D100,-MIN($H$3,COUNT(D$10:$D100)),0)),"")) -> 180.3338235 | F100: =IF(F99="","",IF($D100<>"",SUMPRODUCT(B$10:OFFSET($B$10,MIN($H$3,$A100)-1,0),OFFSET(D100,1-MIN($H$3,$A100),0):D100)/$I$4,"")) -> 181.9867941 | G100: =IF(G99="","",IF($D100<>"",SUMPRODUCT(B$10:OFFSET($B$10,MIN($H$4,$A100)-1,0),OFFSET(D100,1-MIN($H$4,$A100),0):D100)/$I$5,"")) -> 182.4345 | H100: 180.6121132 | I100: 182.8822059 | J100: =IF(J99="","",IF($D100<>"",SUMPRODUCT(B$10:OFFSET($B$10,MIN($K$3,$A100)-1,0),OFFSET(I100,1-MIN($K$3,$A100),0):I100)/$L$4,"")) -> 183.1333823 | M100: 182.656 | Q100: 183.1333823
A101: 92 | C101: 41 | D101: 184.987 | E101: =IF(E100="","",IF($D101<>"",AVERAGE(D101:OFFSET(D101,-MIN($H$3,COUNT(D$10:$D101)),0)),"")) -> 180.9927059 | F101: =IF(F100="","",IF($D101<>"",SUMPRODUCT(B$10:OFFSET($B$10,MIN($H$3,$A101)-1,0),OFFSET(D101,1-MIN($H$3,$A101),0):D101)/$I$4,"")) -> 182.4860809 | G101: =IF(G100="","",IF($D101<>"",SUMPRODUCT(B$10:OFFSET($B$10,MIN($H$4,$A101)-1,0),OFFSET(D101,1-MIN($H$4,$A101),0):D101)/$I$5,"")) -> 183.0065556 | H101: 181.1268058 | I101: 183.5270302 | J101: =IF(J100="","",IF($D101<>"",SUMPRODUCT(B$10:OFFSET($B$10,MIN($K$3,$A101)-1,0),OFFSET(I101,1-MIN($K$3,$A101),0):I101)/$L$4,"")) -> 183.2242664 | M101: 184.987 | Q101: 183.2242664
A102: 93 | C102: 42 | D102: 185.451 | E102: =IF(E101="","",IF($D102<>"",AVERAGE(D102:OFFSET(D102,-MIN($H$3,COUNT(D$10:$D102)),0)),"")) -> 181.6393529 | F102: =IF(F101="","",IF($D102<>"",SUMPRODUCT(B$10:OFFSET($B$10,MIN($H$3,$A102)-1,0),OFFSET(D102,1-MIN($H$3,$A102),0):D102)/$I$4,"")) -> 182.9625368 | G102: =IF(G101="","",IF($D102<>"",SUMPRODUCT(B$10:OFFSET($B$10,MIN($H$4,$A102)-1,0),OFFSET(D102,1-MIN($H$4,$A102),0):D102)/$I$5,"")) -> 183.5932778 | H102: 181.6355345 | I102: 184.2240188 | J102: =IF(J101="","",IF($D102<>"",SUMPRODUCT(B$10:OFFSET($B$10,MIN($K$3,$A102)-1,0),OFFSET(I102,1-MIN($K$3,$A102),0):I102)/$L$4,"")) -> 183.6290222 | M102: 185.451 | Q102: 183.6290222
A103: 94 | C103: 43 | D103: 184.494 | E103: =IF(E102="","",IF($D103<>"",AVERAGE(D103:OFFSET(D103,-MIN($H$3,COUNT(D$10:$D103)),0)),"")) -> 182.2364706 | F103: =IF(F102="","",IF($D103<>"",SUMPRODUCT(B$10:OFFSET($B$10,MIN($H$3,$A103)-1,0),OFFSET(D103,1-MIN($H$3,$A103),0):D103)/$I$4,"")) -> 183.2447279 | G103: =IF(G102="","",IF($D103<>"",SUMPRODUCT(B$10:OFFSET($B$10,MIN($H$4,$A103)-1,0),OFFSET(D103,1-MIN($H$4,$A103),0):D103)/$I$5,"")) -> 183.8699444 | H103: 181.9718245 | I103: 184.4951609 | J103: =IF(J102="","",IF($D103<>"",SUMPRODUCT(B$10:OFFSET($B$10,MIN($K$3,$A103)-1,0),OFFSET(I103,1-MIN($K$3,$A103),0):I103)/$L$4,"")) -> 184.0588967 | M103: 184.494 | Q103: 184.0588967
A104: 95 | C104: 44 | D104: 185.73 | E104: =IF(E103="","",IF($D104<>"",AVERAGE(D104:OFFSET(D104,-MIN($H$3,COUNT(D$10:$D104)),0)),"")) -> 182.8832353 | F104: =IF(F103="","",IF($D104<>"",SUMPRODUCT(B$10:OFFSET($B$10,MIN($H$3,$A104)-1,0),OFFSET(D104,1-MIN($H$3,$A104),0):D104)/$I$4,"")) -> 183.6005735 | G104: =IF(G103="","",IF($D104<>"",SUMPRODUCT(B$10:OFFSET($B$10,MIN($H$4,$A104)-1,0),OFFSET(D104,1-MIN($H$4,$A104),0):D104)/$I$5,"")) -> 184.4153889 | H104: 182.4139628 | I104: 185.2302042 | J104: =IF(J103="","",IF($D104<>"",SUMPRODUCT(B$10:OFFSET($B$10,MIN($K$3,$A104)-1,0),OFFSET(I104,1-MIN($K$3,$A104),0):I104)/$L$4,"")) -> 184.6381368 | M104: 185.73 | Q104: 184.6381368
A105: 96 | C105: 45 | D105: 185.281 | E105: =IF(E104="","",IF($D105<>"",AVERAGE(D105:OFFSET(D105,-MIN($H$3,COUNT(D$10:$D105)),0)),"")) -> 183.2157059 | F105: =IF(F104="","",IF($D105<>"",SUMPRODUCT(B$10:OFFSET($B$10,MIN($H$3,$A105)-1,0),OFFSET(D105,1-MIN($H$3,$A105),0):D105)/$I$4,"")) -> 183.8587353 | G105: =IF(G104="","",IF($D105<>"",SUMPRODUCT(B$10:OFFSET($B$10,MIN($H$4,$A105)-1,0),OFFSET(D105,1-MIN($H$4,$A105),0):D105)/$I$5,"")) -> 184.7630833 | H105: 182.7512613 | I105: 185.6674314 | J105: =IF(J104="","",IF($D105<>"",SUMPRODUCT(B$10:OFFSET($B$10,MIN($K$3,$A105)-1,0),OFFSET(I105,1-MIN($K$3,$A105),0):I105)/$L$4,"")) -> 185.1574679 | M105: 185.281 | Q105: 185.1574679
A106: 97 | C106: 46 | D106: 185.89 | E106: =IF(E105="","",IF($D106<>"",AVERAGE(D106:OFFSET(D106,-MIN($H$3,COUNT(D$10:$D106)),0)),"")) -> 183.4366471 | F106: =IF(F105="","",IF($D106<>"",SUMPRODUCT(B$10:OFFSET($B$10,MIN($H$3,$A106)-1,0),OFFSET(D106,1-MIN($H$3,$A106),0):D106)/$I$4,"")) -> 184.1654044 | G106: =IF(G105="","",IF($D106<>"",SUMPRODUCT(B$10:OFFSET($B$10,MIN($H$4,$A106)-1,0),OFFSET(D106,1-MIN($H$4,$A106),0):D106)/$I$5,"")) -> 185.1511944 | H106: 183.1205247 | I106: 186.1369845 | J106: =IF(J105="","",IF($D106<>"",SUMPRODUCT(B$10:OFFSET($B$10,MIN($K$3,$A106)-1,0),OFFSET(I106,1-MIN($K$3,$A106),0):I106)/$L$4,"")) -> 185.6505801 | M106: 185.89 | Q106: 185.6505801
A107: 98 | C107: 47 | D107: 185.178 | E107: =IF(E106="","",IF($D107<>"",AVERAGE(D107:OFFSET(D107,-MIN($H$3,COUNT(D$10:$D107)),0)),"")) -> 183.6366471 | F107: =IF(F106="","",IF($D107<>"",SUMPRODUCT(B$10:OFFSET($B$10,MIN($H$3,$A107)-1,0),OFFSET(D107,1-MIN($H$3,$A107),0):D107)/$I$4,"")) -> 184.3580735 | G107: =IF(G106="","",IF($D107<>"",SUMPRODUCT(B$10:OFFSET($B$10,MIN($H$4,$A107)-1,0),OFFSET(D107,1-MIN($H$4,$A107),0):D107)/$I$5,"")) -> 185.2763611 | H107: 183.3625806 | I107: 186.1946487 | J107: =IF(J106="","",IF($D107<>"",SUMPRODUCT(B$10:OFFSET($B$10,MIN($K$3,$A107)-1,0),OFFSET(I107,1-MIN($K$3,$A107),0):I107)/$L$4,"")) -> 185.9754615 | M107: 185.178 | Q107: 185.9754615
A108: 99 | C108: 48 | D108: 185.444 | E108: =IF(E107="","",IF($D108<>"",AVERAGE(D108:OFFSET(D108,-MIN($H$3,COUNT(D$10:$D108)),0)),"")) -> 183.7723529 | F108: =IF(F107="","",IF($D108<>"",SUMPRODUCT(B$10:OFFSET($B$10,MIN($H$3,$A108)-1,0),OFFSET(D108,1-MIN($H$3,$A108),0):D108)/$I$4,"")) -> 184.5670294 | G108: =IF(G107="","",IF($D108<>"",SUMPRODUCT(B$10:OFFSET($B$10,MIN($H$4,$A108)-1,0),OFFSET(D108,1-MIN($H$4,$A108),0):D108)/$I$5,"")) -> 185.3842778 | H108: 183.6074535 | I108: 186.2015261 | J108: =IF(J107="","",IF($D108<>"",SUMPRODUCT(B$10:OFFSET($B$10,MIN($K$3,$A108)-1,0),OFFSET(I108,1-MIN($K$3,$A108),0):I108)/$L$4,"")) -> 186.1331451 | M108: 185.444 | Q108: 186.1331451
A109: 100 | C109: 49 | D109: 186.216 | E109: =IF(E108="","",IF($D109<>"",AVERAGE(D109:OFFSET(D109,-MIN($H$3,COUNT(D$10:$D109)),0)),"")) -> 183.9984118 | F109: =IF(F108="","",IF($D109<>"",SUMPRODUCT(B$10:OFFSET($B$10,MIN($H$3,$A109)-1,0),OFFSET(D109,1-MIN($H$3,$A109),0):D109)/$I$4,"")) -> 184.8442279 | G109: =IF(G108="","",IF($D109<>"",SUMPRODUCT(B$10:OFFSET($B$10,MIN($H$4,$A109)-1,0),OFFSET(D109,1-MIN($H$4,$A109),0):D109)/$I$5,"")) -> 185.5863056 | H109: 183.9143413 | I109: 186.3283832 | J109: =IF(J108="","",IF($D109<>"",SUMPRODUCT(B$10:OFFSET($B$10,MIN($K$3,$A109)-1,0),OFFSET(I109,1-MIN($K$3,$A109),0):I109)/$L$4,"")) -> 186.2444393 | M109: 186.216 | Q109: 186.2444393
A110: 101 | C110: 50 | D110: 186.396 | E110: =IF(E109="","",IF($D110<>"",AVERAGE(D110:OFFSET(D110,-MIN($H$3,COUNT(D$10:$D110)),0)),"")) -> 184.2685882 | F110: =IF(F109="","",IF($D110<>"",SUMPRODUCT(B$10:OFFSET($B$10,MIN($H$3,$A110)-1,0),OFFSET(D110,1-MIN($H$3,$A110),0):D110)/$I$4,"")) -> 185.1101544 | G110: =IF(G109="","",IF($D110<>"",SUMPRODUCT(B$10:OFFSET($B$10,MIN($H$4,$A110)-1,0),OFFSET(D110,1-MIN($H$4,$A110),0):D110)/$I$5,"")) -> 185.7941944 | H110: 184.2063012 | I110: 186.4782345 | J110: =IF(J109="","",IF($D110<>"",SUMPRODUCT(B$10:OFFSET($B$10,MIN($K$3,$A110)-1,0),OFFSET(I110,1-MIN($K$3,$A110),0):I110)/$L$4,"")) -> 186.3495788 | M110: 186.396 | Q110: 186.3495788
A111: 102 | C111: 51 | D111: 187.89 | E111: =IF(E110="","",IF($D111<>"",AVERAGE(D111:OFFSET(D111,-MIN($H$3,COUNT(D$10:$D111)),0)),"")) -> 184.6182941 | F111: =IF(F110="","",IF($D111<>"",SUMPRODUCT(B$10:OFFSET($B$10,MIN($H$3,$A111)-1,0),OFFSET(D111,1-MIN($H$3,$A111),0):D111)/$I$4,"")) -> 185.5191176 | G111: =IF(G110="","",IF($D111<>"",SUMPRODUCT(B$10:OFFSET($B$10,MIN($H$4,$A111)-1,0),OFFSET(D111,1-MIN($H$4,$A111),0):D111)/$I$5,"")) -> 186.3078333 | H111: 184.6396775 | I111: 187.096549 | J111: =IF(J110="","",IF($D111<>"",SUMPRODUCT(B$10:OFFSET($B$10,MIN($K$3,$A111)-1,0),OFFSET(I111,1-MIN($K$3,$A111),0):I111)/$L$4,"")) -> 186.6679192 | M111: 187.89 | Q111: 186.6679192
A112: 103 | C112: 52 | D112: 187.731 | E112: =IF(E111="","",IF($D112<>"",AVERAGE(D112:OFFSET(D112,-MIN($H$3,COUNT(D$10:$D112)),0)),"")) -> 184.8211765 | F112: =IF(F111="","",IF($D112<>"",SUMPRODUCT(B$10:OFFSET($B$10,MIN($H$3,$A112)-1,0),OFFSET(D112,1-MIN($H$3,$A112),0):D112)/$I$4,"")) -> 185.8828456 | G112: =IF(G111="","",IF($D112<>"",SUMPRODUCT(B$10:OFFSET($B$10,MIN($H$4,$A112)-1,0),OFFSET(D112,1-MIN($H$4,$A112),0):D112)/$I$5,"")) -> 186.6918056 | H112: 185.0033625 | I112: 187.5007655 | J112: =IF(J111="","",IF($D112<>"",SUMPRODUCT(B$10:OFFSET($B$10,MIN($K$3,$A112)-1,0),OFFSET(I112,1-MIN($K$3,$A112),0):I112)/$L$4,"")) -> 187.0577561 | M112: 187.731 | Q112: 187.0577561
A113: 104 | C113: 53 | D113: 189.408 | E113: =IF(E112="","",IF($D113<>"",AVERAGE(D113:OFFSET(D113,-MIN($H$3,COUNT(D$10:$D113)),0)),"")) -> 185.245 | F113: =IF(F112="","",IF($D113<>"",SUMPRODUCT(B$10:OFFSET($B$10,MIN($H$3,$A113)-1,0),OFFSET(D113,1-MIN($H$3,$A113),0):D113)/$I$4,"")) -> 186.4032206 | G113: =IF(G112="","",IF($D113<>"",SUMPRODUCT(B$10:OFFSET($B$10,MIN($H$4,$A113)-1,0),OFFSET(D113,1-MIN($H$4,$A113),0):D113)/$I$5,"")) -> 187.3928611 | H113: 185.5215551 | I113: 188.3825016 | J113: =IF(J112="","",IF($D113<>"",SUMPRODUCT(B$10:OFFSET($B$10,MIN($K$3,$A113)-1,0),OFFSET(I113,1-MIN($K$3,$A113),0):I113)/$L$4,"")) -> 187.6703636 | M113: 189.408 | Q113: 187.6703636
A114: 105 | C114: 54 | D114: 188.865 | E114: =IF(E113="","",IF($D114<>"",AVERAGE(D114:OFFSET(D114,-MIN($H$3,COUNT(D$10:$D114)),0)),"")) -> 185.6568235 | F114: =IF(F113="","",IF($D114<>"",SUMPRODUCT(B$10:OFFSET($B$10,MIN($H$3,$A114)-1,0),OFFSET(D114,1-MIN($H$3,$A114),0):D114)/$I$4,"")) -> 186.8042426 | G114: =IF(G113="","",IF($D114<>"",SUMPRODUCT(B$10:OFFSET($B$10,MIN($H$4,$A114)-1,0),OFFSET(D114,1-MIN($H$4,$A114),0):D114)/$I$5,"")) -> 187.8586111 | H114: 185.9149016 | I114: 188.9129796 | J114: =IF(J113="","",IF($D114<>"",SUMPRODUCT(B$10:OFFSET($B$10,MIN($K$3,$A114)-1,0),OFFSET(I114,1-MIN($K$3,$A114),0):I114)/$L$4,"")) -> 188.2897503 | M114: 188.865 | Q114: 188.2897503
A115: 106 | C115: 55 | D115: 187.5 | E115: =IF(E114="","",IF($D115<>"",AVERAGE(D115:OFFSET(D115,-MIN($H$3,COUNT(D$10:$D115)),0)),"")) -> 185.9732941 | F115: =IF(F114="","",IF($D115<>"",SUMPRODUCT(B$10:OFFSET($B$10,MIN($H$3,$A115)-1,0),OFFSET(D115,1-MIN($H$3,$A115),0):D115)/$I$4,"")) -> 186.9950809 | G115: =IF(G114="","",IF($D115<>"",SUMPRODUCT(B$10:OFFSET($B$10,MIN($H$4,$A115)-1,0),OFFSET(D115,1-MIN($H$4,$A115),0):D115)/$I$5,"")) -> 187.9383889 | H115: 186.1013838 | I115: 188.8816969 | J115: =IF(J114="","",IF($D115<>"",SUMPRODUCT(B$10:OFFSET($B$10,MIN($K$3,$A115)-1,0),OFFSET(I115,1-MIN($K$3,$A115),0):I115)/$L$4,"")) -> 188.6531495 | M115: 187.5 | Q115: 188.6531495
A116: 107 | C116: 56 | D116: 185.141 | E116: =IF(E115="","",IF($D116<>"",AVERAGE(D116:OFFSET(D116,-MIN($H$3,COUNT(D$10:$D116)),0)),"")) -> 186.1328235 | F116: =IF(F115="","",IF($D116<>"",SUMPRODUCT(B$10:OFFSET($B$10,MIN($H$3,$A116)-1,0),OFFSET(D116,1-MIN($H$3,$A116),0):D116)/$I$4,"")) -> 186.8711029 | G116: =IF(G115="","",IF($D116<>"",SUMPRODUCT(B$10:OFFSET($B$10,MIN($H$4,$A116)-1,0),OFFSET(D116,1-MIN($H$4,$A116),0):D116)/$I$5,"")) -> 187.4294444 | H116: 185.9883974 | I116: 187.9877859 | J116: =IF(J115="","",IF($D116<>"",SUMPRODUCT(B$10:OFFSET($B$10,MIN($K$3,$A116)-1,0),OFFSET(I116,1-MIN($K$3,$A116),0):I116)/$L$4,"")) -> 188.4804695 | M116: 185.141 | Q116: 188.4804695
A117: 108 | C117: 57 | D117: 186.618 | E117: =IF(E116="","",IF($D117<>"",AVERAGE(D117:OFFSET(D117,-MIN($H$3,COUNT(D$10:$D117)),0)),"")) -> 186.3658824 | F117: =IF(F116="","",IF($D117<>"",SUMPRODUCT(B$10:OFFSET($B$10,MIN($H$3,$A117)-1,0),OFFSET(D117,1-MIN($H$3,$A117),0):D117)/$I$4,"")) -> 186.9026176 | G117: =IF(G116="","",IF($D117<>"",SUMPRODUCT(B$10:OFFSET($B$10,MIN($H$4,$A117)-1,0),OFFSET(D117,1-MIN($H$4,$A117),0):D117)/$I$5,"")) -> 187.2571389 | H117: 186.0624683 | I117: 187.6116601 | J117: =IF(J116="","",IF($D117<>"",SUMPRODUCT(B$10:OFFSET($B$10,MIN($K$3,$A117)-1,0),OFFSET(I117,1-MIN($K$3,$A117),0):I117)/$L$4,"")) -> 188.1086372 | M117: 186.618 | Q117: 188.1086372
A118: 109 | C118: 58 | D118: 186.653 | E118: =IF(E117="","",IF($D118<>"",AVERAGE(D118:OFFSET(D118,-MIN($H$3,COUNT(D$10:$D118)),0)),"")) -> 186.4638824 | F118: =IF(F117="","",IF($D118<>"",SUMPRODUCT(B$10:OFFSET($B$10,MIN($H$3,$A118)-1,0),OFFSET(D118,1-MIN($H$3,$A118),0):D118)/$I$4,"")) -> 186.9262574 | G118: =IF(G117="","",IF($D118<>"",SUMPRODUCT(B$10:OFFSET($B$10,MIN($H$4,$A118)-1,0),OFFSET(D118,1-MIN($H$4,$A118),0):D118)/$I$5,"")) -> 187.0814444 | H118: 186.1319426 | I118: 187.2366315 | J118: =IF(J117="","",IF($D118<>"",SUMPRODUCT(B$10:OFFSET($B$10,MIN($K$3,$A118)-1,0),OFFSET(I118,1-MIN($K$3,$A118),0):I118)/$L$4,"")) -> 187.6638775 | M118: 186.653 | Q118: 187.6638775
A119: 110 | C119: 59 | D119: 184.22 | E119: =IF(E118="","",IF($D119<>"",AVERAGE(D119:OFFSET(D119,-MIN($H$3,COUNT(D$10:$D119)),0)),"")) -> 186.3914706 | F119: =IF(F118="","",IF($D119<>"",SUMPRODUCT(B$10:OFFSET($B$10,MIN($H$3,$A119)-1,0),OFFSET(D119,1-MIN($H$3,$A119),0):D119)/$I$4,"")) -> 186.6548235 | G119: =IF(G118="","",IF($D119<>"",SUMPRODUCT(B$10:OFFSET($B$10,MIN($H$4,$A119)-1,0),OFFSET(D119,1-MIN($H$4,$A119),0):D119)/$I$5,"")) -> 186.3579444 | H119: 185.9070082 | I119: 186.0610654 | J119: =IF(J118="","",IF($D119<>"",SUMPRODUCT(B$10:OFFSET($B$10,MIN($K$3,$A119)-1,0),OFFSET(I119,1-MIN($K$3,$A119),0):I119)/$L$4,"")) -> 186.9165262 | M119: 184.22 | Q119: 186.9165262
A120: 111 | C120: 60 | D120: 183.302 | E120: =IF(E119="","",IF($D120<>"",AVERAGE(D120:OFFSET(D120,-MIN($H$3,COUNT(D$10:$D120)),0)),"")) -> 186.3213529 | F120: =IF(F119="","",IF($D120<>"",SUMPRODUCT(B$10:OFFSET($B$10,MIN($H$3,$A120)-1,0),OFFSET(D120,1-MIN($H$3,$A120),0):D120)/$I$4,"")) -> 186.2774044 | G120: =IF(G119="","",IF($D120<>"",SUMPRODUCT(B$10:OFFSET($B$10,MIN($H$4,$A120)-1,0),OFFSET(D120,1-MIN($H$4,$A120),0):D120)/$I$5,"")) -> 185.5323889 | H120: 185.6005367 | I120: 184.7873734 | J120: =IF(J119="","",IF($D120<>"",SUMPRODUCT(B$10:OFFSET($B$10,MIN($K$3,$A120)-1,0),OFFSET(I120,1-MIN($K$3,$A120),0):I120)/$L$4,"")) -> 185.9417613 | M120: 183.302 | Q120: 185.9417613
A121: 112 | C121: 61 | D121: 184.744 | E121: =IF(E120="","",IF($D121<>"",AVERAGE(D121:OFFSET(D121,-MIN($H$3,COUNT(D$10:$D121)),0)),"")) -> 186.2633529 | F121: =IF(F120="","",IF($D121<>"",SUMPRODUCT(B$10:OFFSET($B$10,MIN($H$3,$A121)-1,0),OFFSET(D121,1-MIN($H$3,$A121),0):D121)/$I$4,"")) -> 186.0874853 | G121: =IF(G120="","",IF($D121<>"",SUMPRODUCT(B$10:OFFSET($B$10,MIN($H$4,$A121)-1,0),OFFSET(D121,1-MIN($H$4,$A121),0):D121)/$I$5,"")) -> 185.1503056 | H121: 185.4997676 | I121: 184.2131258 | J121: =IF(J120="","",IF($D121<>"",SUMPRODUCT(B$10:OFFSET($B$10,MIN($K$3,$A121)-1,0),OFFSET(I121,1-MIN($K$3,$A121),0):I121)/$L$4,"")) -> 185.0573386 | M121: 184.744 | Q121: 185.0573386
A122: 113 | C122: 62 | D122: 186.176 | E122: =IF(E121="","",IF($D122<>"",AVERAGE(D122:OFFSET(D122,-MIN($H$3,COUNT(D$10:$D122)),0)),"")) -> 186.316 | F122: =IF(F121="","",IF($D122<>"",SUMPRODUCT(B$10:OFFSET($B$10,MIN($H$3,$A122)-1,0),OFFSET(D122,1-MIN($H$3,$A122),0):D122)/$I$4,"")) -> 186.0699853 | G122: =IF(G121="","",IF($D122<>"",SUMPRODUCT(B$10:OFFSET($B$10,MIN($H$4,$A122)-1,0),OFFSET(D122,1-MIN($H$4,$A122),0):D122)/$I$5,"")) -> 185.216 | H122: 185.5793244 | I122: 184.3620147 | J122: =IF(J121="","",IF($D122<>"",SUMPRODUCT(B$10:OFFSET($B$10,MIN($K$3,$A122)-1,0),OFFSET(I122,1-MIN($K$3,$A122),0):I122)/$L$4,"")) -> 184.5723248 | M122: 186.176 | Q122: 184.5723248
A123: 114 | C123: 63 | D123: 186.744 | E123: =IF(E122="","",IF($D123<>"",AVERAGE(D123:OFFSET(D123,-MIN($H$3,COUNT(D$10:$D123)),0)),"")) -> 186.3662353 | F123: =IF(F122="","",IF($D123<>"",SUMPRODUCT(B$10:OFFSET($B$10,MIN($H$3,$A123)-1,0),OFFSET(D123,1-MIN($H$3,$A123),0):D123)/$I$4,"")) -> 186.1172059 | G123: =IF(G122="","",IF($D123<>"",SUMPRODUCT(B$10:OFFSET($B$10,MIN($H$4,$A123)-1,0),OFFSET(D123,1-MIN($H$4,$A123),0):D123)/$I$5,"")) -> 185.4826111 | H123: 185.716345 | I123: 184.8480163 | J123: =IF(J122="","",IF($D123<>"",SUMPRODUCT(B$10:OFFSET($B$10,MIN($K$3,$A123)-1,0),OFFSET(I123,1-MIN($K$3,$A123),0):I123)/$L$4,"")) -> 184.5691734 | M123: 186.744 | Q123: 184.5691734
A124: 115 | C124: 64 | D124: 187.131 | E124: =IF(E123="","",IF($D124<>"",AVERAGE(D124:OFFSET(D124,-MIN($H$3,COUNT(D$10:$D124)),0)),"")) -> 186.4811176 | F124: =IF(F123="","",IF($D124<>"",SUMPRODUCT(B$10:OFFSET($B$10,MIN($H$3,$A124)-1,0),OFFSET(D124,1-MIN($H$3,$A124),0):D124)/$I$4,"")) -> 186.1984412 | G124: =IF(G123="","",IF($D124<>"",SUMPRODUCT(B$10:OFFSET($B$10,MIN($H$4,$A124)-1,0),OFFSET(D124,1-MIN($H$4,$A124),0):D124)/$I$5,"")) -> 185.8562222 | H124: 185.882775 | I124: 185.5140033 | J124: =IF(J123="","",IF($D124<>"",SUMPRODUCT(B$10:OFFSET($B$10,MIN($K$3,$A124)-1,0),OFFSET(I124,1-MIN($K$3,$A124),0):I124)/$L$4,"")) -> 184.9537217 | M124: 187.131 | Q124: 184.9537217
A125: 116 | C125: 65 | D125: 187.275 | E125: =IF(E124="","",IF($D125<>"",AVERAGE(D125:OFFSET(D125,-MIN($H$3,COUNT(D$10:$D125)),0)),"")) -> 186.5888235 | F125: =IF(F124="","",IF($D125<>"",SUMPRODUCT(B$10:OFFSET($B$10,MIN($H$3,$A125)-1,0),OFFSET(D125,1-MIN($H$3,$A125),0):D125)/$I$4,"")) -> 186.2842132 | G125: =IF(G124="","",IF($D125<>"",SUMPRODUCT(B$10:OFFSET($B$10,MIN($H$4,$A125)-1,0),OFFSET(D125,1-MIN($H$4,$A125),0):D125)/$I$5,"")) -> 186.2065556 | H125: 186.0465662 | I125: 186.1288979 | J125: =IF(J124="","",IF($D125<>"",SUMPRODUCT(B$10:OFFSET($B$10,MIN($K$3,$A125)-1,0),OFFSET(I125,1-MIN($K$3,$A125),0):I125)/$L$4,"")) -> 185.5115649 | M125: 187.275 | Q125: 185.5115649
A126: 117 | C126: 66 | D126: 187.347 | E126: =IF(E125="","",IF($D126<>"",AVERAGE(D126:OFFSET(D126,-MIN($H$3,COUNT(D$10:$D126)),0)),"")) -> 186.6553529 | F126: =IF(F125="","",IF($D126<>"",SUMPRODUCT(B$10:OFFSET($B$10,MIN($H$3,$A126)-1,0),OFFSET(D126,1-MIN($H$3,$A126),0):D126)/$I$4,"")) -> 186.3706691 | G126: =IF(G125="","",IF($D126<>"",SUMPRODUCT(B$10:OFFSET($B$10,MIN($H$4,$A126)-1,0),OFFSET(D126,1-MIN($H$4,$A126),0):D126)/$I$5,"")) -> 186.5546389 | H126: 186.1995584 | I126: 186.7386087 | J126: =IF(J125="","",IF($D126<>"",SUMPRODUCT(B$10:OFFSET($B$10,MIN($K$3,$A126)-1,0),OFFSET(I126,1-MIN($K$3,$A126),0):I126)/$L$4,"")) -> 186.1217151 | M126: 187.347 | Q126: 186.1217151
A127: 118 | C127: 67 | D127: 187.226 | E127: =IF(E126="","",IF($D127<>"",AVERAGE(D127:OFFSET(D127,-MIN($H$3,COUNT(D$10:$D127)),0)),"")) -> 186.7041765 | F127: =IF(F126="","",IF($D127<>"",SUMPRODUCT(B$10:OFFSET($B$10,MIN($H$3,$A127)-1,0),OFFSET(D127,1-MIN($H$3,$A127),0):D127)/$I$4,"")) -> 186.4358971 | G127: =IF(G126="","",IF($D127<>"",SUMPRODUCT(B$10:OFFSET($B$10,MIN($H$4,$A127)-1,0),OFFSET(D127,1-MIN($H$4,$A127),0):D127)/$I$5,"")) -> 186.8565556 | H127: 186.3203163 | I127: 187.2772141 | J127: =IF(J126="","",IF($D127<>"",SUMPRODUCT(B$10:OFFSET($B$10,MIN($K$3,$A127)-1,0),OFFSET(I127,1-MIN($K$3,$A127),0):I127)/$L$4,"")) -> 186.7096481 | M127: 187.226 | Q127: 186.7096481
A128: 119 | C128: 68 | D128: 187.199 | E128: =IF(E127="","",IF($D128<>"",AVERAGE(D128:OFFSET(D128,-MIN($H$3,COUNT(D$10:$D128)),0)),"")) -> 186.6635294 | F128: =IF(F127="","",IF($D128<>"",SUMPRODUCT(B$10:OFFSET($B$10,MIN($H$3,$A128)-1,0),OFFSET(D128,1-MIN($H$3,$A128),0):D128)/$I$4,"")) -> 186.5028309 | G128: =IF(G127="","",IF($D128<>"",SUMPRODUCT(B$10:OFFSET($B$10,MIN($H$4,$A128)-1,0),OFFSET(D128,1-MIN($H$4,$A128),0):D128)/$I$5,"")) -> 187.0689722 | H128: 186.4236908 | I128: 187.6351136 | J128: =IF(J127="","",IF($D128<>"",SUMPRODUCT(B$10:OFFSET($B$10,MIN($K$3,$A128)-1,0),OFFSET(I128,1-MIN($K$3,$A128),0):I128)/$L$4,"")) -> 187.1978212 | M128: 187.199 | Q128: 187.1978212
A129: 120 | C129: 69 | D129: 185.859 | E129: =IF(E128="","",IF($D129<>"",AVERAGE(D129:OFFSET(D129,-MIN($H$3,COUNT(D$10:$D129)),0)),"")) -> 186.5534118 | F129: =IF(F128="","",IF($D129<>"",SUMPRODUCT(B$10:OFFSET($B$10,MIN($H$3,$A129)-1,0),OFFSET(D129,1-MIN($H$3,$A129),0):D129)/$I$4,"")) -> 186.4160294 | G129: =IF(G128="","",IF($D129<>"",SUMPRODUCT(B$10:OFFSET($B$10,MIN($H$4,$A129)-1,0),OFFSET(D129,1-MIN($H$4,$A129),0):D129)/$I$5,"")) -> 186.8753611 | H129: 186.3572566 | I129: 187.3346928 | J129: =IF(J128="","",IF($D129<>"",SUMPRODUCT(B$10:OFFSET($B$10,MIN($K$3,$A129)-1,0),OFFSET(I129,1-MIN($K$3,$A129),0):I129)/$L$4,"")) -> 187.3537149 | M129: 185.859 | Q129: 187.3537149
A130: 121 | C130: 70 | D130: 186.657 | E130: =IF(E129="","",IF($D130<>"",AVERAGE(D130:OFFSET(D130,-MIN($H$3,COUNT(D$10:$D130)),0)),"")) -> 186.3915882 | F130: =IF(F129="","",IF($D130<>"",SUMPRODUCT(B$10:OFFSET($B$10,MIN($H$3,$A130)-1,0),OFFSET(D130,1-MIN($H$3,$A130),0):D130)/$I$4,"")) -> 186.4492059 | G130: =IF(G129="","",IF($D130<>"",SUMPRODUCT(B$10:OFFSET($B$10,MIN($H$4,$A130)-1,0),OFFSET(D130,1-MIN($H$4,$A130),0):D130)/$I$5,"")) -> 186.8281111 | H130: 186.3925205 | I130: 187.2070163 | J130: =IF(J129="","",IF($D130<>"",SUMPRODUCT(B$10:OFFSET($B$10,MIN($K$3,$A130)-1,0),OFFSET(I130,1-MIN($K$3,$A130),0):I130)/$L$4,"")) -> 187.3379585 | M130: 186.657 | Q130: 187.3379585
A131: 122 | C131: 71 | D131: 184.621 | E131: =IF(E130="","",IF($D131<>"",AVERAGE(D131:OFFSET(D131,-MIN($H$3,COUNT(D$10:$D131)),0)),"")) -> 186.1419412 | F131: =IF(F130="","",IF($D131<>"",SUMPRODUCT(B$10:OFFSET($B$10,MIN($H$3,$A131)-1,0),OFFSET(D131,1-MIN($H$3,$A131),0):D131)/$I$4,"")) -> 186.2590882 | G131: =IF(G130="","",IF($D131<>"",SUMPRODUCT(B$10:OFFSET($B$10,MIN($H$4,$A131)-1,0),OFFSET(D131,1-MIN($H$4,$A131),0):D131)/$I$5,"")) -> 186.3150556 | H131: 186.1841064 | I131: 186.3710229 | J131: =IF(J130="","",IF($D131<>"",SUMPRODUCT(B$10:OFFSET($B$10,MIN($K$3,$A131)-1,0),OFFSET(I131,1-MIN($K$3,$A131),0):I131)/$L$4,"")) -> 186.940964 | M131: 184.621 | Q131: 186.940964
A132: 123 | C132: 72 | D132: 182.416 | E132: =IF(E131="","",IF($D132<>"",AVERAGE(D132:OFFSET(D132,-MIN($H$3,COUNT(D$10:$D132)),0)),"")) -> 185.8428824 | F132: =IF(F131="","",IF($D132<>"",SUMPRODUCT(B$10:OFFSET($B$10,MIN($H$3,$A132)-1,0),OFFSET(D132,1-MIN($H$3,$A132),0):D132)/$I$4,"")) -> 185.8307279 | G132: =IF(G131="","",IF($D132<>"",SUMPRODUCT(B$10:OFFSET($B$10,MIN($H$4,$A132)-1,0),OFFSET(D132,1-MIN($H$4,$A132),0):D132)/$I$5,"")) -> 185.3709722 | H132: 185.7407997 | I132: 184.9112165 | J132: =IF(J131="","",IF($D132<>"",SUMPRODUCT(B$10:OFFSET($B$10,MIN($K$3,$A132)-1,0),OFFSET(I132,1-MIN($K$3,$A132),0):I132)/$L$4,"")) -> 186.050666 | M132: 182.416 | Q132: 186.050666
A133: 124 | C133: 73 | D133: 179.322 | E133: =IF(E132="","",IF($D133<>"",AVERAGE(D133:OFFSET(D133,-MIN($H$3,COUNT(D$10:$D133)),0)),"")) -> 185.5005882 | F133: =IF(F132="","",IF($D133<>"",SUMPRODUCT(B$10:OFFSET($B$10,MIN($H$3,$A133)-1,0),OFFSET(D133,1-MIN($H$3,$A133),0):D133)/$I$4,"")) -> 185.0584044 | G133: =IF(G132="","",IF($D133<>"",SUMPRODUCT(B$10:OFFSET($B$10,MIN($H$4,$A133)-1,0),OFFSET(D133,1-MIN($H$4,$A133),0):D133)/$I$5,"")) -> 183.8703056 | H133: 184.9856468 | I133: 182.6822067 | J133: =IF(J132="","",IF($D133<>"",SUMPRODUCT(B$10:OFFSET($B$10,MIN($K$3,$A133)-1,0),OFFSET(I133,1-MIN($K$3,$A133),0):I133)/$L$4,"")) -> 184.5411538 | M133: 179.322 | Q133: 184.5411538
A134: 125 | C134: 74 | D134: 180.18 | E134: =IF(E133="","",IF($D134<>"",AVERAGE(D134:OFFSET(D134,-MIN($H$3,COUNT(D$10:$D134)),0)),"")) -> 185.1218824 | F134: =IF(F133="","",IF($D134<>"",SUMPRODUCT(B$10:OFFSET($B$10,MIN($H$3,$A134)-1,0),OFFSET(D134,1-MIN($H$3,$A134),0):D134)/$I$4,"")) -> 184.4406691 | G134: =IF(G133="","",IF($D134<>"",SUMPRODUCT(B$10:OFFSET($B$10,MIN($H$4,$A134)-1,0),OFFSET(D134,1-MIN($H$4,$A134),0):D134)/$I$5,"")) -> 182.7812222 | H134: 184.4202766 | I134: 181.1217753 | J134: =IF(J133="","",IF($D134<>"",SUMPRODUCT(B$10:OFFSET($B$10,MIN($K$3,$A134)-1,0),OFFSET(I134,1-MIN($K$3,$A134),0):I134)/$L$4,"")) -> 182.8727177 | M134: 180.18 | Q134: 182.8727177
A135: 126 | C135: 75 | D135: 180.535 | E135: =IF(E134="","",IF($D135<>"",AVERAGE(D135:OFFSET(D135,-MIN($H$3,COUNT(D$10:$D135)),0)),"")) -> 184.762 | F135: =IF(F134="","",IF($D135<>"",SUMPRODUCT(B$10:OFFSET($B$10,MIN($H$3,$A135)-1,0),OFFSET(D135,1-MIN($H$3,$A135),0):D135)/$I$4,"")) -> 183.9122941 | G135: =IF(G134="","",IF($D135<>"",SUMPRODUCT(B$10:OFFSET($B$10,MIN($H$4,$A135)-1,0),OFFSET(D135,1-MIN($H$4,$A135),0):D135)/$I$5,"")) -> 181.9701111 | H135: 183.9631852 | I135: 180.0279281 | J135: =IF(J134="","",IF($D135<>"",SUMPRODUCT(B$10:OFFSET($B$10,MIN($K$3,$A135)-1,0),OFFSET(I135,1-MIN($K$3,$A135),0):I135)/$L$4,"")) -> 181.3752668 | M135: 180.535 | Q135: 181.3752668
A136: 127 | C136: 76 | D136: 179.644 | E136: =IF(E135="","",IF($D136<>"",AVERAGE(D136:OFFSET(D136,-MIN($H$3,COUNT(D$10:$D136)),0)),"")) -> 184.4928235 | F136: =IF(F135="","",IF($D136<>"",SUMPRODUCT(B$10:OFFSET($B$10,MIN($H$3,$A136)-1,0),OFFSET(D136,1-MIN($H$3,$A136),0):D136)/$I$4,"")) -> 183.3061912 | G136: =IF(G135="","",IF($D136<>"",SUMPRODUCT(B$10:OFFSET($B$10,MIN($H$4,$A136)-1,0),OFFSET(D136,1-MIN($H$4,$A136),0):D136)/$I$5,"")) -> 181.1468611 | H136: 183.4550458 | I136: 178.987531 | J136: =IF(J135="","",IF($D136<>"",SUMPRODUCT(B$10:OFFSET($B$10,MIN($K$3,$A136)-1,0),OFFSET(I136,1-MIN($K$3,$A136),0):I136)/$L$4,"")) -> 180.0959666 | M136: 179.644 | Q136: 180.0959666
A137: 128 | C137: 77 | D137: 179.527 | E137: =IF(E136="","",IF($D137<>"",AVERAGE(D137:OFFSET(D137,-MIN($H$3,COUNT(D$10:$D137)),0)),"")) -> 184.2707647 | F137: =IF(F136="","",IF($D137<>"",SUMPRODUCT(B$10:OFFSET($B$10,MIN($H$3,$A137)-1,0),OFFSET(D137,1-MIN($H$3,$A137),0):D137)/$I$4,"")) -> 182.7132206 | G137: =IF(G136="","",IF($D137<>"",SUMPRODUCT(B$10:OFFSET($B$10,MIN($H$4,$A137)-1,0),OFFSET(D137,1-MIN($H$4,$A137),0):D137)/$I$5,"")) -> 180.5074722 | H137: 182.9929228 | I137: 178.3017239 | J137: =IF(J136="","",IF($D137<>"",SUMPRODUCT(B$10:OFFSET($B$10,MIN($K$3,$A137)-1,0),OFFSET(I137,1-MIN($K$3,$A137),0):I137)/$L$4,"")) -> 179.134712 | M137: 179.527 | Q137: 179.134712
A138: 129 | C138: 78 | D138: 178.748 | E138: =IF(E137="","",IF($D138<>"",AVERAGE(D138:OFFSET(D138,-MIN($H$3,COUNT(D$10:$D138)),0)),"")) -> 183.9180588 | F138: =IF(F137="","",IF($D138<>"",SUMPRODUCT(B$10:OFFSET($B$10,MIN($H$3,$A138)-1,0),OFFSET(D138,1-MIN($H$3,$A138),0):D138)/$I$4,"")) -> 182.0669632 | G138: =IF(G137="","",IF($D138<>"",SUMPRODUCT(B$10:OFFSET($B$10,MIN($H$4,$A138)-1,0),OFFSET(D138,1-MIN($H$4,$A138),0):D138)/$I$5,"")) -> 179.8708611 | H138: 182.4935201 | I138: 177.674759 | J138: =IF(J137="","",IF($D138<>"",SUMPRODUCT(B$10:OFFSET($B$10,MIN($K$3,$A138)-1,0),OFFSET(I138,1-MIN($K$3,$A138),0):I138)/$L$4,"")) -> 178.3607198 | M138: 178.748 | Q138: 178.3607198
A139: 130 | C139: 79 | D139: 178.683 | E139: =IF(E138="","",IF($D139<>"",AVERAGE(D139:OFFSET(D139,-MIN($H$3,COUNT(D$10:$D139)),0)),"")) -> 183.4772941 | F139: =IF(F138="","",IF($D139<>"",SUMPRODUCT(B$10:OFFSET($B$10,MIN($H$3,$A139)-1,0),OFFSET(D139,1-MIN($H$3,$A139),0):D139)/$I$4,"")) -> 181.4676765 | G139: =IF(G138="","",IF($D139<>"",SUMPRODUCT(B$10:OFFSET($B$10,MIN($H$4,$A139)-1,0),OFFSET(D139,1-MIN($H$4,$A139),0):D139)/$I$5,"")) -> 179.4395 | H139: 182.0452236 | I139: 177.4113235 | J139: =IF(J138="","",IF($D139<>"",SUMPRODUCT(B$10:OFFSET($B$10,MIN($K$3,$A139)-1,0),OFFSET(I139,1-MIN($K$3,$A139),0):I139)/$L$4,"")) -> 177.826055 | M139: 178.683 | Q139: 177.826055
A140: =1+A139 -> 131 | B140: =IF(A140<=$H$3,1+B139,"") ->  | C140: =1+C139 -> 80 | D140: 176.336 | E140: =IF(E139="","",IF($D140<>"",AVERAGE(D140:OFFSET(D140,-MIN($H$3,COUNT(D$10:$D140)),0)),"")) -> 182.8650588 | F140: =IF(F139="","",IF($D140<>"",SUMPRODUCT(B$10:OFFSET($B$10,MIN($H$3,$A140)-1,0),OFFSET(D140,1-MIN($H$3,$A140),0):D140)/$I$4,"")) -> 180.6515441 | G140: =IF(G139="","",IF($D140<>"",SUMPRODUCT(B$10:OFFSET($B$10,MIN($H$4,$A140)-1,0),OFFSET(D140,1-MIN($H$4,$A140),0):D140)/$I$5,"")) -> 178.6515278 | H140: =IF(H139="","",IF($D140<>"",$I$3*H139+(1-$I$3)*$D140,"")) -> 181.3735502 | I140: =IF(I139="","",IF($D140<>"",2*G140-F140,"")) -> 176.6515114 | J140: =IF(J139="","",IF($D140<>"",SUMPRODUCT(B$10:OFFSET($B$10,MIN($K$3,$A140)-1,0),OFFSET(I140,1-MIN($K$3,$A140),0):I140)/$L$4,"")) -> 177.2491258 | M140: 176.336 | Q140: 177.2491258
A141: 132 | C141: 81 | D141: 178.065 | E141: =IF(E140="","",IF($D141<>"",AVERAGE(D141:OFFSET(D141,-MIN($H$3,COUNT(D$10:$D141)),0)),"")) -> 182.3317647 | F141: =IF(F140="","",IF($D141<>"",SUMPRODUCT(B$10:OFFSET($B$10,MIN($H$3,$A141)-1,0),OFFSET(D141,1-MIN($H$3,$A141),0):D141)/$I$4,"")) -> 180.1181985 | G141: =IF(G140="","",IF($D141<>"",SUMPRODUCT(B$10:OFFSET($B$10,MIN($H$4,$A141)-1,0),OFFSET(D141,1-MIN($H$4,$A141),0):D141)/$I$5,"")) -> 178.4166667 | H141: 180.984309 | I141: 176.7151348 | J141: =IF(J140="","",IF($D141<>"",SUMPRODUCT(B$10:OFFSET($B$10,MIN($K$3,$A141)-1,0),OFFSET(I141,1-MIN($K$3,$A141),0):I141)/$L$4,"")) -> 176.931248 | M141: 178.065 | Q141: 176.931248
A142: 133 | C142: 82 | D142: 177.638 | E142: =IF(E141="","",IF($D142<>"",AVERAGE(D142:OFFSET(D142,-MIN($H$3,COUNT(D$10:$D142)),0)),"")) -> 181.7648824 | F142: =IF(F141="","",IF($D142<>"",SUMPRODUCT(B$10:OFFSET($B$10,MIN($H$3,$A142)-1,0),OFFSET(D142,1-MIN($H$3,$A142),0):D142)/$I$4,"")) -> 179.6023382 | G142: =IF(G141="","",IF($D142<>"",SUMPRODUCT(B$10:OFFSET($B$10,MIN($H$4,$A142)-1,0),OFFSET(D142,1-MIN($H$4,$A142),0):D142)/$I$5,"")) -> 178.1218333 | H142: 180.5906256 | I142: 176.6413284 | J142: =IF(J141="","",IF($D142<>"",SUMPRODUCT(B$10:OFFSET($B$10,MIN($K$3,$A142)-1,0),OFFSET(I142,1-MIN($K$3,$A142),0):I142)/$L$4,"")) -> 176.7425065 | M142: 177.638 | Q142: 176.7425065
A143: 134 | C143: 83 | D143: 179.891 | E143: =IF(E142="","",IF($D143<>"",AVERAGE(D143:OFFSET(D143,-MIN($H$3,COUNT(D$10:$D143)),0)),"")) -> 181.3262941 | F143: =IF(F142="","",IF($D143<>"",SUMPRODUCT(B$10:OFFSET($B$10,MIN($H$3,$A143)-1,0),OFFSET(D143,1-MIN($H$3,$A143),0):D143)/$I$4,"")) -> 179.4229265 | G143: =IF(G142="","",IF($D143<>"",SUMPRODUCT(B$10:OFFSET($B$10,MIN($H$4,$A143)-1,0),OFFSET(D143,1-MIN($H$4,$A143),0):D143)/$I$5,"")) -> 178.3982778 | H143: 180.5083167 | I143: 177.3736291 | J143: =IF(J142="","",IF($D143<>"",SUMPRODUCT(B$10:OFFSET($B$10,MIN($K$3,$A143)-1,0),OFFSET(I143,1-MIN($K$3,$A143),0):I143)/$L$4,"")) -> 176.9500283 | M143: 179.891 | Q143: 176.9500283
A144: 135 | C144: 84 | D144: 178.596 | E144: =IF(E143="","",IF($D144<>"",AVERAGE(D144:OFFSET(D144,-MIN($H$3,COUNT(D$10:$D144)),0)),"")) -> 180.8186471 | F144: =IF(F143="","",IF($D144<>"",SUMPRODUCT(B$10:OFFSET($B$10,MIN($H$3,$A144)-1,0),OFFSET(D144,1-MIN($H$3,$A144),0):D144)/$I$4,"")) -> 179.1450956 | G144: =IF(G143="","",IF($D144<>"",SUMPRODUCT(B$10:OFFSET($B$10,MIN($H$4,$A144)-1,0),OFFSET(D144,1-MIN($H$4,$A144),0):D144)/$I$5,"")) -> 178.4048333 | H144: 180.2833383 | I144: 177.6645711 | J144: =IF(J143="","",IF($D144<>"",SUMPRODUCT(B$10:OFFSET($B$10,MIN($K$3,$A144)-1,0),OFFSET(I144,1-MIN($K$3,$A144),0):I144)/$L$4,"")) -> 177.2776963 | M144: 178.596 | Q144: 177.2776963
A145: 136 | C145: 85 | D145: 177.82 | E145: =IF(E144="","",IF($D145<>"",AVERAGE(D145:OFFSET(D145,-MIN($H$3,COUNT(D$10:$D145)),0)),"")) -> 180.2669412 | F145: =IF(F144="","",IF($D145<>"",SUMPRODUCT(B$10:OFFSET($B$10,MIN($H$3,$A145)-1,0),OFFSET(D145,1-MIN($H$3,$A145),0):D145)/$I$4,"")) -> 178.8392279 | G145: =IF(G144="","",IF($D145<>"",SUMPRODUCT(B$10:OFFSET($B$10,MIN($H$4,$A145)-1,0),OFFSET(D145,1-MIN($H$4,$A145),0):D145)/$I$5,"")) -> 178.2680556 | H145: 179.9935338 | I145: 177.6968832 | J145: =IF(J144="","",IF($D145<>"",SUMPRODUCT(B$10:OFFSET($B$10,MIN($K$3,$A145)-1,0),OFFSET(I145,1-MIN($K$3,$A145),0):I145)/$L$4,"")) -> 177.5169833 | M145: 177.82 | Q145: 177.5169833
A146: 137 | C146: 86 | D146: 176.546 | E146: =IF(E145="","",IF($D146<>"",AVERAGE(D146:OFFSET(D146,-MIN($H$3,COUNT(D$10:$D146)),0)),"")) -> 179.7191176 | F146: =IF(F145="","",IF($D146<>"",SUMPRODUCT(B$10:OFFSET($B$10,MIN($H$3,$A146)-1,0),OFFSET(D146,1-MIN($H$3,$A146),0):D146)/$I$4,"")) -> 178.4425882 | G146: =IF(G145="","",IF($D146<>"",SUMPRODUCT(B$10:OFFSET($B$10,MIN($H$4,$A146)-1,0),OFFSET(D146,1-MIN($H$4,$A146),0):D146)/$I$5,"")) -> 177.8955833 | H146: 179.5879416 | I146: 177.3485784 | J146: =IF(J145="","",IF($D146<>"",SUMPRODUCT(B$10:OFFSET($B$10,MIN($K$3,$A146)-1,0),OFFSET(I146,1-MIN($K$3,$A146),0):I146)/$L$4,"")) -> 177.5187734 | M146: 176.546 | Q146: 177.5187734
A147: 138 | C147: 87 | D147: 178.594 | E147: =IF(E146="","",IF($D147<>"",AVERAGE(D147:OFFSET(D147,-MIN($H$3,COUNT(D$10:$D147)),0)),"")) -> 179.2448235 | F147: =IF(F146="","",IF($D147<>"",SUMPRODUCT(B$10:OFFSET($B$10,MIN($H$3,$A147)-1,0),OFFSET(D147,1-MIN($H$3,$A147),0):D147)/$I$4,"")) -> 178.3612353 | G147: =IF(G146="","",IF($D147<>"",SUMPRODUCT(B$10:OFFSET($B$10,MIN($H$4,$A147)-1,0),OFFSET(D147,1-MIN($H$4,$A147),0):D147)/$I$5,"")) -> 178.0393889 | H147: 179.4710073 | I147: 177.7175425 | J147: =IF(J146="","",IF($D147<>"",SUMPRODUCT(B$10:OFFSET($B$10,MIN($K$3,$A147)-1,0),OFFSET(I147,1-MIN($K$3,$A147),0):I147)/$L$4,"")) -> 177.5974243 | M147: 178.594 | Q147: 177.5974243
A148: 139 | C148: 88 | D148: 179.109 | E148: =IF(E147="","",IF($D148<>"",AVERAGE(D148:OFFSET(D148,-MIN($H$3,COUNT(D$10:$D148)),0)),"")) -> 178.9205882 | F148: =IF(F147="","",IF($D148<>"",SUMPRODUCT(B$10:OFFSET($B$10,MIN($H$3,$A148)-1,0),OFFSET(D148,1-MIN($H$3,$A148),0):D148)/$I$4,"")) -> 178.3847868 | G148: =IF(G147="","",IF($D148<>"",SUMPRODUCT(B$10:OFFSET($B$10,MIN($H$4,$A148)-1,0),OFFSET(D148,1-MIN($H$4,$A148),0):D148)/$I$5,"")) -> 178.3001111 | H148: 179.4284182 | I148: 178.2154355 | J148: =IF(J147="","",IF($D148<>"",SUMPRODUCT(B$10:OFFSET($B$10,MIN($K$3,$A148)-1,0),OFFSET(I148,1-MIN($K$3,$A148),0):I148)/$L$4,"")) -> 177.8408409 | M148: 179.109 | Q148: 177.8408409
A149: 140 | C149: 89 | D149: 177.878 | E149: =IF(E148="","",IF($D149<>"",AVERAGE(D149:OFFSET(D149,-MIN($H$3,COUNT(D$10:$D149)),0)),"")) -> 178.6536471 | F149: =IF(F148="","",IF($D149<>"",SUMPRODUCT(B$10:OFFSET($B$10,MIN($H$3,$A149)-1,0),OFFSET(D149,1-MIN($H$3,$A149),0):D149)/$I$4,"")) -> 178.2878309 | G149: =IF(G148="","",IF($D149<>"",SUMPRODUCT(B$10:OFFSET($B$10,MIN($H$4,$A149)-1,0),OFFSET(D149,1-MIN($H$4,$A149),0):D149)/$I$5,"")) -> 178.21025 | H149: 179.246016 | I149: 178.1326691 | J149: =IF(J148="","",IF($D149<>"",SUMPRODUCT(B$10:OFFSET($B$10,MIN($K$3,$A149)-1,0),OFFSET(I149,1-MIN($K$3,$A149),0):I149)/$L$4,"")) -> 177.9960646 | M149: 177.878 | Q149: 177.9960646
A150: 141 | C150: 90 | D150: 178.173 | E150: =IF(E149="","",IF($D150<>"",AVERAGE(D150:OFFSET(D150,-MIN($H$3,COUNT(D$10:$D150)),0)),"")) -> 178.5860588 | F150: =IF(F149="","",IF($D150<>"",SUMPRODUCT(B$10:OFFSET($B$10,MIN($H$3,$A150)-1,0),OFFSET(D150,1-MIN($H$3,$A150),0):D150)/$I$4,"")) -> 178.2361985 | G150: =IF(G149="","",IF($D150<>"",SUMPRODUCT(B$10:OFFSET($B$10,MIN($H$4,$A150)-1,0),OFFSET(D150,1-MIN($H$4,$A150),0):D150)/$I$5,"")) -> 178.1911389 | H150: 179.1197789 | I150: 178.1460792 | J150: =IF(J149="","",IF($D150<>"",SUMPRODUCT(B$10:OFFSET($B$10,MIN($K$3,$A150)-1,0),OFFSET(I150,1-MIN($K$3,$A150),0):I150)/$L$4,"")) -> 178.1130738 | M150: 178.173 | Q150: 178.1130738
A151: 142 | C151: 91 | D151: 177.067 | E151: =IF(E150="","",IF($D151<>"",AVERAGE(D151:OFFSET(D151,-MIN($H$3,COUNT(D$10:$D151)),0)),"")) -> 178.4029412 | F151: =IF(F150="","",IF($D151<>"",SUMPRODUCT(B$10:OFFSET($B$10,MIN($H$3,$A151)-1,0),OFFSET(D151,1-MIN($H$3,$A151),0):D151)/$I$4,"")) -> 178.0692059 | G151: =IF(G150="","",IF($D151<>"",SUMPRODUCT(B$10:OFFSET($B$10,MIN($H$4,$A151)-1,0),OFFSET(D151,1-MIN($H$4,$A151),0):D151)/$I$5,"")) -> 177.9113889 | H151: 178.8782755 | I151: 177.7535719 | J151: =IF(J150="","",IF($D151<>"",SUMPRODUCT(B$10:OFFSET($B$10,MIN($K$3,$A151)-1,0),OFFSET(I151,1-MIN($K$3,$A151),0):I151)/$L$4,"")) -> 177.9933299 | M151: 177.067 | Q151: 177.9933299
A152: 143 | C152: 92 | D152: 176.819 | E152: =IF(E151="","",IF($D152<>"",AVERAGE(D152:OFFSET(D152,-MIN($H$3,COUNT(D$10:$D152)),0)),"")) -> 178.1843529 | F152: =IF(F151="","",IF($D152<>"",SUMPRODUCT(B$10:OFFSET($B$10,MIN($H$3,$A152)-1,0),OFFSET(D152,1-MIN($H$3,$A152),0):D152)/$I$4,"")) -> 177.8985368 | G152: =IF(G151="","",IF($D152<>"",SUMPRODUCT(B$10:OFFSET($B$10,MIN($H$4,$A152)-1,0),OFFSET(D152,1-MIN($H$4,$A152),0):D152)/$I$5,"")) -> 177.6549722 | H152: 178.6360078 | I152: 177.4114077 | J152: =IF(J151="","",IF($D152<>"",SUMPRODUCT(B$10:OFFSET($B$10,MIN($K$3,$A152)-1,0),OFFSET(I152,1-MIN($K$3,$A152),0):I152)/$L$4,"")) -> 177.7331174 | M152: 176.819 | Q152: 177.7331174
A153: 144 | C153: 93 | D153: 178.283 | E153: =IF(E152="","",IF($D153<>"",AVERAGE(D153:OFFSET(D153,-MIN($H$3,COUNT(D$10:$D153)),0)),"")) -> 178.1042941 | F153: =IF(F152="","",IF($D153<>"",SUMPRODUCT(B$10:OFFSET($B$10,MIN($H$3,$A153)-1,0),OFFSET(D153,1-MIN($H$3,$A153),0):D153)/$I$4,"")) -> 177.920875 | G153: =IF(G152="","",IF($D153<>"",SUMPRODUCT(B$10:OFFSET($B$10,MIN($H$4,$A153)-1,0),OFFSET(D153,1-MIN($H$4,$A153),0):D153)/$I$5,"")) -> 177.77325 | H153: 178.5944774 | I153: 177.625625 | J153: =IF(J152="","",IF($D153<>"",SUMPRODUCT(B$10:OFFSET($B$10,MIN($K$3,$A153)-1,0),OFFSET(I153,1-MIN($K$3,$A153),0):I153)/$L$4,"")) -> 177.6389946 | M153: 178.283 | Q153: 177.6389946
A154: 145 | C154: 94 | D154: 177.988 | E154: =IF(E153="","",IF($D154<>"",AVERAGE(D154:OFFSET(D154,-MIN($H$3,COUNT(D$10:$D154)),0)),"")) -> 178.0137647 | F154: =IF(F153="","",IF($D154<>"",SUMPRODUCT(B$10:OFFSET($B$10,MIN($H$3,$A154)-1,0),OFFSET(D154,1-MIN($H$3,$A154),0):D154)/$I$4,"")) -> 177.9176544 | G154: =IF(G153="","",IF($D154<>"",SUMPRODUCT(B$10:OFFSET($B$10,MIN($H$4,$A154)-1,0),OFFSET(D154,1-MIN($H$4,$A154),0):D154)/$I$5,"")) -> 177.8131111 | H154: 178.5231271 | I154: 177.7085678 | J154: =IF(J153="","",IF($D154<>"",SUMPRODUCT(B$10:OFFSET($B$10,MIN($K$3,$A154)-1,0),OFFSET(I154,1-MIN($K$3,$A154),0):I154)/$L$4,"")) -> 177.6287533 | M154: 177.988 | Q154: 177.6287533
A155: 146 | C155: 95 | D155: 180.118 | E155: =IF(E154="","",IF($D155<>"",AVERAGE(D155:OFFSET(D155,-MIN($H$3,COUNT(D$10:$D155)),0)),"")) -> 178.0943529 | F155: =IF(F154="","",IF($D155<>"",SUMPRODUCT(B$10:OFFSET($B$10,MIN($H$3,$A155)-1,0),OFFSET(D155,1-MIN($H$3,$A155),0):D155)/$I$4,"")) -> 178.1706103 | G155: =IF(G154="","",IF($D155<>"",SUMPRODUCT(B$10:OFFSET($B$10,MIN($H$4,$A155)-1,0),OFFSET(D155,1-MIN($H$4,$A155),0):D155)/$I$5,"")) -> 178.28625 | H155: 178.7107592 | I155: 178.4018897 | J155: =IF(J154="","",IF($D155<>"",SUMPRODUCT(B$10:OFFSET($B$10,MIN($K$3,$A155)-1,0),OFFSET(I155,1-MIN($K$3,$A155),0):I155)/$L$4,"")) -> 177.939592 | M155: 180.118 | Q155: 177.939592
A156: 147 | C156: 96 | D156: 181.51 | E156: =IF(E155="","",IF($D156<>"",AVERAGE(D156:OFFSET(D156,-MIN($H$3,COUNT(D$10:$D156)),0)),"")) -> 178.2606471 | F156: =IF(F155="","",IF($D156<>"",SUMPRODUCT(B$10:OFFSET($B$10,MIN($H$3,$A156)-1,0),OFFSET(D156,1-MIN($H$3,$A156),0):D156)/$I$4,"")) -> 178.5767794 | G156: =IF(G155="","",IF($D156<>"",SUMPRODUCT(B$10:OFFSET($B$10,MIN($H$4,$A156)-1,0),OFFSET(D156,1-MIN($H$4,$A156),0):D156)/$I$5,"")) -> 179.0263889 | H156: 179.0400817 | I156: 179.4759984 | J156: =IF(J155="","",IF($D156<>"",SUMPRODUCT(B$10:OFFSET($B$10,MIN($K$3,$A156)-1,0),OFFSET(I156,1-MIN($K$3,$A156),0):I156)/$L$4,"")) -> 178.6152423 | M156: =IF($M$26=TRUE,D156,"") -> 181.51 | N156: =IF($N$26=TRUE,E156,"") ->  | O156: =IF($O$26=TRUE,F156,"") ->  | P156: =IF($P$26=TRUE,H156,"") ->  | Q156: =IF($Q$26=TRUE,J156,"") -> 178.6152423
A157: 148 | C157: 97 | D157: 180.493 | E157: =IF(E156="","",IF($D157<>"",AVERAGE(D157:OFFSET(D157,-MIN($H$3,COUNT(D$10:$D157)),0)),"")) -> 178.5051765 | F157: =IF(F156="","",IF($D157<>"",SUMPRODUCT(B$10:OFFSET($B$10,MIN($H$3,$A157)-1,0),OFFSET(D157,1-MIN($H$3,$A157),0):D157)/$I$4,"")) -> 178.8252574 | G157: =IF(G156="","",IF($D157<>"",SUMPRODUCT(B$10:OFFSET($B$10,MIN($H$4,$A157)-1,0),OFFSET(D157,1-MIN($H$4,$A157),0):D157)/$I$5,"")) -> 179.4738333 | H157: 179.2110133 | I157: 180.1224093 | J157: =IF(J156="","",IF($D157<>"",SUMPRODUCT(B$10:OFFSET($B$10,MIN($K$3,$A157)-1,0),OFFSET(I157,1-MIN($K$3,$A157),0):I157)/$L$4,"")) -> 179.342998 | M157: 180.493 | Q157: 179.342998
A158: 149 | C158: 98 | D158: 182.155 | E158: =IF(E157="","",IF($D158<>"",AVERAGE(D158:OFFSET(D158,-MIN($H$3,COUNT(D$10:$D158)),0)),"")) -> 178.7457647 | F158: =IF(F157="","",IF($D158<>"",SUMPRODUCT(B$10:OFFSET($B$10,MIN($H$3,$A158)-1,0),OFFSET(D158,1-MIN($H$3,$A158),0):D158)/$I$4,"")) -> 179.2514118 | G158: =IF(G157="","",IF($D158<>"",SUMPRODUCT(B$10:OFFSET($B$10,MIN($H$4,$A158)-1,0),OFFSET(D158,1-MIN($H$4,$A158),0):D158)/$I$5,"")) -> 180.2179722 | H158: 179.5573646 | I158: 181.1845327 | J158: =IF(J157="","",IF($D158<>"",SUMPRODUCT(B$10:OFFSET($B$10,MIN($K$3,$A158)-1,0),OFFSET(I158,1-MIN($K$3,$A158),0):I158)/$L$4,"")) -> 180.2459245 | M158: 182.155 | Q158: 180.2459245
A159: 150 | C159: 99 | D159: 183.506 | E159: =IF(E158="","",IF($D159<>"",AVERAGE(D159:OFFSET(D159,-MIN($H$3,COUNT(D$10:$D159)),0)),"")) -> 179.0909412 | F159: =IF(F158="","",IF($D159<>"",SUMPRODUCT(B$10:OFFSET($B$10,MIN($H$3,$A159)-1,0),OFFSET(D159,1-MIN($H$3,$A159),0):D159)/$I$4,"")) -> 179.8032941 | G159: =IF(G158="","",IF($D159<>"",SUMPRODUCT(B$10:OFFSET($B$10,MIN($H$4,$A159)-1,0),OFFSET(D159,1-MIN($H$4,$A159),0):D159)/$I$5,"")) -> 181.1517222 | H159: 180.02191 | I159: 182.5001503 | J159: =IF(J158="","",IF($D159<>"",SUMPRODUCT(B$10:OFFSET($B$10,MIN($K$3,$A159)-1,0),OFFSET(I159,1-MIN($K$3,$A159),0):I159)/$L$4,"")) -> 181.3275016 | M159: 183.506 | Q159: 181.3275016
A160: 151 | C160: 100 | D160: 183.229 | E160: =IF(E159="","",IF($D160<>"",AVERAGE(D160:OFFSET(D160,-MIN($H$3,COUNT(D$10:$D160)),0)),"")) -> 179.2872941 | F160: =IF(F159="","",IF($D160<>"",SUMPRODUCT(B$10:OFFSET($B$10,MIN($H$3,$A160)-1,0),OFFSET(D160,1-MIN($H$3,$A160),0):D160)/$I$4,"")) -> 180.2960074 | G160: =IF(G159="","",IF($D160<>"",SUMPRODUCT(B$10:OFFSET($B$10,MIN($H$4,$A160)-1,0),OFFSET(D160,1-MIN($H$4,$A160),0):D160)/$I$5,"")) -> 181.8450556 | H160: 180.3992147 | I160: 183.3941038 | J160: =IF(J159="","",IF($D160<>"",SUMPRODUCT(B$10:OFFSET($B$10,MIN($K$3,$A160)-1,0),OFFSET(I160,1-MIN($K$3,$A160),0):I160)/$L$4,"")) -> 182.3568341 | M160: 183.229 | Q160: 182.3568341
A161: 152 | C161: 101 | D161: 182.918 | E161: =IF(E160="","",IF($D161<>"",AVERAGE(D161:OFFSET(D161,-MIN($H$3,COUNT(D$10:$D161)),0)),"")) -> 179.5415294 | F161: =IF(F160="","",IF($D161<>"",SUMPRODUCT(B$10:OFFSET($B$10,MIN($H$3,$A161)-1,0),OFFSET(D161,1-MIN($H$3,$A161),0):D161)/$I$4,"")) -> 180.7180662 | G161: =IF(G160="","",IF($D161<>"",SUMPRODUCT(B$10:OFFSET($B$10,MIN($H$4,$A161)-1,0),OFFSET(D161,1-MIN($H$4,$A161),0):D161)/$I$5,"")) -> 182.2912222 | H161: 180.6955424 | I161: 183.8643783 | J161: =IF(J160="","",IF($D161<>"",SUMPRODUCT(B$10:OFFSET($B$10,MIN($K$3,$A161)-1,0),OFFSET(I161,1-MIN($K$3,$A161),0):I161)/$L$4,"")) -> 183.1824658 | M161: 182.918 | Q161: 183.1824658
A162: 153 | C162: 102 | D162: 181.967 | E162: =IF(E161="","",IF($D162<>"",AVERAGE(D162:OFFSET(D162,-MIN($H$3,COUNT(D$10:$D162)),0)),"")) -> 179.7854706 | F162: =IF(F161="","",IF($D162<>"",SUMPRODUCT(B$10:OFFSET($B$10,MIN($H$3,$A162)-1,0),OFFSET(D162,1-MIN($H$3,$A162),0):D162)/$I$4,"")) -> 180.9907574 | G162: =IF(G161="","",IF($D162<>"",SUMPRODUCT(B$10:OFFSET($B$10,MIN($H$4,$A162)-1,0),OFFSET(D162,1-MIN($H$4,$A162),0):D162)/$I$5,"")) -> 182.3973056 | H162: 180.8451256 | I162: 183.8038538 | J162: =IF(J161="","",IF($D162<>"",SUMPRODUCT(B$10:OFFSET($B$10,MIN($K$3,$A162)-1,0),OFFSET(I162,1-MIN($K$3,$A162),0):I162)/$L$4,"")) -> 183.6096908 | M162: 181.967 | Q162: 183.6096908
A163: 154 | C163: 103 | D163: 183.034 | E163: =IF(E162="","",IF($D163<>"",AVERAGE(D163:OFFSET(D163,-MIN($H$3,COUNT(D$10:$D163)),0)),"")) -> 180.1671176 | F163: =IF(F162="","",IF($D163<>"",SUMPRODUCT(B$10:OFFSET($B$10,MIN($H$3,$A163)-1,0),OFFSET(D163,1-MIN($H$3,$A163),0):D163)/$I$4,"")) -> 181.3491176 | G163: =IF(G162="","",IF($D163<>"",SUMPRODUCT(B$10:OFFSET($B$10,MIN($H$4,$A163)-1,0),OFFSET(D163,1-MIN($H$4,$A163),0):D163)/$I$5,"")) -> 182.6299722 | H163: 181.1026403 | I163: 183.9108268 | J163: =IF(J162="","",IF($D163<>"",SUMPRODUCT(B$10:OFFSET($B$10,MIN($K$3,$A163)-1,0),OFFSET(I163,1-MIN($K$3,$A163),0):I163)/$L$4,"")) -> 183.8177729 | M163: 183.034 | Q163: 183.8177729
A164: 155 | C164: 104 | D164: 183.341 | E164: =IF(E163="","",IF($D164<>"",AVERAGE(D164:OFFSET(D164,-MIN($H$3,COUNT(D$10:$D164)),0)),"")) -> 180.4463529 | F164: =IF(F163="","",IF($D164<>"",SUMPRODUCT(B$10:OFFSET($B$10,MIN($H$3,$A164)-1,0),OFFSET(D164,1-MIN($H$3,$A164),0):D164)/$I$4,"")) -> 181.7109485 | G164: =IF(G163="","",IF($D164<>"",SUMPRODUCT(B$10:OFFSET($B$10,MIN($H$4,$A164)-1,0),OFFSET(D164,1-MIN($H$4,$A164),0):D164)/$I$5,"")) -> 182.8498611 | H164: 181.3659767 | I164: 183.9887737 | J164: =IF(J163="","",IF($D164<>"",SUMPRODUCT(B$10:OFFSET($B$10,MIN($K$3,$A164)-1,0),OFFSET(I164,1-MIN($K$3,$A164),0):I164)/$L$4,"")) -> 183.9159661 | M164: 183.341 | Q164: 183.9159661
A165: 156 | C165: 105 | D165: 183.315 | E165: =IF(E164="","",IF($D165<>"",AVERAGE(D165:OFFSET(D165,-MIN($H$3,COUNT(D$10:$D165)),0)),"")) -> 180.6937647 | F165: =IF(F164="","",IF($D165<>"",SUMPRODUCT(B$10:OFFSET($B$10,MIN($H$3,$A165)-1,0),OFFSET(D165,1-MIN($H$3,$A165),0):D165)/$I$4,"")) -> 182.0386029 | G165: =IF(G164="","",IF($D165<>"",SUMPRODUCT(B$10:OFFSET($B$10,MIN($H$4,$A165)-1,0),OFFSET(D165,1-MIN($H$4,$A165),0):D165)/$I$5,"")) -> 183.0131111 | H165: 181.5952736 | I165: 183.9876193 | J165: =IF(J164="","",IF($D165<>"",SUMPRODUCT(B$10:OFFSET($B$10,MIN($K$3,$A165)-1,0),OFFSET(I165,1-MIN($K$3,$A165),0):I165)/$L$4,"")) -> 183.9542306 | M165: 183.315 | Q165: 183.9542306
A166: 157 | C166: 106 | D166: 183.142 | E166: =IF(E165="","",IF($D166<>"",AVERAGE(D166:OFFSET(D166,-MIN($H$3,COUNT(D$10:$D166)),0)),"")) -> 181.0034118 | F166: =IF(F165="","",IF($D166<>"",SUMPRODUCT(B$10:OFFSET($B$10,MIN($H$3,$A166)-1,0),OFFSET(D166,1-MIN($H$3,$A166),0):D166)/$I$4,"")) -> 182.3059265 | G166: =IF(G165="","",IF($D166<>"",SUMPRODUCT(B$10:OFFSET($B$10,MIN($H$4,$A166)-1,0),OFFSET(D166,1-MIN($H$4,$A166),0):D166)/$I$5,"")) -> 183.0595278 | H166: 181.7772414 | I166: 183.8131291 | J166: =IF(J165="","",IF($D166<>"",SUMPRODUCT(B$10:OFFSET($B$10,MIN($K$3,$A166)-1,0),OFFSET(I166,1-MIN($K$3,$A166),0):I166)/$L$4,"")) -> 183.9103748 | M166: 183.142 | Q166: 183.9103748
A167: 158 | C167: 107 | D167: 183.629 | E167: =IF(E166="","",IF($D167<>"",AVERAGE(D167:OFFSET(D167,-MIN($H$3,COUNT(D$10:$D167)),0)),"")) -> 181.3243529 | F167: =IF(F166="","",IF($D167<>"",SUMPRODUCT(B$10:OFFSET($B$10,MIN($H$3,$A167)-1,0),OFFSET(D167,1-MIN($H$3,$A167),0):D167)/$I$4,"")) -> 182.5940074 | G167: =IF(G166="","",IF($D167<>"",SUMPRODUCT(B$10:OFFSET($B$10,MIN($H$4,$A167)-1,0),OFFSET(D167,1-MIN($H$4,$A167),0):D167)/$I$5,"")) -> 183.18675 | H167: 181.9950953 | I167: 183.7794926 | J167: =IF(J166="","",IF($D167<>"",SUMPRODUCT(B$10:OFFSET($B$10,MIN($K$3,$A167)-1,0),OFFSET(I167,1-MIN($K$3,$A167),0):I167)/$L$4,"")) -> 183.852137 | M167: 183.629 | Q167: 183.852137
A168: 159 | C168: 108 | D168: 183.813 | E168: =IF(E167="","",IF($D168<>"",AVERAGE(D168:OFFSET(D168,-MIN($H$3,COUNT(D$10:$D168)),0)),"")) -> 181.7211765 | F168: =IF(F167="","",IF($D168<>"",SUMPRODUCT(B$10:OFFSET($B$10,MIN($H$3,$A168)-1,0),OFFSET(D168,1-MIN($H$3,$A168),0):D168)/$I$4,"")) -> 182.8554853 | G168: =IF(G167="","",IF($D168<>"",SUMPRODUCT(B$10:OFFSET($B$10,MIN($H$4,$A168)-1,0),OFFSET(D168,1-MIN($H$4,$A168),0):D168)/$I$5,"")) -> 183.3514444 | H168: 182.2089665 | I168: 183.8474036 | J168: =IF(J167="","",IF($D168<>"",SUMPRODUCT(B$10:OFFSET($B$10,MIN($K$3,$A168)-1,0),OFFSET(I168,1-MIN($K$3,$A168),0):I168)/$L$4,"")) -> 183.834197 | M168: 183.813 | Q168: 183.834197
A169: 160 | C169: 109 | D169: 184.55 | E169: =IF(E168="","",IF($D169<>"",AVERAGE(D169:OFFSET(D169,-MIN($H$3,COUNT(D$10:$D169)),0)),"")) -> 182.1759412 | F169: =IF(F168="","",IF($D169<>"",SUMPRODUCT(B$10:OFFSET($B$10,MIN($H$3,$A169)-1,0),OFFSET(D169,1-MIN($H$3,$A169),0):D169)/$I$4,"")) -> 183.1522426 | G169: =IF(G168="","",IF($D169<>"",SUMPRODUCT(B$10:OFFSET($B$10,MIN($H$4,$A169)-1,0),OFFSET(D169,1-MIN($H$4,$A169),0):D169)/$I$5,"")) -> 183.6636944 | H169: 182.4843822 | I169: 184.1751462 | J169: =IF(J168="","",IF($D169<>"",SUMPRODUCT(B$10:OFFSET($B$10,MIN($K$3,$A169)-1,0),OFFSET(I169,1-MIN($K$3,$A169),0):I169)/$L$4,"")) -> 183.961491 | M169: 184.55 | Q169: 183.961491
A170: 161 | C170: 110 | D170: 183.948 | E170: =IF(E169="","",IF($D170<>"",AVERAGE(D170:OFFSET(D170,-MIN($H$3,COUNT(D$10:$D170)),0)),"")) -> 182.5091765 | F170: =IF(F169="","",IF($D170<>"",SUMPRODUCT(B$10:OFFSET($B$10,MIN($H$3,$A170)-1,0),OFFSET(D170,1-MIN($H$3,$A170),0):D170)/$I$4,"")) -> 183.3320956 | G170: =IF(G169="","",IF($D170<>"",SUMPRODUCT(B$10:OFFSET($B$10,MIN($H$4,$A170)-1,0),OFFSET(D170,1-MIN($H$4,$A170),0):D170)/$I$5,"")) -> 183.7968333 | H170: 182.6565725 | I170: 184.2615711 | J170: =IF(J169="","",IF($D170<>"",SUMPRODUCT(B$10:OFFSET($B$10,MIN($K$3,$A170)-1,0),OFFSET(I170,1-MIN($K$3,$A170),0):I170)/$L$4,"")) -> 184.1046023 | M170: 183.948 | Q170: 184.1046023
A171: 162 | C171: 111 | D171: 184.616 | E171: =IF(E170="","",IF($D171<>"",AVERAGE(D171:OFFSET(D171,-MIN($H$3,COUNT(D$10:$D171)),0)),"")) -> 182.8990588 | F171: =IF(F170="","",IF($D171<>"",SUMPRODUCT(B$10:OFFSET($B$10,MIN($H$3,$A171)-1,0),OFFSET(D171,1-MIN($H$3,$A171),0):D171)/$I$4,"")) -> 183.5467132 | G171: =IF(G170="","",IF($D171<>"",SUMPRODUCT(B$10:OFFSET($B$10,MIN($H$4,$A171)-1,0),OFFSET(D171,1-MIN($H$4,$A171),0):D171)/$I$5,"")) -> 184.0233889 | H171: 182.8870934 | I171: 184.5000645 | J171: =IF(J170="","",IF($D171<>"",SUMPRODUCT(B$10:OFFSET($B$10,MIN($K$3,$A171)-1,0),OFFSET(I171,1-MIN($K$3,$A171),0):I171)/$L$4,"")) -> 184.2982667 | M171: 184.616 | Q171: 184.2982667
A172: 163 | C172: 112 | D172: 184.554 | E172: =IF(E171="","",IF($D172<>"",AVERAGE(D172:OFFSET(D172,-MIN($H$3,COUNT(D$10:$D172)),0)),"")) -> 183.16 | F172: =IF(F171="","",IF($D172<>"",SUMPRODUCT(B$10:OFFSET($B$10,MIN($H$3,$A172)-1,0),OFFSET(D172,1-MIN($H$3,$A172),0):D172)/$I$4,"")) -> 183.7209632 | G172: =IF(G171="","",IF($D172<>"",SUMPRODUCT(B$10:OFFSET($B$10,MIN($H$4,$A172)-1,0),OFFSET(D172,1-MIN($H$4,$A172),0):D172)/$I$5,"")) -> 184.1922222 | H172: 183.0832 | I172: 184.6634812 | J172: =IF(J171="","",IF($D172<>"",SUMPRODUCT(B$10:OFFSET($B$10,MIN($K$3,$A172)-1,0),OFFSET(I172,1-MIN($K$3,$A172),0):I172)/$L$4,"")) -> 184.4852407 | M172: 184.554 | Q172: 184.4852407
A173: 164 | C173: 113 | D173: 183.87 | E173: =IF(E172="","",IF($D173<>"",AVERAGE(D173:OFFSET(D173,-MIN($H$3,COUNT(D$10:$D173)),0)),"")) -> 183.2988235 | F173: =IF(F172="","",IF($D173<>"",SUMPRODUCT(B$10:OFFSET($B$10,MIN($H$3,$A173)-1,0),OFFSET(D173,1-MIN($H$3,$A173),0):D173)/$I$4,"")) -> 183.7923603 | G173: =IF(G172="","",IF($D173<>"",SUMPRODUCT(B$10:OFFSET($B$10,MIN($H$4,$A173)-1,0),OFFSET(D173,1-MIN($H$4,$A173),0):D173)/$I$5,"")) -> 184.1753611 | H173: 183.1757647 | I173: 184.5583619 | J173: =IF(J172="","",IF($D173<>"",SUMPRODUCT(B$10:OFFSET($B$10,MIN($K$3,$A173)-1,0),OFFSET(I173,1-MIN($K$3,$A173),0):I173)/$L$4,"")) -> 184.5485592 | M173: 183.87 | Q173: 184.5485592
A174: 165 | C174: 114 | D174: 182.663 | E174: =IF(E173="","",IF($D174<>"",AVERAGE(D174:OFFSET(D174,-MIN($H$3,COUNT(D$10:$D174)),0)),"")) -> 183.4264706 | F174: =IF(F173="","",IF($D174<>"",SUMPRODUCT(B$10:OFFSET($B$10,MIN($H$3,$A174)-1,0),OFFSET(D174,1-MIN($H$3,$A174),0):D174)/$I$4,"")) -> 183.6969265 | G174: =IF(G173="","",IF($D174<>"",SUMPRODUCT(B$10:OFFSET($B$10,MIN($H$4,$A174)-1,0),OFFSET(D174,1-MIN($H$4,$A174),0):D174)/$I$5,"")) -> 183.8748611 | H174: 183.1154395 | I174: 184.0527958 | J174: =IF(J173="","",IF($D174<>"",SUMPRODUCT(B$10:OFFSET($B$10,MIN($K$3,$A174)-1,0),OFFSET(I174,1-MIN($K$3,$A174),0):I174)/$L$4,"")) -> 184.3713296 | M174: 182.663 | Q174: 184.3713296
A175: 166 | C175: 115 | D175: 183.052 | E175: =IF(E174="","",IF($D175<>"",AVERAGE(D175:OFFSET(D175,-MIN($H$3,COUNT(D$10:$D175)),0)),"")) -> 183.4792353 | F175: =IF(F174="","",IF($D175<>"",SUMPRODUCT(B$10:OFFSET($B$10,MIN($H$3,$A175)-1,0),OFFSET(D175,1-MIN($H$3,$A175),0):D175)/$I$4,"")) -> 183.6435221 | G175: =IF(G174="","",IF($D175<>"",SUMPRODUCT(B$10:OFFSET($B$10,MIN($H$4,$A175)-1,0),OFFSET(D175,1-MIN($H$4,$A175),0):D175)/$I$5,"")) -> 183.6741111 | H175: 183.107976 | I175: 183.7047002 | J175: =IF(J174="","",IF($D175<>"",SUMPRODUCT(B$10:OFFSET($B$10,MIN($K$3,$A175)-1,0),OFFSET(I175,1-MIN($K$3,$A175),0):I175)/$L$4,"")) -> 184.0757393 | M175: 183.052 | Q175: 184.0757393
A176: 167 | C176: 116 | D176: 181.665 | E176: =IF(E175="","",IF($D176<>"",AVERAGE(D176:OFFSET(D176,-MIN($H$3,COUNT(D$10:$D176)),0)),"")) -> 183.3709412 | F176: =IF(F175="","",IF($D176<>"",SUMPRODUCT(B$10:OFFSET($B$10,MIN($H$3,$A176)-1,0),OFFSET(D176,1-MIN($H$3,$A176),0):D176)/$I$4,"")) -> 183.4302794 | G176: =IF(G175="","",IF($D176<>"",SUMPRODUCT(B$10:OFFSET($B$10,MIN($H$4,$A176)-1,0),OFFSET(D176,1-MIN($H$4,$A176),0):D176)/$I$5,"")) -> 183.1811667 | H176: 182.9382141 | I176: 182.9320539 | J176: =IF(J175="","",IF($D176<>"",SUMPRODUCT(B$10:OFFSET($B$10,MIN($K$3,$A176)-1,0),OFFSET(I176,1-MIN($K$3,$A176),0):I176)/$L$4,"")) -> 183.550627 | M176: 181.665 | Q176: 183.550627
A177: 168 | C177: 117 | D177: 183.268 | E177: =IF(E176="","",IF($D177<>"",AVERAGE(D177:OFFSET(D177,-MIN($H$3,COUNT(D$10:$D177)),0)),"")) -> 183.3732353 | F177: =IF(F176="","",IF($D177<>"",SUMPRODUCT(B$10:OFFSET($B$10,MIN($H$3,$A177)-1,0),OFFSET(D177,1-MIN($H$3,$A177),0):D177)/$I$4,"")) -> 183.417125 | G177: =IF(G176="","",IF($D177<>"",SUMPRODUCT(B$10:OFFSET($B$10,MIN($H$4,$A177)-1,0),OFFSET(D177,1-MIN($H$4,$A177),0):D177)/$I$5,"")) -> 183.1041111 | H177: 182.9770125 | I177: 182.7910972 | J177: =IF(J176="","",IF($D177<>"",SUMPRODUCT(B$10:OFFSET($B$10,MIN($K$3,$A177)-1,0),OFFSET(I177,1-MIN($K$3,$A177),0):I177)/$L$4,"")) -> 183.1422747 | M177: 183.268 | Q177: 183.1422747
A178: 169 | C178: 118 | D178: 182.486 | E178: =IF(E177="","",IF($D178<>"",AVERAGE(D178:OFFSET(D178,-MIN($H$3,COUNT(D$10:$D178)),0)),"")) -> 183.3478235 | F178: =IF(F177="","",IF($D178<>"",SUMPRODUCT(B$10:OFFSET($B$10,MIN($H$3,$A178)-1,0),OFFSET(D178,1-MIN($H$3,$A178),0):D178)/$I$4,"")) -> 183.3093971 | G178: =IF(G177="","",IF($D178<>"",SUMPRODUCT(B$10:OFFSET($B$10,MIN($H$4,$A178)-1,0),OFFSET(D178,1-MIN($H$4,$A178),0):D178)/$I$5,"")) -> 182.8888889 | H178: 182.9192463 | I178: 182.4683807 | J178: =IF(J177="","",IF($D178<>"",SUMPRODUCT(B$10:OFFSET($B$10,MIN($K$3,$A178)-1,0),OFFSET(I178,1-MIN($K$3,$A178),0):I178)/$L$4,"")) -> 182.7815623 | M178: 182.486 | Q178: 182.7815623
A179: 170 | C179: 119 | D179: 181.285 | E179: =IF(E178="","",IF($D179<>"",AVERAGE(D179:OFFSET(D179,-MIN($H$3,COUNT(D$10:$D179)),0)),"")) -> 183.3077059 | F179: =IF(F178="","",IF($D179<>"",SUMPRODUCT(B$10:OFFSET($B$10,MIN($H$3,$A179)-1,0),OFFSET(D179,1-MIN($H$3,$A179),0):D179)/$I$4,"")) -> 183.0565588 | G179: =IF(G178="","",IF($D179<>"",SUMPRODUCT(B$10:OFFSET($B$10,MIN($H$4,$A179)-1,0),OFFSET(D179,1-MIN($H$4,$A179),0):D179)/$I$5,"")) -> 182.4473889 | H179: 182.726982 | I179: 181.838219 | J179: =IF(J178="","",IF($D179<>"",SUMPRODUCT(B$10:OFFSET($B$10,MIN($K$3,$A179)-1,0),OFFSET(I179,1-MIN($K$3,$A179),0):I179)/$L$4,"")) -> 182.3272266 | M179: 181.285 | Q179: 182.3272266
A180: 171 | C180: 120 | D180: 180.491 | E180: =IF(E179="","",IF($D180<>"",AVERAGE(D180:OFFSET(D180,-MIN($H$3,COUNT(D$10:$D180)),0)),"")) -> 183.1581176 | F180: =IF(F179="","",IF($D180<>"",SUMPRODUCT(B$10:OFFSET($B$10,MIN($H$3,$A180)-1,0),OFFSET(D180,1-MIN($H$3,$A180),0):D180)/$I$4,"")) -> 182.7231691 | G180: =IF(G179="","",IF($D180<>"",SUMPRODUCT(B$10:OFFSET($B$10,MIN($H$4,$A180)-1,0),OFFSET(D180,1-MIN($H$4,$A180),0):D180)/$I$5,"")) -> 181.9219722 | H180: 182.4639253 | I180: 181.1207753 | J180: =IF(J179="","",IF($D180<>"",SUMPRODUCT(B$10:OFFSET($B$10,MIN($K$3,$A180)-1,0),OFFSET(I180,1-MIN($K$3,$A180),0):I180)/$L$4,"")) -> 181.7725617 | M180: 180.491 | Q180: 181.7725617
A181: 172 | C181: 121 | D181: 178.922 | E181: =IF(E180="","",IF($D181<>"",AVERAGE(D181:OFFSET(D181,-MIN($H$3,COUNT(D$10:$D181)),0)),"")) -> 182.8981765 | F181: =IF(F180="","",IF($D181<>"",SUMPRODUCT(B$10:OFFSET($B$10,MIN($H$3,$A181)-1,0),OFFSET(D181,1-MIN($H$3,$A181),0):D181)/$I$4,"")) -> 182.2261471 | G181: =IF(G180="","",IF($D181<>"",SUMPRODUCT(B$10:OFFSET($B$10,MIN($H$4,$A181)-1,0),OFFSET(D181,1-MIN($H$4,$A181),0):D181)/$I$5,"")) -> 181.16075 | H181: 182.0472282 | I181: 180.0953529 | J181: =IF(J180="","",IF($D181<>"",SUMPRODUCT(B$10:OFFSET($B$10,MIN($K$3,$A181)-1,0),OFFSET(I181,1-MIN($K$3,$A181),0):I181)/$L$4,"")) -> 180.9888556 | M181: 178.922 | Q181: 180.9888556
A182: 173 | C182: 122 | D182: 179.881 | E182: =IF(E181="","",IF($D182<>"",AVERAGE(D182:OFFSET(D182,-MIN($H$3,COUNT(D$10:$D182)),0)),"")) -> 182.6961765 | F182: =IF(F181="","",IF($D182<>"",SUMPRODUCT(B$10:OFFSET($B$10,MIN($H$3,$A182)-1,0),OFFSET(D182,1-MIN($H$3,$A182),0):D182)/$I$4,"")) -> 181.87425 | G182: =IF(G181="","",IF($D182<>"",SUMPRODUCT(B$10:OFFSET($B$10,MIN($H$4,$A182)-1,0),OFFSET(D182,1-MIN($H$4,$A182),0):D182)/$I$5,"")) -> 180.7500833 | H182: 181.7923778 | I182: 179.6259167 | J182: =IF(J181="","",IF($D182<>"",SUMPRODUCT(B$10:OFFSET($B$10,MIN($K$3,$A182)-1,0),OFFSET(I182,1-MIN($K$3,$A182),0):I182)/$L$4,"")) -> 180.2869495 | M182: 179.881 | Q182: 180.2869495
A183: 174 | C183: 123 | D183: 178.991 | E183: =IF(E182="","",IF($D183<>"",AVERAGE(D183:OFFSET(D183,-MIN($H$3,COUNT(D$10:$D183)),0)),"")) -> 182.452 | F183: =IF(F182="","",IF($D183<>"",SUMPRODUCT(B$10:OFFSET($B$10,MIN($H$3,$A183)-1,0),OFFSET(D183,1-MIN($H$3,$A183),0):D183)/$I$4,"")) -> 181.441625 | G183: =IF(G182="","",IF($D183<>"",SUMPRODUCT(B$10:OFFSET($B$10,MIN($H$4,$A183)-1,0),OFFSET(D183,1-MIN($H$4,$A183),0):D183)/$I$5,"")) -> 180.2189167 | H183: 181.462804 | I183: 178.9962083 | J183: =IF(J182="","",IF($D183<>"",SUMPRODUCT(B$10:OFFSET($B$10,MIN($K$3,$A183)-1,0),OFFSET(I183,1-MIN($K$3,$A183),0):I183)/$L$4,"")) -> 179.6174065 | M183: 178.991 | Q183: 179.6174065
A184: 175 | C184: 124 | D184: 179.858 | E184: =IF(E183="","",IF($D184<>"",AVERAGE(D184:OFFSET(D184,-MIN($H$3,COUNT(D$10:$D184)),0)),"")) -> 182.2301765 | F184: =IF(F183="","",IF($D184<>"",SUMPRODUCT(B$10:OFFSET($B$10,MIN($H$3,$A184)-1,0),OFFSET(D184,1-MIN($H$3,$A184),0):D184)/$I$4,"")) -> 181.1451029 | G184: =IF(G183="","",IF($D184<>"",SUMPRODUCT(B$10:OFFSET($B$10,MIN($H$4,$A184)-1,0),OFFSET(D184,1-MIN($H$4,$A184),0):D184)/$I$5,"")) -> 179.9932222 | H184: 181.2740035 | I184: 178.8413415 | J184: =IF(J183="","",IF($D184<>"",SUMPRODUCT(B$10:OFFSET($B$10,MIN($K$3,$A184)-1,0),OFFSET(I184,1-MIN($K$3,$A184),0):I184)/$L$4,"")) -> 179.1701177 | M184: 179.858 | Q184: 179.1701177
A185: 176 | C185: 125 | D185: 178.132 | E185: =IF(E184="","",IF($D185<>"",AVERAGE(D185:OFFSET(D185,-MIN($H$3,COUNT(D$10:$D185)),0)),"")) -> 181.896 | F185: =IF(F184="","",IF($D185<>"",SUMPRODUCT(B$10:OFFSET($B$10,MIN($H$3,$A185)-1,0),OFFSET(D185,1-MIN($H$3,$A185),0):D185)/$I$4,"")) -> 180.6746029 | G185: =IF(G184="","",IF($D185<>"",SUMPRODUCT(B$10:OFFSET($B$10,MIN($H$4,$A185)-1,0),OFFSET(D185,1-MIN($H$4,$A185),0):D185)/$I$5,"")) -> 179.4341667 | H185: 180.904356 | I185: 178.1937304 | J185: =IF(J184="","",IF($D185<>"",SUMPRODUCT(B$10:OFFSET($B$10,MIN($K$3,$A185)-1,0),OFFSET(I185,1-MIN($K$3,$A185),0):I185)/$L$4,"")) -> 178.6917279 | M185: 178.132 | Q185: 178.6917279
A186: 177 | C186: 126 | D186: 179.405 | E186: =IF(E185="","",IF($D186<>"",AVERAGE(D186:OFFSET(D186,-MIN($H$3,COUNT(D$10:$D186)),0)),"")) -> 181.5933529 | F186: =IF(F185="","",IF($D186<>"",SUMPRODUCT(B$10:OFFSET($B$10,MIN($H$3,$A186)-1,0),OFFSET(D186,1-MIN($H$3,$A186),0):D186)/$I$4,"")) -> 180.4010588 | G186: =IF(G185="","",IF($D186<>"",SUMPRODUCT(B$10:OFFSET($B$10,MIN($H$4,$A186)-1,0),OFFSET(D186,1-MIN($H$4,$A186),0):D186)/$I$5,"")) -> 179.3006667 | H186: 180.7279612 | I186: 178.2002745 | J186: =IF(J185="","",IF($D186<>"",SUMPRODUCT(B$10:OFFSET($B$10,MIN($K$3,$A186)-1,0),OFFSET(I186,1-MIN($K$3,$A186),0):I186)/$L$4,"")) -> 178.4061181 | M186: 179.405 | Q186: 178.4061181
A187: 178 | C187: 127 | D187: 178.996 | E187: =IF(E186="","",IF($D187<>"",AVERAGE(D187:OFFSET(D187,-MIN($H$3,COUNT(D$10:$D187)),0)),"")) -> 181.3020588 | F187: =IF(F186="","",IF($D187<>"",SUMPRODUCT(B$10:OFFSET($B$10,MIN($H$3,$A187)-1,0),OFFSET(D187,1-MIN($H$3,$A187),0):D187)/$I$4,"")) -> 180.1128015 | G187: =IF(G186="","",IF($D187<>"",SUMPRODUCT(B$10:OFFSET($B$10,MIN($H$4,$A187)-1,0),OFFSET(D187,1-MIN($H$4,$A187),0):D187)/$I$5,"")) -> 179.1618611 | H187: 180.5242011 | I187: 178.2109208 | J187: =IF(J186="","",IF($D187<>"",SUMPRODUCT(B$10:OFFSET($B$10,MIN($K$3,$A187)-1,0),OFFSET(I187,1-MIN($K$3,$A187),0):I187)/$L$4,"")) -> 178.2673309 | M187: 178.996 | Q187: 178.2673309
A188: 179 | C188: 128 | D188: 177.812 | E188: =IF(E187="","",IF($D188<>"",AVERAGE(D188:OFFSET(D188,-MIN($H$3,COUNT(D$10:$D188)),0)),"")) -> 180.9018235 | F188: =IF(F187="","",IF($D188<>"",SUMPRODUCT(B$10:OFFSET($B$10,MIN($H$3,$A188)-1,0),OFFSET(D188,1-MIN($H$3,$A188),0):D188)/$I$4,"")) -> 179.7265735 | G188: =IF(G187="","",IF($D188<>"",SUMPRODUCT(B$10:OFFSET($B$10,MIN($H$4,$A188)-1,0),OFFSET(D188,1-MIN($H$4,$A188),0):D188)/$I$5,"")) -> 178.8235278 | H188: 180.2051186 | I188: 177.920482 | J188: =IF(J187="","",IF($D188<>"",SUMPRODUCT(B$10:OFFSET($B$10,MIN($K$3,$A188)-1,0),OFFSET(I188,1-MIN($K$3,$A188),0):I188)/$L$4,"")) -> 178.090897 | M188: 177.812 | Q188: 178.090897
A189: 180 | C189: 129 | D189: 177.785 | E189: =IF(E188="","",IF($D189<>"",AVERAGE(D189:OFFSET(D189,-MIN($H$3,COUNT(D$10:$D189)),0)),"")) -> 180.5036471 | F189: =IF(F188="","",IF($D189<>"",SUMPRODUCT(B$10:OFFSET($B$10,MIN($H$3,$A189)-1,0),OFFSET(D189,1-MIN($H$3,$A189),0):D189)/$I$4,"")) -> 179.3867426 | G189: =IF(G188="","",IF($D189<>"",SUMPRODUCT(B$10:OFFSET($B$10,MIN($H$4,$A189)-1,0),OFFSET(D189,1-MIN($H$4,$A189),0):D189)/$I$5,"")) -> 178.5536111 | H189: 179.9203988 | I189: 177.7204796 | J189: =IF(J188="","",IF($D189<>"",SUMPRODUCT(B$10:OFFSET($B$10,MIN($K$3,$A189)-1,0),OFFSET(I189,1-MIN($K$3,$A189),0):I189)/$L$4,"")) -> 177.926548 | M189: 177.785 | Q189: 177.926548
A190: 181 | C190: 130 | D190: 176.942 | E190: =IF(E189="","",IF($D190<>"",AVERAGE(D190:OFFSET(D190,-MIN($H$3,COUNT(D$10:$D190)),0)),"")) -> 180.0961176 | F190: =IF(F189="","",IF($D190<>"",SUMPRODUCT(B$10:OFFSET($B$10,MIN($H$3,$A190)-1,0),OFFSET(D190,1-MIN($H$3,$A190),0):D190)/$I$4,"")) -> 178.9924779 | G190: =IF(G189="","",IF($D190<>"",SUMPRODUCT(B$10:OFFSET($B$10,MIN($H$4,$A190)-1,0),OFFSET(D190,1-MIN($H$4,$A190),0):D190)/$I$5,"")) -> 178.1279444 | H190: 179.5699989 | I190: 177.2634109 | J190: =IF(J189="","",IF($D190<>"",SUMPRODUCT(B$10:OFFSET($B$10,MIN($K$3,$A190)-1,0),OFFSET(I190,1-MIN($K$3,$A190),0):I190)/$L$4,"")) -> 177.6266967 | M190: 176.942 | Q190: 177.6266967
A191: 182 | C191: 131 | D191: 177.13 | E191: =IF(E190="","",IF($D191<>"",AVERAGE(D191:OFFSET(D191,-MIN($H$3,COUNT(D$10:$D191)),0)),"")) -> 179.7706471 | F191: =IF(F190="","",IF($D191<>"",SUMPRODUCT(B$10:OFFSET($B$10,MIN($H$3,$A191)-1,0),OFFSET(D191,1-MIN($H$3,$A191),0):D191)/$I$4,"")) -> 178.6623971 | G191: =IF(G190="","",IF($D191<>"",SUMPRODUCT(B$10:OFFSET($B$10,MIN($H$4,$A191)-1,0),OFFSET(D191,1-MIN($H$4,$A191),0):D191)/$I$5,"")) -> 177.8256944 | H191: 179.2829402 | I191: 176.9889918 | J191: =IF(J190="","",IF($D191<>"",SUMPRODUCT(B$10:OFFSET($B$10,MIN($K$3,$A191)-1,0),OFFSET(I191,1-MIN($K$3,$A191),0):I191)/$L$4,"")) -> 177.3107641 | M191: 177.13 | Q191: 177.3107641
A192: 183 | C192: 132 | D192: 177.819 | E192: =IF(E191="","",IF($D192<>"",AVERAGE(D192:OFFSET(D192,-MIN($H$3,COUNT(D$10:$D192)),0)),"")) -> 179.4628235 | F192: =IF(F191="","",IF($D192<>"",SUMPRODUCT(B$10:OFFSET($B$10,MIN($H$3,$A192)-1,0),OFFSET(D192,1-MIN($H$3,$A192),0):D192)/$I$4,"")) -> 178.4569191 | G192: =IF(G191="","",IF($D192<>"",SUMPRODUCT(B$10:OFFSET($B$10,MIN($H$4,$A192)-1,0),OFFSET(D192,1-MIN($H$4,$A192),0):D192)/$I$5,"")) -> 177.72825 | H192: 179.1107119 | I192: 176.9995809 | J192: =IF(J191="","",IF($D192<>"",SUMPRODUCT(B$10:OFFSET($B$10,MIN($K$3,$A192)-1,0),OFFSET(I192,1-MIN($K$3,$A192),0):I192)/$L$4,"")) -> 177.12126 | M192: 177.819 | Q192: 177.12126
A193: 184 | C193: 133 | D193: 177.952 | E193: =IF(E192="","",IF($D193<>"",AVERAGE(D193:OFFSET(D193,-MIN($H$3,COUNT(D$10:$D193)),0)),"")) -> 179.2444118 | F193: =IF(F192="","",IF($D193<>"",SUMPRODUCT(B$10:OFFSET($B$10,MIN($H$3,$A193)-1,0),OFFSET(D193,1-MIN($H$3,$A193),0):D193)/$I$4,"")) -> 178.2953676 | G193: =IF(G192="","",IF($D193<>"",SUMPRODUCT(B$10:OFFSET($B$10,MIN($H$4,$A193)-1,0),OFFSET(D193,1-MIN($H$4,$A193),0):D193)/$I$5,"")) -> 177.717 | H193: 178.9743929 | I193: 177.1386324 | J193: =IF(J192="","",IF($D193<>"",SUMPRODUCT(B$10:OFFSET($B$10,MIN($K$3,$A193)-1,0),OFFSET(I193,1-MIN($K$3,$A193),0):I193)/$L$4,"")) -> 177.0794667 | M193: 177.952 | Q193: 177.0794667
A194: 185 | C194: 134 | D194: 177.483 | E194: =IF(E193="","",IF($D194<>"",AVERAGE(D194:OFFSET(D194,-MIN($H$3,COUNT(D$10:$D194)),0)),"")) -> 178.9041176 | F194: =IF(F193="","",IF($D194<>"",SUMPRODUCT(B$10:OFFSET($B$10,MIN($H$3,$A194)-1,0),OFFSET(D194,1-MIN($H$3,$A194),0):D194)/$I$4,"")) -> 178.1177279 | G194: =IF(G193="","",IF($D194<>"",SUMPRODUCT(B$10:OFFSET($B$10,MIN($H$4,$A194)-1,0),OFFSET(D194,1-MIN($H$4,$A194),0):D194)/$I$5,"")) -> 177.6065278 | H194: 178.7989349 | I194: 177.0953276 | J194: =IF(J193="","",IF($D194<>"",SUMPRODUCT(B$10:OFFSET($B$10,MIN($K$3,$A194)-1,0),OFFSET(I194,1-MIN($K$3,$A194),0):I194)/$L$4,"")) -> 177.0785361 | M194: 177.483 | Q194: 177.0785361
A195: 186 | C195: 135 | D195: 177.505 | E195: =IF(E194="","",IF($D195<>"",AVERAGE(D195:OFFSET(D195,-MIN($H$3,COUNT(D$10:$D195)),0)),"")) -> 178.6111176 | F195: =IF(F194="","",IF($D195<>"",SUMPRODUCT(B$10:OFFSET($B$10,MIN($H$3,$A195)-1,0),OFFSET(D195,1-MIN($H$3,$A195),0):D195)/$I$4,"")) -> 177.9794632 | G195: =IF(G194="","",IF($D195<>"",SUMPRODUCT(B$10:OFFSET($B$10,MIN($H$4,$A195)-1,0),OFFSET(D195,1-MIN($H$4,$A195),0):D195)/$I$5,"")) -> 177.5543333 | H195: 178.6467073 | I195: 177.1292034 | J195: =IF(J194="","",IF($D195<>"",SUMPRODUCT(B$10:OFFSET($B$10,MIN($K$3,$A195)-1,0),OFFSET(I195,1-MIN($K$3,$A195),0):I195)/$L$4,"")) -> 177.1079642 | M195: 177.505 | Q195: 177.1079642
A196: 187 | C196: 136 | D196: 177.483 | E196: =IF(E195="","",IF($D196<>"",AVERAGE(D196:OFFSET(D196,-MIN($H$3,COUNT(D$10:$D196)),0)),"")) -> 178.3874706 | F196: =IF(F195="","",IF($D196<>"",SUMPRODUCT(B$10:OFFSET($B$10,MIN($H$3,$A196)-1,0),OFFSET(D196,1-MIN($H$3,$A196),0):D196)/$I$4,"")) -> 177.8664044 | G196: =IF(G195="","",IF($D196<>"",SUMPRODUCT(B$10:OFFSET($B$10,MIN($H$4,$A196)-1,0),OFFSET(D196,1-MIN($H$4,$A196),0):D196)/$I$5,"")) -> 177.5386667 | H196: 178.5098005 | I196: 177.2109289 | J196: =IF(J195="","",IF($D196<>"",SUMPRODUCT(B$10:OFFSET($B$10,MIN($K$3,$A196)-1,0),OFFSET(I196,1-MIN($K$3,$A196),0):I196)/$L$4,"")) -> 177.1560614 | M196: 177.483 | Q196: 177.1560614
A197: 188 | C197: 137 | D197: 177.845 | E197: =IF(E196="","",IF($D197<>"",AVERAGE(D197:OFFSET(D197,-MIN($H$3,COUNT(D$10:$D197)),0)),"")) -> 178.2318235 | F197: =IF(F196="","",IF($D197<>"",SUMPRODUCT(B$10:OFFSET($B$10,MIN($H$3,$A197)-1,0),OFFSET(D197,1-MIN($H$3,$A197),0):D197)/$I$4,"")) -> 177.8180515 | G197: =IF(G196="","",IF($D197<>"",SUMPRODUCT(B$10:OFFSET($B$10,MIN($H$4,$A197)-1,0),OFFSET(D197,1-MIN($H$4,$A197),0):D197)/$I$5,"")) -> 177.6125833 | H197: 178.4315887 | I197: 177.4071152 | J197: =IF(J196="","",IF($D197<>"",SUMPRODUCT(B$10:OFFSET($B$10,MIN($K$3,$A197)-1,0),OFFSET(I197,1-MIN($K$3,$A197),0):I197)/$L$4,"")) -> 177.2614982 | M197: 177.845 | Q197: 177.2614982
A198: 189 | C198: 138 | D198: 178.056 | E198: =IF(E197="","",IF($D198<>"",AVERAGE(D198:OFFSET(D198,-MIN($H$3,COUNT(D$10:$D198)),0)),"")) -> 178.1808824 | F198: =IF(F197="","",IF($D198<>"",SUMPRODUCT(B$10:OFFSET($B$10,MIN($H$3,$A198)-1,0),OFFSET(D198,1-MIN($H$3,$A198),0):D198)/$I$4,"")) -> 177.8024412 | G198: =IF(G197="","",IF($D198<>"",SUMPRODUCT(B$10:OFFSET($B$10,MIN($H$4,$A198)-1,0),OFFSET(D198,1-MIN($H$4,$A198),0):D198)/$I$5,"")) -> 177.7317222 | H198: 178.3874018 | I198: 177.6610033 | J198: =IF(J197="","",IF($D198<>"",SUMPRODUCT(B$10:OFFSET($B$10,MIN($K$3,$A198)-1,0),OFFSET(I198,1-MIN($K$3,$A198),0):I198)/$L$4,"")) -> 177.441642 | M198: 178.056 | Q198: 177.441642
A199: 190 | C199: 139 | D199: 178.6 | E199: =IF(E198="","",IF($D199<>"",AVERAGE(D199:OFFSET(D199,-MIN($H$3,COUNT(D$10:$D199)),0)),"")) -> 178.1055294 | F199: =IF(F198="","",IF($D199<>"",SUMPRODUCT(B$10:OFFSET($B$10,MIN($H$3,$A199)-1,0),OFFSET(D199,1-MIN($H$3,$A199),0):D199)/$I$4,"")) -> 177.86425 | G199: =IF(G198="","",IF($D199<>"",SUMPRODUCT(B$10:OFFSET($B$10,MIN($H$4,$A199)-1,0),OFFSET(D199,1-MIN($H$4,$A199),0):D199)/$I$5,"")) -> 177.9408056 | H199: 178.4124134 | I199: 178.0173611 | J199: =IF(J198="","",IF($D199<>"",SUMPRODUCT(B$10:OFFSET($B$10,MIN($K$3,$A199)-1,0),OFFSET(I199,1-MIN($K$3,$A199),0):I199)/$L$4,"")) -> 177.7077614 | M199: 178.6 | Q199: 177.7077614
A200: 191 | C200: 140 | D200: 177.37 | E200: =IF(E199="","",IF($D200<>"",AVERAGE(D200:OFFSET(D200,-MIN($H$3,COUNT(D$10:$D200)),0)),"")) -> 178.0101765 | F200: =IF(F199="","",IF($D200<>"",SUMPRODUCT(B$10:OFFSET($B$10,MIN($H$3,$A200)-1,0),OFFSET(D200,1-MIN($H$3,$A200),0):D200)/$I$4,"")) -> 177.7842279 | G200: =IF(G199="","",IF($D200<>"",SUMPRODUCT(B$10:OFFSET($B$10,MIN($H$4,$A200)-1,0),OFFSET(D200,1-MIN($H$4,$A200),0):D200)/$I$5,"")) -> 177.8357222 | H200: 178.2897765 | I200: 177.8872165 | J200: =IF(J199="","",IF($D200<>"",SUMPRODUCT(B$10:OFFSET($B$10,MIN($K$3,$A200)-1,0),OFFSET(I200,1-MIN($K$3,$A200),0):I200)/$L$4,"")) -> 177.8330071 | M200: 177.37 | Q200: 177.8330071
A201: 192 | C201: 141 | D201: 175.862 | E201: =IF(E200="","",IF($D201<>"",AVERAGE(D201:OFFSET(D201,-MIN($H$3,COUNT(D$10:$D201)),0)),"")) -> 177.7751176 | F201: =IF(F200="","",IF($D201<>"",SUMPRODUCT(B$10:OFFSET($B$10,MIN($H$3,$A201)-1,0),OFFSET(D201,1-MIN($H$3,$A201),0):D201)/$I$4,"")) -> 177.5450882 | G201: =IF(G200="","",IF($D201<>"",SUMPRODUCT(B$10:OFFSET($B$10,MIN($H$4,$A201)-1,0),OFFSET(D201,1-MIN($H$4,$A201),0):D201)/$I$5,"")) -> 177.408 | H201: 178.0041557 | I201: 177.2709118 | J201: =IF(J200="","",IF($D201<>"",SUMPRODUCT(B$10:OFFSET($B$10,MIN($K$3,$A201)-1,0),OFFSET(I201,1-MIN($K$3,$A201),0):I201)/$L$4,"")) -> 177.6441022 | M201: 175.862 | Q201: 177.6441022
A202: 193 | C202: 142 | D202: 176.255 | E202: =IF(E201="","",IF($D202<>"",AVERAGE(D202:OFFSET(D202,-MIN($H$3,COUNT(D$10:$D202)),0)),"")) -> 177.6647059 | F202: =IF(F201="","",IF($D202<>"",SUMPRODUCT(B$10:OFFSET($B$10,MIN($H$3,$A202)-1,0),OFFSET(D202,1-MIN($H$3,$A202),0):D202)/$I$4,"")) -> 177.368875 | G202: =IF(G201="","",IF($D202<>"",SUMPRODUCT(B$10:OFFSET($B$10,MIN($H$4,$A202)-1,0),OFFSET(D202,1-MIN($H$4,$A202),0):D202)/$I$5,"")) -> 177.1256667 | H202: 177.7983727 | I202: 176.8824583 | J202: =IF(J201="","",IF($D202<>"",SUMPRODUCT(B$10:OFFSET($B$10,MIN($K$3,$A202)-1,0),OFFSET(I202,1-MIN($K$3,$A202),0):I202)/$L$4,"")) -> 177.3134363 | M202: 176.255 | Q202: 177.3134363
... 27 more rows
